Publisher Label,Publisher URI,"Directorate code","Directorate","Service code","Service","Revenue or capital code","Revenue capital","Cost centre","Cost centre description","Bvsub Category","Bvsub description","Bvsum code","Bvsum description","Account code","Account description","Transaction No","Period","Transaction Date","Amount","Classification code","Classification description","Supplier ID","Supplier description","Company registration number","Company registration number Uri","VAT registration number"
"London Borough of Redbridge","http://opendatacommunities.org/doc/london-borough-council/redbridge","3BINDSCHFUND","Individual School Funds","3CDELSECOND","Delegated Individual Secondary School Budgets","REV","Revenue","S2073","TRINITY : Trips general","04-SUPPLIES","Supplies And Services","04K","Miscellaneous expenses","6221","Educational Visits","70046343","201307",21/09/2012 00:00:00,-41790,"0","Not Classified","REDACTED DATA","NST TRAVEL GROUP LTD","2665024","http://opencorporates.com/companies/gb/2665024","155157075"
"London Borough of Redbridge","http://opendatacommunities.org/doc/london-borough-council/redbridge","9BNONBVO","Outside the BVACOP Objective Structure","9CNONBVO","Outside the BVACOP Objective Structure","REV","Revenue","R5131","Repairs and Maintenance - MFS","02-PREMISES","Premises","02A","Repairs, alteration and maintenance of buildings","3027","Miscellaneous Maintenance","70046393","201307",02/10/2012 00:00:00,-15070.38,"61961","Property Maintenance & Repairs","REDACTED DATA","MORRISONS FACILITIES SERVICES LTD","120550","http://opencorporates.com/companies/gb/120550","297280913"
"London Borough of Redbridge","http://opendatacommunities.org/doc/london-borough-council/redbridge","6BADULTSOCIA","Adult Social Care","6CADMENHLTH","Adults Under 65 with Mental Health Needs","REV","Revenue","R4190","MH - Residential Care","05-THIRD","Third Party Payments","05F","Voluntary associations","6802","Residential Homes","90361062","201307",12/10/2012 00:00:00,-29069.71,"64710","Residential Care Homes","REDACTED DATA","CYGNET HEALTH CARE LTD","2141256","http://opencorporates.com/companies/gb/2141256",""
"London Borough of Redbridge","http://opendatacommunities.org/doc/london-borough-council/redbridge","6BADULTSOCIA","Adult Social Care","6CADMENHLTH","Adults Under 65 with Mental Health Needs","REV","Revenue","R4190","MH - Residential Care","09-INCOME","Income","09C","Customer & Client Receipts","8555","Accommodation Charges","90361062","201307",12/10/2012 00:00:00,-989.81,"64710","Residential Care Homes","REDACTED DATA","CYGNET HEALTH CARE LTD","2141256","http://opencorporates.com/companies/gb/2141256",""
"London Borough of Redbridge","http://opendatacommunities.org/doc/london-borough-council/redbridge","6BADULTSOCIA","Adult Social Care","6CADMENHLTH","Adults Under 65 with Mental Health Needs","REV","Revenue","R4190","MH - Residential Care","05-THIRD","Third Party Payments","05F","Voluntary associations","6802","Residential Homes","90361062","201307",12/10/2012 00:00:00,-338.06,"64710","Residential Care Homes","REDACTED DATA","CYGNET HEALTH CARE LTD","2141256","http://opencorporates.com/companies/gb/2141256",""
"London Borough of Redbridge","http://opendatacommunities.org/doc/london-borough-council/redbridge","6BADULTSOCIA","Adult Social Care","6CADMENHLTH","Adults Under 65 with Mental Health Needs","REV","Revenue","R4190","MH - Residential Care","05-THIRD","Third Party Payments","05F","Voluntary associations","6802","Residential Homes","90361062","201307",12/10/2012 00:00:00,294.97,"64710","Residential Care Homes","REDACTED DATA","CYGNET HEALTH CARE LTD","2141256","http://opencorporates.com/companies/gb/2141256",""
"London Borough of Redbridge","http://opendatacommunities.org/doc/london-borough-council/redbridge","6BADULTSOCIA","Adult Social Care","6CADMENHLTH","Adults Under 65 with Mental Health Needs","REV","Revenue","R4190","MH - Residential Care","09-INCOME","Income","09C","Customer & Client Receipts","8555","Accommodation Charges","90361062","201307",12/10/2012 00:00:00,1134.39,"64710","Residential Care Homes","REDACTED DATA","CYGNET HEALTH CARE LTD","2141256","http://opencorporates.com/companies/gb/2141256",""
"London Borough of Redbridge","http://opendatacommunities.org/doc/london-borough-council/redbridge","6BADULTSOCIA","Adult Social Care","6CADMENHLTH","Adults Under 65 with Mental Health Needs","REV","Revenue","R4190","MH - Residential Care","05-THIRD","Third Party Payments","05F","Voluntary associations","6802","Residential Homes","90361062","201307",12/10/2012 00:00:00,20489.71,"64710","Residential Care Homes","REDACTED DATA","CYGNET HEALTH CARE LTD","2141256","http://opencorporates.com/companies/gb/2141256",""
"London Borough of Redbridge","http://opendatacommunities.org/doc/london-borough-council/redbridge","6BADULTSOCIA","Adult Social Care","6CADLEARNDIS","Adults Under 65 with Learning Disabilities","REV","Revenue","R4215","LD Direct Payments","06-TRANSFER","Transfer Payments","06B","Social Services Clients","7053","Direct Payments","3253702","201307",22/10/2012 00:00:00,-7965.05,"56800","Payroll Services","REDACTED DATA","HUMAN MANAGEMENT ASSISTANCE-CLIENT ACCOUNT","4752026","http://opencorporates.com/companies/gb/4752026","815230071"
"London Borough of Redbridge","http://opendatacommunities.org/doc/london-borough-council/redbridge","6BADULTSOCIA","Adult Social Care","6COLDINCMENT","Older People (65 or over) incl. Older Mentally Ill","REV","Revenue","R4385","OP Nursing","05-THIRD","Third Party Payments","05H","Private contractors","6909","Nursing Homes","90360542","201307",12/10/2012 00:00:00,-6831,"53350","Nursing Homes","REDACTED DATA","MARTLANE LIMITED","4150116","http://opencorporates.com/companies/gb/4150116",""
"London Borough of Redbridge","http://opendatacommunities.org/doc/london-borough-council/redbridge","6BADULTSOCIA","Adult Social Care","6CADPHYSDIS","Adults Under 65 with Phys Disab or Sensory Impair","REV","Revenue","R4214","PD Direct Payments","06-TRANSFER","Transfer Payments","06B","Social Services Clients","7053","Direct Payments","3253609","201307",22/10/2012 00:00:00,-6070.64,"56800","Payroll Services","REDACTED DATA","HUMAN MANAGEMENT ASSISTANCE-CLIENT ACCOUNT","4752026","http://opencorporates.com/companies/gb/4752026","815230071"
"London Borough of Redbridge","http://opendatacommunities.org/doc/london-borough-council/redbridge","6BADULTSOCIA","Adult Social Care","6COLDINCMENT","Older People (65 or over) incl. Older Mentally Ill","REV","Revenue","R4385","OP Nursing","05-THIRD","Third Party Payments","05H","Private contractors","6909","Nursing Homes","90360602","201307",12/10/2012 00:00:00,-5436.09,"53350","Nursing Homes","REDACTED DATA","LIFE STYLE CARE (2011) PLC","7709694","http://opencorporates.com/companies/gb/7709694",""
"London Borough of Redbridge","http://opendatacommunities.org/doc/london-borough-council/redbridge","6BSOCIALSERV","Social Services","6CCHILCOMSNG","Children's Services - Commissioning & Social Work","REV","Revenue","R2126","CLAFH - Station Road","02-PREMISES","Premises","02B","Energy costs","4000","Electricity","80000361","201307",03/10/2012 00:00:00,-4427.01,"30586","Electricity Companies","REDACTED DATA","SCOTTISH & SOUTHERN ENERGY (SOUTHERN ELECTRIC & SWALEC)","2716495","http://opencorporates.com/companies/gb/2716495","553769603"
"London Borough of Redbridge","http://opendatacommunities.org/doc/london-borough-council/redbridge","1BOTHEROPI&E","Other Operating Income & Expenditure","1CTRADSURDEF","Trading Account Surpluses & Deficits","REV","Revenue","R9252","IT Services","04-SUPPLIES","Supplies And Services","04F","Communications and computing","5853","Computer Software","60186960","201307",30/09/2012 00:00:00,-4281.5,"20703","Computer Systems and Software","REDACTED DATA","SOFTCAT LTD","2174990","http://opencorporates.com/companies/gb/2174990","491848503"
"London Borough of Redbridge","http://opendatacommunities.org/doc/london-borough-council/redbridge","6BADULTSOCIA","Adult Social Care","6COLDINCMENT","Older People (65 or over) incl. Older Mentally Ill","REV","Revenue","R4211","Older People Direct Payments","06-TRANSFER","Transfer Payments","06B","Social Services Clients","7053","Direct Payments","3253616","201307",22/10/2012 00:00:00,-5055.98,"56800","Payroll Services","REDACTED DATA","HUMAN MANAGEMENT ASSISTANCE-CLIENT ACCOUNT","4752026","http://opencorporates.com/companies/gb/4752026","815230071"
"London Borough of Redbridge","http://opendatacommunities.org/doc/london-borough-council/redbridge","6BADULTSOCIA","Adult Social Care","6COLDINCMENT","Older People (65 or over) incl. Older Mentally Ill","REV","Revenue","R4385","OP Nursing","05-THIRD","Third Party Payments","05H","Private contractors","6909","Nursing Homes","90360629","201307",12/10/2012 00:00:00,-6274.77,"53350","Nursing Homes","REDACTED DATA","LIFE STYLE CARE (2011) PLC","7709694","http://opencorporates.com/companies/gb/7709694",""
"London Borough of Redbridge","http://opendatacommunities.org/doc/london-borough-council/redbridge","6BADULTSOCIA","Adult Social Care","6COLDINCMENT","Older People (65 or over) incl. Older Mentally Ill","REV","Revenue","R4385","OP Nursing","05-THIRD","Third Party Payments","05H","Private contractors","6909","Nursing Homes","90360629","201307",12/10/2012 00:00:00,285.22,"53350","Nursing Homes","REDACTED DATA","LIFE STYLE CARE (2011) PLC","7709694","http://opencorporates.com/companies/gb/7709694",""
"London Borough of Redbridge","http://opendatacommunities.org/doc/london-borough-council/redbridge","6BADULTSOCIA","Adult Social Care","6COLDINCMENT","Older People (65 or over) incl. Older Mentally Ill","REV","Revenue","R4385","OP Nursing","09-INCOME","Income","09C","Customer & Client Receipts","8557","Nursing Home Charges","90360629","201307",12/10/2012 00:00:00,1498.51,"53350","Nursing Homes","REDACTED DATA","LIFE STYLE CARE (2011) PLC","7709694","http://opencorporates.com/companies/gb/7709694",""
"London Borough of Redbridge","http://opendatacommunities.org/doc/london-borough-council/redbridge","6BADULTSOCIA","Adult Social Care","6CADPHYSDIS","Adults Under 65 with Phys Disab or Sensory Impair","REV","Revenue","R4021","Carers PD Direct Payments","06-TRANSFER","Transfer Payments","06B","Social Services Clients","7053","Direct Payments","3253930","201307",22/10/2012 00:00:00,-3990.2,"56800","Payroll Services","REDACTED DATA","HUMAN MANAGEMENT ASSISTANCE-CLIENT ACCOUNT","4752026","http://opencorporates.com/companies/gb/4752026","815230071"
"London Borough of Redbridge","http://opendatacommunities.org/doc/london-borough-council/redbridge","6BSOCIALSERV","Social Services","6CCHILCOMSNG","Children's Services - Commissioning & Social Work","REV","Revenue","R2126","CLAFH - Station Road","02-PREMISES","Premises","02B","Energy costs","4000","Electricity","80000363","201307",03/10/2012 00:00:00,-2855.73,"30586","Electricity Companies","REDACTED DATA","SCOTTISH & SOUTHERN ENERGY (SOUTHERN ELECTRIC & SWALEC)","2716495","http://opencorporates.com/companies/gb/2716495","553769603"
"London Borough of Redbridge","http://opendatacommunities.org/doc/london-borough-council/redbridge","6BADULTSOCIA","Adult Social Care","6COLDINCMENT","Older People (65 or over) incl. Older Mentally Ill","REV","Revenue","R4385","OP Nursing","05-THIRD","Third Party Payments","05H","Private contractors","6909","Nursing Homes","90360642","201307",12/10/2012 00:00:00,-4492.17,"53350","Nursing Homes","REDACTED DATA","LIFE STYLE CARE (2011) PLC","7709694","http://opencorporates.com/companies/gb/7709694",""
"London Borough of Redbridge","http://opendatacommunities.org/doc/london-borough-council/redbridge","6BADULTSOCIA","Adult Social Care","6COLDINCMENT","Older People (65 or over) incl. Older Mentally Ill","REV","Revenue","R4385","OP Nursing","05-THIRD","Third Party Payments","05H","Private contractors","6909","Nursing Homes","90360642","201307",12/10/2012 00:00:00,285.22,"53350","Nursing Homes","REDACTED DATA","LIFE STYLE CARE (2011) PLC","7709694","http://opencorporates.com/companies/gb/7709694",""
"London Borough of Redbridge","http://opendatacommunities.org/doc/london-borough-council/redbridge","6BADULTSOCIA","Adult Social Care","6COLDINCMENT","Older People (65 or over) incl. Older Mentally Ill","REV","Revenue","R4385","OP Nursing","09-INCOME","Income","09C","Customer & Client Receipts","8557","Nursing Home Charges","90360642","201307",12/10/2012 00:00:00,1072.8,"53350","Nursing Homes","REDACTED DATA","LIFE STYLE CARE (2011) PLC","7709694","http://opencorporates.com/companies/gb/7709694",""
"London Borough of Redbridge","http://opendatacommunities.org/doc/london-borough-council/redbridge","6BSOCIALSERV","Social Services","6CCHILLOOKED","Children Looked After","REV","Revenue","R2127","CLAFH - Fostering and Adoption","05-THIRD","Third Party Payments","05H","Private contractors","6917","Fostering Costs - Agency","70046291","201307",19/09/2012 00:00:00,-3132,"1880","Adoption and Fostering","REDACTED DATA","ANCHOR FOSTER CARE SERVICES LTD","4348277","http://opencorporates.com/companies/gb/4348277",""
"London Borough of Redbridge","http://opendatacommunities.org/doc/london-borough-council/redbridge","6BADULTSOCIA","Adult Social Care","6CADPHYSDIS","Adults Under 65 with Phys Disab or Sensory Impair","REV","Revenue","R4206","PCT Physical Disability and Sensory Home  Care","05-THIRD","Third Party Payments","05A","Independent units within the council","6502","Agency Homecare (Payments To Independent Units)","90362921","201307",22/10/2012 00:00:00,-3100.24,"43419","Home Care Services","REDACTED DATA","FASTFLOW DE VERE CARE","",,""
"London Borough of Redbridge","http://opendatacommunities.org/doc/london-borough-council/redbridge","9BNONBVO","Outside the BVACOP Objective Structure","9CNONBVO","Outside the BVACOP Objective Structure","REV","Revenue","R5132","Repairs and Maintenance - Other","02-PREMISES","Premises","02A","Repairs, alteration and maintenance of buildings","3027","Miscellaneous Maintenance","70046987","201307",18/10/2012 00:00:00,-2986.63,"61961","Property Maintenance & Repairs","REDACTED DATA","MORRISONS FACILITIES SERVICES LTD","120550","http://opencorporates.com/companies/gb/120550","297280913"
"London Borough of Redbridge","http://opendatacommunities.org/doc/london-borough-council/redbridge","5BGFHOUSING","General Fund Housing","5CHOUSADVICE","Housing Advice","REV","Revenue","R5530","HAC Temporary Accomodation","05-THIRD","Third Party Payments","05H","Private contractors","6916","Leasing Payments To Landlords","70047124","201307",31/07/2012 00:00:00,-2135.1,"32695","Estate Agents and Property Buyers","REDACTED DATA","LODGE GROUP LTD","6419462","http://opencorporates.com/companies/gb/6419462",""
"London Borough of Redbridge","http://opendatacommunities.org/doc/london-borough-council/redbridge","6BADULTSOCIA","Adult Social Care","6COLDINCMENT","Older People (65 or over) incl. Older Mentally Ill","REV","Revenue","R4385","OP Nursing","05-THIRD","Third Party Payments","05H","Private contractors","6909","Nursing Homes","90360692","201307",12/10/2012 00:00:00,-4805.1,"53350","Nursing Homes","REDACTED DATA","JEWISH CARE (MERIT  HOUSE)","2447900","http://opencorporates.com/companies/gb/2447900","587033133"
"London Borough of Redbridge","http://opendatacommunities.org/doc/london-borough-council/redbridge","6BADULTSOCIA","Adult Social Care","6COLDINCMENT","Older People (65 or over) incl. Older Mentally Ill","REV","Revenue","R4385","OP Nursing","05-THIRD","Third Party Payments","05H","Private contractors","6909","Nursing Homes","90360692","201307",12/10/2012 00:00:00,305.09,"53350","Nursing Homes","REDACTED DATA","JEWISH CARE (MERIT  HOUSE)","2447900","http://opencorporates.com/companies/gb/2447900","587033133"
"London Borough of Redbridge","http://opendatacommunities.org/doc/london-borough-council/redbridge","6BADULTSOCIA","Adult Social Care","6COLDINCMENT","Older People (65 or over) incl. Older Mentally Ill","REV","Revenue","R4385","OP Nursing","09-INCOME","Income","09C","Customer & Client Receipts","8557","Nursing Home Charges","90360692","201307",12/10/2012 00:00:00,1959.75,"53350","Nursing Homes","REDACTED DATA","JEWISH CARE (MERIT  HOUSE)","2447900","http://opencorporates.com/companies/gb/2447900","587033133"
"London Borough of Redbridge","http://opendatacommunities.org/doc/london-borough-council/redbridge","9BNONBVO","Outside the BVACOP Objective Structure","9CNONBVO","Outside the BVACOP Objective Structure","CAP","Capital","C9060","Desktop Computing Strategy (R&R)","99-NONBV","Capital, Balance Sheet and Control","50G","Capital - Other Capital Outlay","9205","R&R Equipment - Normal","60187924","201307",22/10/2012 00:00:00,-2000,"20703","Computer Systems and Software","REDACTED DATA","SPECIALIST COMPUTER CENTRES PLC","1428210","http://opencorporates.com/companies/gb/1428210","313651680"
"London Borough of Redbridge","http://opendatacommunities.org/doc/london-borough-council/redbridge","6BADULTSOCIA","Adult Social Care","6COTHADSERV","Other Adult Services","REV","Revenue","R4389","PCT Older Person Home Care","05-THIRD","Third Party Payments","05A","Independent units within the council","6502","Agency Homecare (Payments To Independent Units)","90361558","201307",25/09/2012 00:00:00,-2304.23,"53280","Nursing Agencies","REDACTED DATA","IMMACULATE HEALTHCARE SERVICES LIMITED","",,""
"London Borough of Redbridge","http://opendatacommunities.org/doc/london-borough-council/redbridge","6BADULTSOCIA","Adult Social Care","6CSUPPSERMGT","Support Service & Management Costs","REV","Revenue","R4433","Care First Team","04-SUPPLIES","Supplies And Services","04F","Communications and computing","5858","Phones","3253370","201307",03/10/2012 00:00:00,-1017.47,"76510","Telecommunication Services","REDACTED DATA","EVERYTHING EVERYWHERE LTD T/AS ORANGE -( EQUIPMENT ONLY)","2382161","http://opencorporates.com/companies/gb/2382161","771592016"
"London Borough of Redbridge","http://opendatacommunities.org/doc/london-borough-council/redbridge","6BSOCIALSERV","Social Services","6CCHILLOOKED","Children Looked After","REV","Revenue","R2140","CQ and F - Safeguarding and Care Planning Soc Care","04-SUPPLIES","Supplies And Services","04F","Communications and computing","5858","Phones","3253370","201307",03/10/2012 00:00:00,-756.93,"76510","Telecommunication Services","REDACTED DATA","EVERYTHING EVERYWHERE LTD T/AS ORANGE -( EQUIPMENT ONLY)","2382161","http://opencorporates.com/companies/gb/2382161","771592016"
"London Borough of Redbridge","http://opendatacommunities.org/doc/london-borough-council/redbridge","6BADULTSOCIA","Adult Social Care","6CSUPPSERMGT","Support Service & Management Costs","REV","Revenue","R4002","Strategy and Development","04-SUPPLIES","Supplies And Services","04F","Communications and computing","5858","Phones","3253370","201307",03/10/2012 00:00:00,-311.58,"76510","Telecommunication Services","REDACTED DATA","EVERYTHING EVERYWHERE LTD T/AS ORANGE -( EQUIPMENT ONLY)","2382161","http://opencorporates.com/companies/gb/2382161","771592016"
"London Borough of Redbridge","http://opendatacommunities.org/doc/london-borough-council/redbridge","7BCDC","Corporate & Democratic Core","7CCORPMGT","Corporate Management","REV","Revenue","R9804","Members Exp/Allowances","04-SUPPLIES","Supplies And Services","04F","Communications and computing","5858","Phones","3253370","201307",03/10/2012 00:00:00,-210.75,"76510","Telecommunication Services","REDACTED DATA","EVERYTHING EVERYWHERE LTD T/AS ORANGE -( EQUIPMENT ONLY)","2382161","http://opencorporates.com/companies/gb/2382161","771592016"
"London Borough of Redbridge","http://opendatacommunities.org/doc/london-borough-council/redbridge","3BOPTIONHLDG","Optional Holding Accounts","3CYOUTH","Youth Service","REV","Revenue","R3359","Effective Practice","04-SUPPLIES","Supplies And Services","04F","Communications and computing","5858","Phones","3253370","201307",03/10/2012 00:00:00,-145.6,"76510","Telecommunication Services","REDACTED DATA","EVERYTHING EVERYWHERE LTD T/AS ORANGE -( EQUIPMENT ONLY)","2382161","http://opencorporates.com/companies/gb/2382161","771592016"
"London Borough of Redbridge","http://opendatacommunities.org/doc/london-borough-council/redbridge","1BOTHEROPI&E","Other Operating Income & Expenditure","1CTRADSURDEF","Trading Account Surpluses & Deficits","REV","Revenue","R7207","Building Services","04-SUPPLIES","Supplies And Services","04F","Communications and computing","5858","Phones","3253370","201307",03/10/2012 00:00:00,-133.41,"76510","Telecommunication Services","REDACTED DATA","EVERYTHING EVERYWHERE LTD T/AS ORANGE -( EQUIPMENT ONLY)","2382161","http://opencorporates.com/companies/gb/2382161","771592016"
"London Borough of Redbridge","http://opendatacommunities.org/doc/london-borough-council/redbridge","4BTRANSPORT","Transport Planning, Policy & Strategy","4CMANGT&SUPP","Management & Support Services","REV","Revenue","R7000","Highways Executive","04-SUPPLIES","Supplies And Services","04F","Communications and computing","5858","Phones","3253370","201307",03/10/2012 00:00:00,-13.65,"76510","Telecommunication Services","REDACTED DATA","EVERYTHING EVERYWHERE LTD T/AS ORANGE -( EQUIPMENT ONLY)","2382161","http://opencorporates.com/companies/gb/2382161","771592016"
"London Borough of Redbridge","http://opendatacommunities.org/doc/london-borough-council/redbridge","4BTRANSPORT","Transport Planning, Policy & Strategy","4CMANGT&SUPP","Management & Support Services","REV","Revenue","R7000","Highways Executive","04-SUPPLIES","Supplies And Services","04F","Communications and computing","5858","Phones","3253370","201307",03/10/2012 00:00:00,-12.48,"76510","Telecommunication Services","REDACTED DATA","EVERYTHING EVERYWHERE LTD T/AS ORANGE -( EQUIPMENT ONLY)","2382161","http://opencorporates.com/companies/gb/2382161","771592016"
"London Borough of Redbridge","http://opendatacommunities.org/doc/london-borough-council/redbridge","4BTRANSPORT","Transport Planning, Policy & Strategy","4CMANGT&SUPP","Management & Support Services","REV","Revenue","R7000","Highways Executive","04-SUPPLIES","Supplies And Services","04F","Communications and computing","5858","Phones","3253370","201307",03/10/2012 00:00:00,-7.54,"76510","Telecommunication Services","REDACTED DATA","EVERYTHING EVERYWHERE LTD T/AS ORANGE -( EQUIPMENT ONLY)","2382161","http://opencorporates.com/companies/gb/2382161","771592016"
"London Borough of Redbridge","http://opendatacommunities.org/doc/london-borough-council/redbridge","1BCENTRALPUB","Central Services to the Public","1CTRADSURDEF","Trading Account Surpluses & Deficits","REV","Revenue","R6755","Emergency Plan Stratgy","04-SUPPLIES","Supplies And Services","04F","Communications and computing","5858","Phones","3253370","201307",03/10/2012 00:00:00,5.29,"76510","Telecommunication Services","REDACTED DATA","EVERYTHING EVERYWHERE LTD T/AS ORANGE -( EQUIPMENT ONLY)","2382161","http://opencorporates.com/companies/gb/2382161","771592016"
"London Borough of Redbridge","http://opendatacommunities.org/doc/london-borough-council/redbridge","6BSOCIALSERV","Social Services","6CSUPPSERMGT","Support Service & Management Costs","REV","Revenue","R2133","MD Children's Trust","04-SUPPLIES","Supplies And Services","04F","Communications and computing","5858","Phones","3253370","201307",03/10/2012 00:00:00,10.98,"76510","Telecommunication Services","REDACTED DATA","EVERYTHING EVERYWHERE LTD T/AS ORANGE -( EQUIPMENT ONLY)","2382161","http://opencorporates.com/companies/gb/2382161","771592016"
"London Borough of Redbridge","http://opendatacommunities.org/doc/london-borough-council/redbridge","4BTRANSPORT","Transport Planning, Policy & Strategy","4CMANGT&SUPP","Management & Support Services","REV","Revenue","R7000","Highways Executive","04-SUPPLIES","Supplies And Services","04F","Communications and computing","5858","Phones","3253370","201307",03/10/2012 00:00:00,11.18,"76510","Telecommunication Services","REDACTED DATA","EVERYTHING EVERYWHERE LTD T/AS ORANGE -( EQUIPMENT ONLY)","2382161","http://opencorporates.com/companies/gb/2382161","771592016"
"London Borough of Redbridge","http://opendatacommunities.org/doc/london-borough-council/redbridge","4BTRANSPORT","Transport Planning, Policy & Strategy","4CMANGT&SUPP","Management & Support Services","REV","Revenue","R7000","Highways Executive","04-SUPPLIES","Supplies And Services","04F","Communications and computing","5858","Phones","3253370","201307",03/10/2012 00:00:00,11.52,"76510","Telecommunication Services","REDACTED DATA","EVERYTHING EVERYWHERE LTD T/AS ORANGE -( EQUIPMENT ONLY)","2382161","http://opencorporates.com/companies/gb/2382161","771592016"
"London Borough of Redbridge","http://opendatacommunities.org/doc/london-borough-council/redbridge","1BCENTRALPUB","Central Services to the Public","1CTRADSURDEF","Trading Account Surpluses & Deficits","REV","Revenue","R5770","Income Assessment","04-SUPPLIES","Supplies And Services","04F","Communications and computing","5858","Phones","3253370","201307",03/10/2012 00:00:00,12.5,"76510","Telecommunication Services","REDACTED DATA","EVERYTHING EVERYWHERE LTD T/AS ORANGE -( EQUIPMENT ONLY)","2382161","http://opencorporates.com/companies/gb/2382161","771592016"
"London Borough of Redbridge","http://opendatacommunities.org/doc/london-borough-council/redbridge","1BOTHEROPI&E","Other Operating Income & Expenditure","1CTRADSURDEF","Trading Account Surpluses & Deficits","REV","Revenue","R9053","Contract Consultancy Unit","04-SUPPLIES","Supplies And Services","04F","Communications and computing","5858","Phones","3253370","201307",03/10/2012 00:00:00,12.5,"76510","Telecommunication Services","REDACTED DATA","EVERYTHING EVERYWHERE LTD T/AS ORANGE -( EQUIPMENT ONLY)","2382161","http://opencorporates.com/companies/gb/2382161","771592016"
"London Borough of Redbridge","http://opendatacommunities.org/doc/london-borough-council/redbridge","1BOTHEROPI&E","Other Operating Income & Expenditure","1CTRADSURDEF","Trading Account Surpluses & Deficits","REV","Revenue","R9053","Contract Consultancy Unit","04-SUPPLIES","Supplies And Services","04F","Communications and computing","5858","Phones","3253370","201307",03/10/2012 00:00:00,12.5,"76510","Telecommunication Services","REDACTED DATA","EVERYTHING EVERYWHERE LTD T/AS ORANGE -( EQUIPMENT ONLY)","2382161","http://opencorporates.com/companies/gb/2382161","771592016"
"London Borough of Redbridge","http://opendatacommunities.org/doc/london-borough-council/redbridge","1BOTHEROPI&E","Other Operating Income & Expenditure","1CTRADSURDEF","Trading Account Surpluses & Deficits","REV","Revenue","R9053","Contract Consultancy Unit","04-SUPPLIES","Supplies And Services","04F","Communications and computing","5858","Phones","3253370","201307",03/10/2012 00:00:00,12.5,"76510","Telecommunication Services","REDACTED DATA","EVERYTHING EVERYWHERE LTD T/AS ORANGE -( EQUIPMENT ONLY)","2382161","http://opencorporates.com/companies/gb/2382161","771592016"
"London Borough of Redbridge","http://opendatacommunities.org/doc/london-borough-council/redbridge","1BOTHEROPI&E","Other Operating Income & Expenditure","1CTRADSURDEF","Trading Account Surpluses & Deficits","REV","Revenue","R9053","Contract Consultancy Unit","04-SUPPLIES","Supplies And Services","04F","Communications and computing","5858","Phones","3253370","201307",03/10/2012 00:00:00,12.5,"76510","Telecommunication Services","REDACTED DATA","EVERYTHING EVERYWHERE LTD T/AS ORANGE -( EQUIPMENT ONLY)","2382161","http://opencorporates.com/companies/gb/2382161","771592016"
"London Borough of Redbridge","http://opendatacommunities.org/doc/london-borough-council/redbridge","1BOTHEROPI&E","Other Operating Income & Expenditure","1CTRADSURDEF","Trading Account Surpluses & Deficits","REV","Revenue","R9053","Contract Consultancy Unit","04-SUPPLIES","Supplies And Services","04F","Communications and computing","5858","Phones","3253370","201307",03/10/2012 00:00:00,12.5,"76510","Telecommunication Services","REDACTED DATA","EVERYTHING EVERYWHERE LTD T/AS ORANGE -( EQUIPMENT ONLY)","2382161","http://opencorporates.com/companies/gb/2382161","771592016"
"London Borough of Redbridge","http://opendatacommunities.org/doc/london-borough-council/redbridge","1BOTHEROPI&E","Other Operating Income & Expenditure","1CTRADSURDEF","Trading Account Surpluses & Deficits","REV","Revenue","R9053","Contract Consultancy Unit","04-SUPPLIES","Supplies And Services","04F","Communications and computing","5858","Phones","3253370","201307",03/10/2012 00:00:00,12.5,"76510","Telecommunication Services","REDACTED DATA","EVERYTHING EVERYWHERE LTD T/AS ORANGE -( EQUIPMENT ONLY)","2382161","http://opencorporates.com/companies/gb/2382161","771592016"
"London Borough of Redbridge","http://opendatacommunities.org/doc/london-borough-council/redbridge","1BOTHEROPI&E","Other Operating Income & Expenditure","1CTRADSURDEF","Trading Account Surpluses & Deficits","REV","Revenue","R9053","Contract Consultancy Unit","04-SUPPLIES","Supplies And Services","04F","Communications and computing","5858","Phones","3253370","201307",03/10/2012 00:00:00,12.5,"76510","Telecommunication Services","REDACTED DATA","EVERYTHING EVERYWHERE LTD T/AS ORANGE -( EQUIPMENT ONLY)","2382161","http://opencorporates.com/companies/gb/2382161","771592016"
"London Borough of Redbridge","http://opendatacommunities.org/doc/london-borough-council/redbridge","1BOTHEROPI&E","Other Operating Income & Expenditure","1CTRADSURDEF","Trading Account Surpluses & Deficits","REV","Revenue","R9252","IT Services","04-SUPPLIES","Supplies And Services","04F","Communications and computing","5858","Phones","3253370","201307",03/10/2012 00:00:00,12.5,"76510","Telecommunication Services","REDACTED DATA","EVERYTHING EVERYWHERE LTD T/AS ORANGE -( EQUIPMENT ONLY)","2382161","http://opencorporates.com/companies/gb/2382161","771592016"
"London Borough of Redbridge","http://opendatacommunities.org/doc/london-borough-council/redbridge","1BOTHEROPI&E","Other Operating Income & Expenditure","1CTRADSURDEF","Trading Account Surpluses & Deficits","REV","Revenue","R9252","IT Services","04-SUPPLIES","Supplies And Services","04F","Communications and computing","5858","Phones","3253370","201307",03/10/2012 00:00:00,12.5,"76510","Telecommunication Services","REDACTED DATA","EVERYTHING EVERYWHERE LTD T/AS ORANGE -( EQUIPMENT ONLY)","2382161","http://opencorporates.com/companies/gb/2382161","771592016"
"London Borough of Redbridge","http://opendatacommunities.org/doc/london-borough-council/redbridge","1BOTHEROPI&E","Other Operating Income & Expenditure","1CTRADSURDEF","Trading Account Surpluses & Deficits","REV","Revenue","R9252","IT Services","04-SUPPLIES","Supplies And Services","04F","Communications and computing","5858","Phones","3253370","201307",03/10/2012 00:00:00,12.5,"76510","Telecommunication Services","REDACTED DATA","EVERYTHING EVERYWHERE LTD T/AS ORANGE -( EQUIPMENT ONLY)","2382161","http://opencorporates.com/companies/gb/2382161","771592016"
"London Borough of Redbridge","http://opendatacommunities.org/doc/london-borough-council/redbridge","1BOTHEROPI&E","Other Operating Income & Expenditure","1CTRADSURDEF","Trading Account Surpluses & Deficits","REV","Revenue","R9252","IT Services","04-SUPPLIES","Supplies And Services","04F","Communications and computing","5858","Phones","3253370","201307",03/10/2012 00:00:00,12.5,"76510","Telecommunication Services","REDACTED DATA","EVERYTHING EVERYWHERE LTD T/AS ORANGE -( EQUIPMENT ONLY)","2382161","http://opencorporates.com/companies/gb/2382161","771592016"
"London Borough of Redbridge","http://opendatacommunities.org/doc/london-borough-council/redbridge","1BOTHEROPI&E","Other Operating Income & Expenditure","1CTRADSURDEF","Trading Account Surpluses & Deficits","REV","Revenue","R9252","IT Services","04-SUPPLIES","Supplies And Services","04F","Communications and computing","5858","Phones","3253370","201307",03/10/2012 00:00:00,12.5,"76510","Telecommunication Services","REDACTED DATA","EVERYTHING EVERYWHERE LTD T/AS ORANGE -( EQUIPMENT ONLY)","2382161","http://opencorporates.com/companies/gb/2382161","771592016"
"London Borough of Redbridge","http://opendatacommunities.org/doc/london-borough-council/redbridge","1BOTHEROPI&E","Other Operating Income & Expenditure","1CTRADSURDEF","Trading Account Surpluses & Deficits","REV","Revenue","R9252","IT Services","04-SUPPLIES","Supplies And Services","04F","Communications and computing","5858","Phones","3253370","201307",03/10/2012 00:00:00,12.5,"76510","Telecommunication Services","REDACTED DATA","EVERYTHING EVERYWHERE LTD T/AS ORANGE -( EQUIPMENT ONLY)","2382161","http://opencorporates.com/companies/gb/2382161","771592016"
"London Borough of Redbridge","http://opendatacommunities.org/doc/london-borough-council/redbridge","1BOTHEROPI&E","Other Operating Income & Expenditure","1CTRADSURDEF","Trading Account Surpluses & Deficits","REV","Revenue","R9252","IT Services","04-SUPPLIES","Supplies And Services","04F","Communications and computing","5858","Phones","3253370","201307",03/10/2012 00:00:00,12.5,"76510","Telecommunication Services","REDACTED DATA","EVERYTHING EVERYWHERE LTD T/AS ORANGE -( EQUIPMENT ONLY)","2382161","http://opencorporates.com/companies/gb/2382161","771592016"
"London Borough of Redbridge","http://opendatacommunities.org/doc/london-borough-council/redbridge","1BOTHEROPI&E","Other Operating Income & Expenditure","1CTRADSURDEF","Trading Account Surpluses & Deficits","REV","Revenue","R9252","IT Services","04-SUPPLIES","Supplies And Services","04F","Communications and computing","5858","Phones","3253370","201307",03/10/2012 00:00:00,12.5,"76510","Telecommunication Services","REDACTED DATA","EVERYTHING EVERYWHERE LTD T/AS ORANGE -( EQUIPMENT ONLY)","2382161","http://opencorporates.com/companies/gb/2382161","771592016"
"London Borough of Redbridge","http://opendatacommunities.org/doc/london-borough-council/redbridge","1BOTHEROPI&E","Other Operating Income & Expenditure","1CTRADSURDEF","Trading Account Surpluses & Deficits","REV","Revenue","R9252","IT Services","04-SUPPLIES","Supplies And Services","04F","Communications and computing","5858","Phones","3253370","201307",03/10/2012 00:00:00,12.5,"76510","Telecommunication Services","REDACTED DATA","EVERYTHING EVERYWHERE LTD T/AS ORANGE -( EQUIPMENT ONLY)","2382161","http://opencorporates.com/companies/gb/2382161","771592016"
"London Borough of Redbridge","http://opendatacommunities.org/doc/london-borough-council/redbridge","1BOTHEROPI&E","Other Operating Income & Expenditure","1CTRADSURDEF","Trading Account Surpluses & Deficits","REV","Revenue","R9252","IT Services","04-SUPPLIES","Supplies And Services","04F","Communications and computing","5858","Phones","3253370","201307",03/10/2012 00:00:00,12.5,"76510","Telecommunication Services","REDACTED DATA","EVERYTHING EVERYWHERE LTD T/AS ORANGE -( EQUIPMENT ONLY)","2382161","http://opencorporates.com/companies/gb/2382161","771592016"
"London Borough of Redbridge","http://opendatacommunities.org/doc/london-borough-council/redbridge","1BOTHEROPI&E","Other Operating Income & Expenditure","1CTRADSURDEF","Trading Account Surpluses & Deficits","REV","Revenue","R9252","IT Services","04-SUPPLIES","Supplies And Services","04F","Communications and computing","5858","Phones","3253370","201307",03/10/2012 00:00:00,12.5,"76510","Telecommunication Services","REDACTED DATA","EVERYTHING EVERYWHERE LTD T/AS ORANGE -( EQUIPMENT ONLY)","2382161","http://opencorporates.com/companies/gb/2382161","771592016"
"London Borough of Redbridge","http://opendatacommunities.org/doc/london-borough-council/redbridge","1BOTHEROPI&E","Other Operating Income & Expenditure","1CTRADSURDEF","Trading Account Surpluses & Deficits","REV","Revenue","R9252","IT Services","04-SUPPLIES","Supplies And Services","04F","Communications and computing","5858","Phones","3253370","201307",03/10/2012 00:00:00,12.5,"76510","Telecommunication Services","REDACTED DATA","EVERYTHING EVERYWHERE LTD T/AS ORANGE -( EQUIPMENT ONLY)","2382161","http://opencorporates.com/companies/gb/2382161","771592016"
"London Borough of Redbridge","http://opendatacommunities.org/doc/london-borough-council/redbridge","1BOTHEROPI&E","Other Operating Income & Expenditure","1CTRADSURDEF","Trading Account Surpluses & Deficits","REV","Revenue","R9252","IT Services","04-SUPPLIES","Supplies And Services","04F","Communications and computing","5858","Phones","3253370","201307",03/10/2012 00:00:00,12.5,"76510","Telecommunication Services","REDACTED DATA","EVERYTHING EVERYWHERE LTD T/AS ORANGE -( EQUIPMENT ONLY)","2382161","http://opencorporates.com/companies/gb/2382161","771592016"
"London Borough of Redbridge","http://opendatacommunities.org/doc/london-borough-council/redbridge","1BOTHEROPI&E","Other Operating Income & Expenditure","1CTRADSURDEF","Trading Account Surpluses & Deficits","REV","Revenue","R9252","IT Services","04-SUPPLIES","Supplies And Services","04F","Communications and computing","5858","Phones","3253370","201307",03/10/2012 00:00:00,12.5,"76510","Telecommunication Services","REDACTED DATA","EVERYTHING EVERYWHERE LTD T/AS ORANGE -( EQUIPMENT ONLY)","2382161","http://opencorporates.com/companies/gb/2382161","771592016"
"London Borough of Redbridge","http://opendatacommunities.org/doc/london-borough-council/redbridge","1BOTHEROPI&E","Other Operating Income & Expenditure","1CTRADSURDEF","Trading Account Surpluses & Deficits","REV","Revenue","R9252","IT Services","04-SUPPLIES","Supplies And Services","04F","Communications and computing","5858","Phones","3253370","201307",03/10/2012 00:00:00,12.5,"76510","Telecommunication Services","REDACTED DATA","EVERYTHING EVERYWHERE LTD T/AS ORANGE -( EQUIPMENT ONLY)","2382161","http://opencorporates.com/companies/gb/2382161","771592016"
"London Borough of Redbridge","http://opendatacommunities.org/doc/london-borough-council/redbridge","1BOTHEROPI&E","Other Operating Income & Expenditure","1CTRADSURDEF","Trading Account Surpluses & Deficits","REV","Revenue","R9252","IT Services","04-SUPPLIES","Supplies And Services","04F","Communications and computing","5858","Phones","3253370","201307",03/10/2012 00:00:00,12.5,"76510","Telecommunication Services","REDACTED DATA","EVERYTHING EVERYWHERE LTD T/AS ORANGE -( EQUIPMENT ONLY)","2382161","http://opencorporates.com/companies/gb/2382161","771592016"
"London Borough of Redbridge","http://opendatacommunities.org/doc/london-borough-council/redbridge","1BOTHEROPI&E","Other Operating Income & Expenditure","1CTRADSURDEF","Trading Account Surpluses & Deficits","REV","Revenue","R9252","IT Services","04-SUPPLIES","Supplies And Services","04F","Communications and computing","5858","Phones","3253370","201307",03/10/2012 00:00:00,12.5,"76510","Telecommunication Services","REDACTED DATA","EVERYTHING EVERYWHERE LTD T/AS ORANGE -( EQUIPMENT ONLY)","2382161","http://opencorporates.com/companies/gb/2382161","771592016"
"London Borough of Redbridge","http://opendatacommunities.org/doc/london-borough-council/redbridge","1BOTHEROPI&E","Other Operating Income & Expenditure","1CTRADSURDEF","Trading Account Surpluses & Deficits","REV","Revenue","R9252","IT Services","04-SUPPLIES","Supplies And Services","04F","Communications and computing","5858","Phones","3253370","201307",03/10/2012 00:00:00,12.5,"76510","Telecommunication Services","REDACTED DATA","EVERYTHING EVERYWHERE LTD T/AS ORANGE -( EQUIPMENT ONLY)","2382161","http://opencorporates.com/companies/gb/2382161","771592016"
"London Borough of Redbridge","http://opendatacommunities.org/doc/london-borough-council/redbridge","1BOTHEROPI&E","Other Operating Income & Expenditure","1CTRADSURDEF","Trading Account Surpluses & Deficits","REV","Revenue","R9252","IT Services","04-SUPPLIES","Supplies And Services","04F","Communications and computing","5858","Phones","3253370","201307",03/10/2012 00:00:00,12.5,"76510","Telecommunication Services","REDACTED DATA","EVERYTHING EVERYWHERE LTD T/AS ORANGE -( EQUIPMENT ONLY)","2382161","http://opencorporates.com/companies/gb/2382161","771592016"
"London Borough of Redbridge","http://opendatacommunities.org/doc/london-borough-council/redbridge","1BOTHEROPI&E","Other Operating Income & Expenditure","1CTRADSURDEF","Trading Account Surpluses & Deficits","REV","Revenue","R9252","IT Services","04-SUPPLIES","Supplies And Services","04F","Communications and computing","5858","Phones","3253370","201307",03/10/2012 00:00:00,12.5,"76510","Telecommunication Services","REDACTED DATA","EVERYTHING EVERYWHERE LTD T/AS ORANGE -( EQUIPMENT ONLY)","2382161","http://opencorporates.com/companies/gb/2382161","771592016"
"London Borough of Redbridge","http://opendatacommunities.org/doc/london-borough-council/redbridge","1BOTHEROPI&E","Other Operating Income & Expenditure","1CTRADSURDEF","Trading Account Surpluses & Deficits","REV","Revenue","R9252","IT Services","04-SUPPLIES","Supplies And Services","04F","Communications and computing","5858","Phones","3253370","201307",03/10/2012 00:00:00,12.5,"76510","Telecommunication Services","REDACTED DATA","EVERYTHING EVERYWHERE LTD T/AS ORANGE -( EQUIPMENT ONLY)","2382161","http://opencorporates.com/companies/gb/2382161","771592016"
"London Borough of Redbridge","http://opendatacommunities.org/doc/london-borough-council/redbridge","2BENVIRONMEN","Environmental Services","2CCONSPROT","Consumer Protection","REV","Revenue","R6772","Licensing","04-SUPPLIES","Supplies And Services","04F","Communications and computing","5858","Phones","3253370","201307",03/10/2012 00:00:00,12.5,"76510","Telecommunication Services","REDACTED DATA","EVERYTHING EVERYWHERE LTD T/AS ORANGE -( EQUIPMENT ONLY)","2382161","http://opencorporates.com/companies/gb/2382161","771592016"
"London Borough of Redbridge","http://opendatacommunities.org/doc/london-borough-council/redbridge","3BNONSCHFUND","Non-School Funding","3CNONSCH","Non Schools","REV","Revenue","R3960","FiND","04-SUPPLIES","Supplies And Services","04F","Communications and computing","5858","Phones","3253370","201307",03/10/2012 00:00:00,12.5,"76510","Telecommunication Services","REDACTED DATA","EVERYTHING EVERYWHERE LTD T/AS ORANGE -( EQUIPMENT ONLY)","2382161","http://opencorporates.com/companies/gb/2382161","771592016"
"London Borough of Redbridge","http://opendatacommunities.org/doc/london-borough-council/redbridge","3BNONSCHFUND","Non-School Funding","3CNONSCH","Non Schools","REV","Revenue","R3960","FiND","04-SUPPLIES","Supplies And Services","04F","Communications and computing","5858","Phones","3253370","201307",03/10/2012 00:00:00,12.5,"76510","Telecommunication Services","REDACTED DATA","EVERYTHING EVERYWHERE LTD T/AS ORANGE -( EQUIPMENT ONLY)","2382161","http://opencorporates.com/companies/gb/2382161","771592016"
"London Borough of Redbridge","http://opendatacommunities.org/doc/london-borough-council/redbridge","3BNONSCHFUND","Non-School Funding","3CNONSCH","Non Schools","REV","Revenue","R3960","FiND","04-SUPPLIES","Supplies And Services","04F","Communications and computing","5858","Phones","3253370","201307",03/10/2012 00:00:00,12.5,"76510","Telecommunication Services","REDACTED DATA","EVERYTHING EVERYWHERE LTD T/AS ORANGE -( EQUIPMENT ONLY)","2382161","http://opencorporates.com/companies/gb/2382161","771592016"
"London Borough of Redbridge","http://opendatacommunities.org/doc/london-borough-council/redbridge","3BOPTIONHLDG","Optional Holding Accounts","3CYOUTH","Youth Service","REV","Revenue","R3371","LBR Costs","04-SUPPLIES","Supplies And Services","04F","Communications and computing","5858","Phones","3253370","201307",03/10/2012 00:00:00,12.5,"76510","Telecommunication Services","REDACTED DATA","EVERYTHING EVERYWHERE LTD T/AS ORANGE -( EQUIPMENT ONLY)","2382161","http://opencorporates.com/companies/gb/2382161","771592016"
"London Borough of Redbridge","http://opendatacommunities.org/doc/london-borough-council/redbridge","4BTRANSPORT","Transport Planning, Policy & Strategy","4CMANGT&SUPP","Management & Support Services","REV","Revenue","R7000","Highways Executive","04-SUPPLIES","Supplies And Services","04F","Communications and computing","5858","Phones","3253370","201307",03/10/2012 00:00:00,12.5,"76510","Telecommunication Services","REDACTED DATA","EVERYTHING EVERYWHERE LTD T/AS ORANGE -( EQUIPMENT ONLY)","2382161","http://opencorporates.com/companies/gb/2382161","771592016"
"London Borough of Redbridge","http://opendatacommunities.org/doc/london-borough-council/redbridge","4BTRANSPORT","Transport Planning, Policy & Strategy","4CMANGT&SUPP","Management & Support Services","REV","Revenue","R7000","Highways Executive","04-SUPPLIES","Supplies And Services","04F","Communications and computing","5858","Phones","3253370","201307",03/10/2012 00:00:00,12.5,"76510","Telecommunication Services","REDACTED DATA","EVERYTHING EVERYWHERE LTD T/AS ORANGE -( EQUIPMENT ONLY)","2382161","http://opencorporates.com/companies/gb/2382161","771592016"
"London Borough of Redbridge","http://opendatacommunities.org/doc/london-borough-council/redbridge","4BTRANSPORT","Transport Planning, Policy & Strategy","4CMANGT&SUPP","Management & Support Services","REV","Revenue","R7000","Highways Executive","04-SUPPLIES","Supplies And Services","04F","Communications and computing","5858","Phones","3253370","201307",03/10/2012 00:00:00,12.5,"76510","Telecommunication Services","REDACTED DATA","EVERYTHING EVERYWHERE LTD T/AS ORANGE -( EQUIPMENT ONLY)","2382161","http://opencorporates.com/companies/gb/2382161","771592016"
"London Borough of Redbridge","http://opendatacommunities.org/doc/london-borough-council/redbridge","4BTRANSPORT","Transport Planning, Policy & Strategy","4CMANGT&SUPP","Management & Support Services","REV","Revenue","R7000","Highways Executive","04-SUPPLIES","Supplies And Services","04F","Communications and computing","5858","Phones","3253370","201307",03/10/2012 00:00:00,12.5,"76510","Telecommunication Services","REDACTED DATA","EVERYTHING EVERYWHERE LTD T/AS ORANGE -( EQUIPMENT ONLY)","2382161","http://opencorporates.com/companies/gb/2382161","771592016"
"London Borough of Redbridge","http://opendatacommunities.org/doc/london-borough-council/redbridge","4BTRANSPORT","Transport Planning, Policy & Strategy","4CMANGT&SUPP","Management & Support Services","REV","Revenue","R7000","Highways Executive","04-SUPPLIES","Supplies And Services","04F","Communications and computing","5858","Phones","3253370","201307",03/10/2012 00:00:00,12.5,"76510","Telecommunication Services","REDACTED DATA","EVERYTHING EVERYWHERE LTD T/AS ORANGE -( EQUIPMENT ONLY)","2382161","http://opencorporates.com/companies/gb/2382161","771592016"
"London Borough of Redbridge","http://opendatacommunities.org/doc/london-borough-council/redbridge","4BTRANSPORT","Transport Planning, Policy & Strategy","4CMANGT&SUPP","Management & Support Services","REV","Revenue","R7000","Highways Executive","04-SUPPLIES","Supplies And Services","04F","Communications and computing","5858","Phones","3253370","201307",03/10/2012 00:00:00,12.5,"76510","Telecommunication Services","REDACTED DATA","EVERYTHING EVERYWHERE LTD T/AS ORANGE -( EQUIPMENT ONLY)","2382161","http://opencorporates.com/companies/gb/2382161","771592016"
"London Borough of Redbridge","http://opendatacommunities.org/doc/london-borough-council/redbridge","6BADULTSOCIA","Adult Social Care","6CSERVSTRAT","Service Strategy","REV","Revenue","R4008","Director of Adult Social Services","04-SUPPLIES","Supplies And Services","04F","Communications and computing","5858","Phones","3253370","201307",03/10/2012 00:00:00,12.5,"76510","Telecommunication Services","REDACTED DATA","EVERYTHING EVERYWHERE LTD T/AS ORANGE -( EQUIPMENT ONLY)","2382161","http://opencorporates.com/companies/gb/2382161","771592016"
"London Borough of Redbridge","http://opendatacommunities.org/doc/london-borough-council/redbridge","6BADULTSOCIA","Adult Social Care","6CSUPPSERMGT","Support Service & Management Costs","REV","Revenue","R4002","Strategy and Development","04-SUPPLIES","Supplies And Services","04F","Communications and computing","5858","Phones","3253370","201307",03/10/2012 00:00:00,12.5,"76510","Telecommunication Services","REDACTED DATA","EVERYTHING EVERYWHERE LTD T/AS ORANGE -( EQUIPMENT ONLY)","2382161","http://opencorporates.com/companies/gb/2382161","771592016"
"London Borough of Redbridge","http://opendatacommunities.org/doc/london-borough-council/redbridge","6BADULTSOCIA","Adult Social Care","6CSUPPSERMGT","Support Service & Management Costs","REV","Revenue","R4433","Care First Team","04-SUPPLIES","Supplies And Services","04F","Communications and computing","5858","Phones","3253370","201307",03/10/2012 00:00:00,12.5,"76510","Telecommunication Services","REDACTED DATA","EVERYTHING EVERYWHERE LTD T/AS ORANGE -( EQUIPMENT ONLY)","2382161","http://opencorporates.com/companies/gb/2382161","771592016"
"London Borough of Redbridge","http://opendatacommunities.org/doc/london-borough-council/redbridge","6BADULTSOCIA","Adult Social Care","6CSUPPSERMGT","Support Service & Management Costs","REV","Revenue","R4433","Care First Team","04-SUPPLIES","Supplies And Services","04F","Communications and computing","5858","Phones","3253370","201307",03/10/2012 00:00:00,12.5,"76510","Telecommunication Services","REDACTED DATA","EVERYTHING EVERYWHERE LTD T/AS ORANGE -( EQUIPMENT ONLY)","2382161","http://opencorporates.com/companies/gb/2382161","771592016"
"London Borough of Redbridge","http://opendatacommunities.org/doc/london-borough-council/redbridge","6BADULTSOCIA","Adult Social Care","6CSUPPSERMGT","Support Service & Management Costs","REV","Revenue","R4433","Care First Team","04-SUPPLIES","Supplies And Services","04F","Communications and computing","5858","Phones","3253370","201307",03/10/2012 00:00:00,12.5,"76510","Telecommunication Services","REDACTED DATA","EVERYTHING EVERYWHERE LTD T/AS ORANGE -( EQUIPMENT ONLY)","2382161","http://opencorporates.com/companies/gb/2382161","771592016"
"London Borough of Redbridge","http://opendatacommunities.org/doc/london-borough-council/redbridge","6BADULTSOCIA","Adult Social Care","6CSUPPSERMGT","Support Service & Management Costs","REV","Revenue","R4474","Resources Team","04-SUPPLIES","Supplies And Services","04F","Communications and computing","5858","Phones","3253370","201307",03/10/2012 00:00:00,12.5,"76510","Telecommunication Services","REDACTED DATA","EVERYTHING EVERYWHERE LTD T/AS ORANGE -( EQUIPMENT ONLY)","2382161","http://opencorporates.com/companies/gb/2382161","771592016"
"London Borough of Redbridge","http://opendatacommunities.org/doc/london-borough-council/redbridge","6BSOCIALSERV","Social Services","6CCHILLOOKED","Children Looked After","REV","Revenue","R2166","CP and EI - Child Protection Assmt Team Soc Care","04-SUPPLIES","Supplies And Services","04F","Communications and computing","5858","Phones","3253370","201307",03/10/2012 00:00:00,12.5,"76510","Telecommunication Services","REDACTED DATA","EVERYTHING EVERYWHERE LTD T/AS ORANGE -( EQUIPMENT ONLY)","2382161","http://opencorporates.com/companies/gb/2382161","771592016"
"London Borough of Redbridge","http://opendatacommunities.org/doc/london-borough-council/redbridge","6BSOCIALSERV","Social Services","6CCHILLOOKED","Children Looked After","REV","Revenue","R2178","CP and EI � Early Intervention and Family Support Team","04-SUPPLIES","Supplies And Services","04F","Communications and computing","5858","Phones","3253370","201307",03/10/2012 00:00:00,12.5,"76510","Telecommunication Services","REDACTED DATA","EVERYTHING EVERYWHERE LTD T/AS ORANGE -( EQUIPMENT ONLY)","2382161","http://opencorporates.com/companies/gb/2382161","771592016"
"London Borough of Redbridge","http://opendatacommunities.org/doc/london-borough-council/redbridge","7BCDC","Corporate & Democratic Core","7CCORPMGT","Corporate Management","REV","Revenue","R9804","Members Exp/Allowances","04-SUPPLIES","Supplies And Services","04F","Communications and computing","5858","Phones","3253370","201307",03/10/2012 00:00:00,12.5,"76510","Telecommunication Services","REDACTED DATA","EVERYTHING EVERYWHERE LTD T/AS ORANGE -( EQUIPMENT ONLY)","2382161","http://opencorporates.com/companies/gb/2382161","771592016"
"London Borough of Redbridge","http://opendatacommunities.org/doc/london-borough-council/redbridge","7BCDC","Corporate & Democratic Core","7CCORPMGT","Corporate Management","REV","Revenue","R9804","Members Exp/Allowances","04-SUPPLIES","Supplies And Services","04F","Communications and computing","5858","Phones","3253370","201307",03/10/2012 00:00:00,12.5,"76510","Telecommunication Services","REDACTED DATA","EVERYTHING EVERYWHERE LTD T/AS ORANGE -( EQUIPMENT ONLY)","2382161","http://opencorporates.com/companies/gb/2382161","771592016"
"London Borough of Redbridge","http://opendatacommunities.org/doc/london-borough-council/redbridge","9BNONBVO","Outside the BVACOP Objective Structure","9CNONBVO","Outside the BVACOP Objective Structure","REV","Revenue","R7602","Routine Sweeping DSO","04-SUPPLIES","Supplies And Services","04F","Communications and computing","5858","Phones","3253370","201307",03/10/2012 00:00:00,12.5,"76510","Telecommunication Services","REDACTED DATA","EVERYTHING EVERYWHERE LTD T/AS ORANGE -( EQUIPMENT ONLY)","2382161","http://opencorporates.com/companies/gb/2382161","771592016"
"London Borough of Redbridge","http://opendatacommunities.org/doc/london-borough-council/redbridge","9BNONBVO","Outside the BVACOP Objective Structure","9CNONBVO","Outside the BVACOP Objective Structure","REV","Revenue","R7602","Routine Sweeping DSO","04-SUPPLIES","Supplies And Services","04F","Communications and computing","5858","Phones","3253370","201307",03/10/2012 00:00:00,12.5,"76510","Telecommunication Services","REDACTED DATA","EVERYTHING EVERYWHERE LTD T/AS ORANGE -( EQUIPMENT ONLY)","2382161","http://opencorporates.com/companies/gb/2382161","771592016"
"London Borough of Redbridge","http://opendatacommunities.org/doc/london-borough-council/redbridge","9BNONBVO","Outside the BVACOP Objective Structure","9CNONBVO","Outside the BVACOP Objective Structure","REV","Revenue","R7602","Routine Sweeping DSO","04-SUPPLIES","Supplies And Services","04F","Communications and computing","5858","Phones","3253370","201307",03/10/2012 00:00:00,12.5,"76510","Telecommunication Services","REDACTED DATA","EVERYTHING EVERYWHERE LTD T/AS ORANGE -( EQUIPMENT ONLY)","2382161","http://opencorporates.com/companies/gb/2382161","771592016"
"London Borough of Redbridge","http://opendatacommunities.org/doc/london-borough-council/redbridge","9BNONBVO","Outside the BVACOP Objective Structure","9CNONBVO","Outside the BVACOP Objective Structure","REV","Revenue","R7602","Routine Sweeping DSO","04-SUPPLIES","Supplies And Services","04F","Communications and computing","5858","Phones","3253370","201307",03/10/2012 00:00:00,12.5,"76510","Telecommunication Services","REDACTED DATA","EVERYTHING EVERYWHERE LTD T/AS ORANGE -( EQUIPMENT ONLY)","2382161","http://opencorporates.com/companies/gb/2382161","771592016"
"London Borough of Redbridge","http://opendatacommunities.org/doc/london-borough-council/redbridge","9BNONBVO","Outside the BVACOP Objective Structure","9CNONBVO","Outside the BVACOP Objective Structure","REV","Revenue","R7602","Routine Sweeping DSO","04-SUPPLIES","Supplies And Services","04F","Communications and computing","5858","Phones","3253370","201307",03/10/2012 00:00:00,12.5,"76510","Telecommunication Services","REDACTED DATA","EVERYTHING EVERYWHERE LTD T/AS ORANGE -( EQUIPMENT ONLY)","2382161","http://opencorporates.com/companies/gb/2382161","771592016"
"London Borough of Redbridge","http://opendatacommunities.org/doc/london-borough-council/redbridge","9BNONBVO","Outside the BVACOP Objective Structure","9CNONBVO","Outside the BVACOP Objective Structure","REV","Revenue","R7702","Vehicle Workshop","04-SUPPLIES","Supplies And Services","04F","Communications and computing","5858","Phones","3253370","201307",03/10/2012 00:00:00,12.5,"76510","Telecommunication Services","REDACTED DATA","EVERYTHING EVERYWHERE LTD T/AS ORANGE -( EQUIPMENT ONLY)","2382161","http://opencorporates.com/companies/gb/2382161","771592016"
"London Borough of Redbridge","http://opendatacommunities.org/doc/london-borough-council/redbridge","9BNONBVO","Outside the BVACOP Objective Structure","9CNONBVO","Outside the BVACOP Objective Structure","REV","Revenue","R7702","Vehicle Workshop","04-SUPPLIES","Supplies And Services","04F","Communications and computing","5858","Phones","3253370","201307",03/10/2012 00:00:00,12.5,"76510","Telecommunication Services","REDACTED DATA","EVERYTHING EVERYWHERE LTD T/AS ORANGE -( EQUIPMENT ONLY)","2382161","http://opencorporates.com/companies/gb/2382161","771592016"
"London Borough of Redbridge","http://opendatacommunities.org/doc/london-borough-council/redbridge","3BLEACENTFND","LEA Centrally Held School Funds","3CNONSCH","Non Schools","REV","Revenue","R2004","SEN and CD Res Placements DSG","05-THIRD","Third Party Payments","05H","Private contractors","6906","Independent Schools","60187929","201307",31/08/2012 00:00:00,-2150,"67981","Schools - Local Authority","REDACTED DATA","ST JOHN'S R.C. SCHOOL","",,""
"London Borough of Redbridge","http://opendatacommunities.org/doc/london-borough-council/redbridge","6BADULTSOCIA","Adult Social Care","6CADPHYSDIS","Adults Under 65 with Phys Disab or Sensory Impair","REV","Revenue","R4214","PD Direct Payments","06-TRANSFER","Transfer Payments","06B","Social Services Clients","7053","Direct Payments","3253694","201307",22/10/2012 00:00:00,-2133.39,"56800","Payroll Services","REDACTED DATA","HUMAN MANAGEMENT ASSISTANCE-CLIENT ACCOUNT","4752026","http://opencorporates.com/companies/gb/4752026","815230071"
"London Borough of Redbridge","http://opendatacommunities.org/doc/london-borough-council/redbridge","6BADULTSOCIA","Adult Social Care","6COLDINCMENT","Older People (65 or over) incl. Older Mentally Ill","REV","Revenue","R4385","OP Nursing","09-INCOME","Income","09C","Customer & Client Receipts","8557","Nursing Home Charges","90360507","201307",12/10/2012 00:00:00,-3993.04,"64710","Residential Care Homes","REDACTED DATA","ABBEY CARE COMPLEX LTD","4832515","http://opencorporates.com/companies/gb/4832515",""
"London Borough of Redbridge","http://opendatacommunities.org/doc/london-borough-council/redbridge","6BADULTSOCIA","Adult Social Care","6COLDINCMENT","Older People (65 or over) incl. Older Mentally Ill","REV","Revenue","R4385","OP Nursing","09-INCOME","Income","09C","Customer & Client Receipts","8557","Nursing Home Charges","90360507","201307",12/10/2012 00:00:00,-1977.12,"64710","Residential Care Homes","REDACTED DATA","ABBEY CARE COMPLEX LTD","4832515","http://opencorporates.com/companies/gb/4832515",""
"London Borough of Redbridge","http://opendatacommunities.org/doc/london-borough-council/redbridge","6BADULTSOCIA","Adult Social Care","6COLDINCMENT","Older People (65 or over) incl. Older Mentally Ill","REV","Revenue","R4385","OP Nursing","05-THIRD","Third Party Payments","05H","Private contractors","6909","Nursing Homes","90360507","201307",12/10/2012 00:00:00,3993.04,"64710","Residential Care Homes","REDACTED DATA","ABBEY CARE COMPLEX LTD","4832515","http://opencorporates.com/companies/gb/4832515",""
"London Borough of Redbridge","http://opendatacommunities.org/doc/london-borough-council/redbridge","6BADULTSOCIA","Adult Social Care","6COLDINCMENT","Older People (65 or over) incl. Older Mentally Ill","REV","Revenue","R4378","OP Residential","05-THIRD","Third Party Payments","05F","Voluntary associations","6802","Residential Homes","90360707","201307",12/10/2012 00:00:00,-2471.55,"64710","Residential Care Homes","REDACTED DATA","ROSEWOOD LODGE","",,""
"London Borough of Redbridge","http://opendatacommunities.org/doc/london-borough-council/redbridge","6BADULTSOCIA","Adult Social Care","6COLDINCMENT","Older People (65 or over) incl. Older Mentally Ill","REV","Revenue","R4378","OP Residential","09-INCOME","Income","09C","Customer & Client Receipts","8555","Accommodation Charges","90360707","201307",12/10/2012 00:00:00,496.69,"64710","Residential Care Homes","REDACTED DATA","ROSEWOOD LODGE","",,""
"London Borough of Redbridge","http://opendatacommunities.org/doc/london-borough-council/redbridge","6BADULTSOCIA","Adult Social Care","6COLDINCMENT","Older People (65 or over) incl. Older Mentally Ill","REV","Revenue","R4211","Older People Direct Payments","06-TRANSFER","Transfer Payments","06B","Social Services Clients","7053","Direct Payments","3253692","201307",22/10/2012 00:00:00,-1901.28,"56800","Payroll Services","REDACTED DATA","HUMAN MANAGEMENT ASSISTANCE-CLIENT ACCOUNT","4752026","http://opencorporates.com/companies/gb/4752026","815230071"
"London Borough of Redbridge","http://opendatacommunities.org/doc/london-borough-council/redbridge","6BADULTSOCIA","Adult Social Care","6CADPHYSDIS","Adults Under 65 with Phys Disab or Sensory Impair","REV","Revenue","R4214","PD Direct Payments","06-TRANSFER","Transfer Payments","06B","Social Services Clients","7053","Direct Payments","3253513","201307",22/10/2012 00:00:00,-1883.66,"56800","Payroll Services","REDACTED DATA","HUMAN MANAGEMENT ASSISTANCE-CLIENT ACCOUNT","4752026","http://opencorporates.com/companies/gb/4752026","815230071"
"London Borough of Redbridge","http://opendatacommunities.org/doc/london-borough-council/redbridge","6BADULTSOCIA","Adult Social Care","6COLDINCMENT","Older People (65 or over) incl. Older Mentally Ill","REV","Revenue","R4020","Carers Older People Direct Payments","06-TRANSFER","Transfer Payments","06B","Social Services Clients","7053","Direct Payments","3253865","201307",22/10/2012 00:00:00,-1833.48,"56800","Payroll Services","REDACTED DATA","HUMAN MANAGEMENT ASSISTANCE-CLIENT ACCOUNT","4752026","http://opencorporates.com/companies/gb/4752026","815230071"
"London Borough of Redbridge","http://opendatacommunities.org/doc/london-borough-council/redbridge","6BADULTSOCIA","Adult Social Care","6CADPHYSDIS","Adults Under 65 with Phys Disab or Sensory Impair","REV","Revenue","R4214","PD Direct Payments","06-TRANSFER","Transfer Payments","06B","Social Services Clients","7053","Direct Payments","3253732","201307",22/10/2012 00:00:00,-1297.57,"90005","Home Care Services DP","REDACTED DATA","REDACTED DATA","",,""
"London Borough of Redbridge","http://opendatacommunities.org/doc/london-borough-council/redbridge","6BADULTSOCIA","Adult Social Care","6CADPHYSDIS","Adults Under 65 with Phys Disab or Sensory Impair","REV","Revenue","R4214","PD Direct Payments","06-TRANSFER","Transfer Payments","06B","Social Services Clients","7053","Direct Payments","3253732","201307",22/10/2012 00:00:00,-457.65,"90005","Home Care Services DP","REDACTED DATA","REDACTED DATA","",,""
"London Borough of Redbridge","http://opendatacommunities.org/doc/london-borough-council/redbridge","6BADULTSOCIA","Adult Social Care","6COLDINCMENT","Older People (65 or over) incl. Older Mentally Ill","REV","Revenue","R4378","OP Residential","05-THIRD","Third Party Payments","05F","Voluntary associations","6802","Residential Homes","90360668","201307",12/10/2012 00:00:00,-3830.91,"53350","Nursing Homes","REDACTED DATA","JEWISH CARE (MERIT  HOUSE)","2447900","http://opencorporates.com/companies/gb/2447900","587033133"
"London Borough of Redbridge","http://opendatacommunities.org/doc/london-borough-council/redbridge","6BADULTSOCIA","Adult Social Care","6COLDINCMENT","Older People (65 or over) incl. Older Mentally Ill","REV","Revenue","R4378","OP Residential","09-INCOME","Income","09C","Customer & Client Receipts","8555","Accommodation Charges","90360668","201307",12/10/2012 00:00:00,-238.4,"53350","Nursing Homes","REDACTED DATA","JEWISH CARE (MERIT  HOUSE)","2447900","http://opencorporates.com/companies/gb/2447900","587033133"
"London Borough of Redbridge","http://opendatacommunities.org/doc/london-borough-council/redbridge","6BADULTSOCIA","Adult Social Care","6COLDINCMENT","Older People (65 or over) incl. Older Mentally Ill","REV","Revenue","R4378","OP Residential","09-INCOME","Income","09C","Customer & Client Receipts","8555","Accommodation Charges","90360668","201307",12/10/2012 00:00:00,-102.17,"53350","Nursing Homes","REDACTED DATA","JEWISH CARE (MERIT  HOUSE)","2447900","http://opencorporates.com/companies/gb/2447900","587033133"
"London Borough of Redbridge","http://opendatacommunities.org/doc/london-borough-council/redbridge","6BADULTSOCIA","Adult Social Care","6COLDINCMENT","Older People (65 or over) incl. Older Mentally Ill","REV","Revenue","R4378","OP Residential","05-THIRD","Third Party Payments","05F","Voluntary associations","6802","Residential Homes","90360668","201307",12/10/2012 00:00:00,289.13,"53350","Nursing Homes","REDACTED DATA","JEWISH CARE (MERIT  HOUSE)","2447900","http://opencorporates.com/companies/gb/2447900","587033133"
"London Borough of Redbridge","http://opendatacommunities.org/doc/london-borough-council/redbridge","6BADULTSOCIA","Adult Social Care","6COLDINCMENT","Older People (65 or over) incl. Older Mentally Ill","REV","Revenue","R4378","OP Residential","05-THIRD","Third Party Payments","05F","Voluntary associations","6802","Residential Homes","90360668","201307",12/10/2012 00:00:00,433.69,"53350","Nursing Homes","REDACTED DATA","JEWISH CARE (MERIT  HOUSE)","2447900","http://opencorporates.com/companies/gb/2447900","587033133"
"London Borough of Redbridge","http://opendatacommunities.org/doc/london-borough-council/redbridge","6BADULTSOCIA","Adult Social Care","6COLDINCMENT","Older People (65 or over) incl. Older Mentally Ill","REV","Revenue","R4378","OP Residential","05-THIRD","Third Party Payments","05F","Voluntary associations","6802","Residential Homes","90360668","201307",12/10/2012 00:00:00,809.56,"53350","Nursing Homes","REDACTED DATA","JEWISH CARE (MERIT  HOUSE)","2447900","http://opencorporates.com/companies/gb/2447900","587033133"
"London Borough of Redbridge","http://opendatacommunities.org/doc/london-borough-council/redbridge","6BADULTSOCIA","Adult Social Care","6COLDINCMENT","Older People (65 or over) incl. Older Mentally Ill","REV","Revenue","R4378","OP Residential","09-INCOME","Income","09C","Customer & Client Receipts","8555","Accommodation Charges","90360668","201307",12/10/2012 00:00:00,902.51,"53350","Nursing Homes","REDACTED DATA","JEWISH CARE (MERIT  HOUSE)","2447900","http://opencorporates.com/companies/gb/2447900","587033133"
"London Borough of Redbridge","http://opendatacommunities.org/doc/london-borough-council/redbridge","9BNONBVO","Outside the BVACOP Objective Structure","9CNONBVO","Outside the BVACOP Objective Structure","BAL","Balance Sheet","B0006","Mech Engineerng Store","99-NONBV","Capital, Balance Sheet and Control","50K","Current Assets","9407","Variation A/C - Payments","633793","201306",02/08/2012 00:00:00,-1390,"20390","Commercial Vehicle Servicing, Repairs, Parts and Accessories","REDACTED DATA","EMINOX LTD","1349209","http://opencorporates.com/companies/gb/1349209","310618400"
"London Borough of Redbridge","http://opendatacommunities.org/doc/london-borough-council/redbridge","6BADULTSOCIA","Adult Social Care","6COLDINCMENT","Older People (65 or over) incl. Older Mentally Ill","REV","Revenue","R4378","OP Residential","05-THIRD","Third Party Payments","05F","Voluntary associations","6802","Residential Homes","90360688","201307",12/10/2012 00:00:00,-2688.27,"53350","Nursing Homes","REDACTED DATA","JEWISH CARE (MERIT  HOUSE)","2447900","http://opencorporates.com/companies/gb/2447900","587033133"
"London Borough of Redbridge","http://opendatacommunities.org/doc/london-borough-council/redbridge","6BADULTSOCIA","Adult Social Care","6COLDINCMENT","Older People (65 or over) incl. Older Mentally Ill","REV","Revenue","R4378","OP Residential","09-INCOME","Income","09C","Customer & Client Receipts","8555","Accommodation Charges","90360688","201307",12/10/2012 00:00:00,-53.25,"53350","Nursing Homes","REDACTED DATA","JEWISH CARE (MERIT  HOUSE)","2447900","http://opencorporates.com/companies/gb/2447900","587033133"
"London Borough of Redbridge","http://opendatacommunities.org/doc/london-borough-council/redbridge","6BADULTSOCIA","Adult Social Care","6COLDINCMENT","Older People (65 or over) incl. Older Mentally Ill","REV","Revenue","R4378","OP Residential","05-THIRD","Third Party Payments","05F","Voluntary associations","6802","Residential Homes","90360688","201307",12/10/2012 00:00:00,195.51,"53350","Nursing Homes","REDACTED DATA","JEWISH CARE (MERIT  HOUSE)","2447900","http://opencorporates.com/companies/gb/2447900","587033133"
"London Borough of Redbridge","http://opendatacommunities.org/doc/london-borough-council/redbridge","6BADULTSOCIA","Adult Social Care","6COLDINCMENT","Older People (65 or over) incl. Older Mentally Ill","REV","Revenue","R4378","OP Residential","05-THIRD","Third Party Payments","05F","Voluntary associations","6802","Residential Homes","90360688","201307",12/10/2012 00:00:00,325.85,"53350","Nursing Homes","REDACTED DATA","JEWISH CARE (MERIT  HOUSE)","2447900","http://opencorporates.com/companies/gb/2447900","587033133"
"London Borough of Redbridge","http://opendatacommunities.org/doc/london-borough-council/redbridge","6BADULTSOCIA","Adult Social Care","6COLDINCMENT","Older People (65 or over) incl. Older Mentally Ill","REV","Revenue","R4378","OP Residential","09-INCOME","Income","09C","Customer & Client Receipts","8555","Accommodation Charges","90360688","201307",12/10/2012 00:00:00,585.75,"53350","Nursing Homes","REDACTED DATA","JEWISH CARE (MERIT  HOUSE)","2447900","http://opencorporates.com/companies/gb/2447900","587033133"
"London Borough of Redbridge","http://opendatacommunities.org/doc/london-borough-council/redbridge","6BADULTSOCIA","Adult Social Care","6CADPHYSDIS","Adults Under 65 with Phys Disab or Sensory Impair","REV","Revenue","R4214","PD Direct Payments","06-TRANSFER","Transfer Payments","06B","Social Services Clients","7053","Direct Payments","3253596","201307",22/10/2012 00:00:00,-1615.65,"56800","Payroll Services","REDACTED DATA","HUMAN MANAGEMENT ASSISTANCE-CLIENT ACCOUNT","4752026","http://opencorporates.com/companies/gb/4752026","815230071"
"London Borough of Redbridge","http://opendatacommunities.org/doc/london-borough-council/redbridge","6BADULTSOCIA","Adult Social Care","6CADLEARNDIS","Adults Under 65 with Learning Disabilities","REV","Revenue","R4022","Carers LD Direct Payments","06-TRANSFER","Transfer Payments","06B","Social Services Clients","7053","Direct Payments","3253832","201307",22/10/2012 00:00:00,-1611.86,"56800","Payroll Services","REDACTED DATA","HUMAN MANAGEMENT ASSISTANCE-CLIENT ACCOUNT","4752026","http://opencorporates.com/companies/gb/4752026","815230071"
"London Borough of Redbridge","http://opendatacommunities.org/doc/london-borough-council/redbridge","6BADULTSOCIA","Adult Social Care","6COTHADSERV","Other Adult Services","REV","Revenue","R4389","PCT Older Person Home Care","05-THIRD","Third Party Payments","05A","Independent units within the council","6502","Agency Homecare (Payments To Independent Units)","90358839","201307",05/10/2012 00:00:00,-1583.49,"43419","Home Care Services","REDACTED DATA","FASTFLOW DE VERE CARE","",,""
"London Borough of Redbridge","http://opendatacommunities.org/doc/london-borough-council/redbridge","6BADULTSOCIA","Adult Social Care","6COLDINCMENT","Older People (65 or over) incl. Older Mentally Ill","REV","Revenue","R4385","OP Nursing","05-THIRD","Third Party Payments","05H","Private contractors","6909","Nursing Homes","90360995","201307",12/10/2012 00:00:00,-1568.69,"53350","Nursing Homes","REDACTED DATA","QUEENS COURT NURSING HOME","",,""
"London Borough of Redbridge","http://opendatacommunities.org/doc/london-borough-council/redbridge","6BADULTSOCIA","Adult Social Care","6COTHADSERV","Other Adult Services","REV","Revenue","R4389","PCT Older Person Home Care","05-THIRD","Third Party Payments","05A","Independent units within the council","6502","Agency Homecare (Payments To Independent Units)","90362697","201307",09/10/2012 00:00:00,-1565.27,"43419","Home Care Services","REDACTED DATA","FASTFLOW DE VERE CARE","",,""
"London Borough of Redbridge","http://opendatacommunities.org/doc/london-borough-council/redbridge","6BADULTSOCIA","Adult Social Care","6COTHADSERV","Other Adult Services","REV","Revenue","R4389","PCT Older Person Home Care","05-THIRD","Third Party Payments","05A","Independent units within the council","6502","Agency Homecare (Payments To Independent Units)","90362807","201307",19/10/2012 00:00:00,-1563.47,"43419","Home Care Services","REDACTED DATA","FASTFLOW DE VERE CARE","",,""
"London Borough of Redbridge","http://opendatacommunities.org/doc/london-borough-council/redbridge","6BADULTSOCIA","Adult Social Care","6COLDINCMENT","Older People (65 or over) incl. Older Mentally Ill","REV","Revenue","R4378","OP Residential","05-THIRD","Third Party Payments","05F","Voluntary associations","6802","Residential Homes","90360884","201307",12/10/2012 00:00:00,-3526.34,"64710","Residential Care Homes","REDACTED DATA","HOMESDALE (WOODFORD BAPTIST HOMES) LTD (KENISTON)","",,""
"London Borough of Redbridge","http://opendatacommunities.org/doc/london-borough-council/redbridge","6BADULTSOCIA","Adult Social Care","6COLDINCMENT","Older People (65 or over) incl. Older Mentally Ill","REV","Revenue","R4378","OP Residential","09-INCOME","Income","09C","Customer & Client Receipts","8555","Accommodation Charges","90360884","201307",12/10/2012 00:00:00,-489.43,"64710","Residential Care Homes","REDACTED DATA","HOMESDALE (WOODFORD BAPTIST HOMES) LTD (KENISTON)","",,""
"London Borough of Redbridge","http://opendatacommunities.org/doc/london-borough-council/redbridge","6BADULTSOCIA","Adult Social Care","6COLDINCMENT","Older People (65 or over) incl. Older Mentally Ill","REV","Revenue","R4378","OP Residential","09-INCOME","Income","09C","Customer & Client Receipts","8555","Accommodation Charges","90360884","201307",12/10/2012 00:00:00,848.34,"64710","Residential Care Homes","REDACTED DATA","HOMESDALE (WOODFORD BAPTIST HOMES) LTD (KENISTON)","",,""
"London Borough of Redbridge","http://opendatacommunities.org/doc/london-borough-council/redbridge","6BADULTSOCIA","Adult Social Care","6COLDINCMENT","Older People (65 or over) incl. Older Mentally Ill","REV","Revenue","R4378","OP Residential","05-THIRD","Third Party Payments","05F","Voluntary associations","6802","Residential Homes","90360884","201307",12/10/2012 00:00:00,1627.54,"64710","Residential Care Homes","REDACTED DATA","HOMESDALE (WOODFORD BAPTIST HOMES) LTD (KENISTON)","",,""
"London Borough of Redbridge","http://opendatacommunities.org/doc/london-borough-council/redbridge","6BADULTSOCIA","Adult Social Care","6COLDINCMENT","Older People (65 or over) incl. Older Mentally Ill","REV","Revenue","R4378","OP Residential","05-THIRD","Third Party Payments","05F","Voluntary associations","6802","Residential Homes","90356951","201307",05/10/2012 00:00:00,-2538.16,"53350","Nursing Homes","REDACTED DATA","ASTON GRANGE LIMITED 2003","",,""
"London Borough of Redbridge","http://opendatacommunities.org/doc/london-borough-council/redbridge","6BADULTSOCIA","Adult Social Care","6COLDINCMENT","Older People (65 or over) incl. Older Mentally Ill","REV","Revenue","R4378","OP Residential","09-INCOME","Income","09C","Customer & Client Receipts","8555","Accommodation Charges","90356951","201307",05/10/2012 00:00:00,-187.31,"53350","Nursing Homes","REDACTED DATA","ASTON GRANGE LIMITED 2003","",,""
"London Borough of Redbridge","http://opendatacommunities.org/doc/london-borough-council/redbridge","6BADULTSOCIA","Adult Social Care","6COLDINCMENT","Older People (65 or over) incl. Older Mentally Ill","REV","Revenue","R4378","OP Residential","05-THIRD","Third Party Payments","05F","Voluntary associations","6802","Residential Homes","90356951","201307",05/10/2012 00:00:00,-124.29,"53350","Nursing Homes","REDACTED DATA","ASTON GRANGE LIMITED 2003","",,""
"London Borough of Redbridge","http://opendatacommunities.org/doc/london-borough-council/redbridge","6BADULTSOCIA","Adult Social Care","6COLDINCMENT","Older People (65 or over) incl. Older Mentally Ill","REV","Revenue","R4378","OP Residential","05-THIRD","Third Party Payments","05F","Voluntary associations","6802","Residential Homes","90356951","201307",05/10/2012 00:00:00,47.14,"53350","Nursing Homes","REDACTED DATA","ASTON GRANGE LIMITED 2003","",,""
"London Borough of Redbridge","http://opendatacommunities.org/doc/london-borough-council/redbridge","6BADULTSOCIA","Adult Social Care","6COLDINCMENT","Older People (65 or over) incl. Older Mentally Ill","REV","Revenue","R4378","OP Residential","09-INCOME","Income","09C","Customer & Client Receipts","8555","Accommodation Charges","90356951","201307",05/10/2012 00:00:00,493.83,"53350","Nursing Homes","REDACTED DATA","ASTON GRANGE LIMITED 2003","",,""
"London Borough of Redbridge","http://opendatacommunities.org/doc/london-borough-council/redbridge","6BADULTSOCIA","Adult Social Care","6COLDINCMENT","Older People (65 or over) incl. Older Mentally Ill","REV","Revenue","R4378","OP Residential","05-THIRD","Third Party Payments","05F","Voluntary associations","6802","Residential Homes","90356951","201307",05/10/2012 00:00:00,770.2,"53350","Nursing Homes","REDACTED DATA","ASTON GRANGE LIMITED 2003","",,""
"London Borough of Redbridge","http://opendatacommunities.org/doc/london-borough-council/redbridge","6BADULTSOCIA","Adult Social Care","6COLDINCMENT","Older People (65 or over) incl. Older Mentally Ill","REV","Revenue","R4385","OP Nursing","05-THIRD","Third Party Payments","05H","Private contractors","6909","Nursing Homes","90356940","201307",12/09/2012 00:00:00,-1645.84,"53350","Nursing Homes","REDACTED DATA","ASHDOWNE CARE LTD","",,""
"London Borough of Redbridge","http://opendatacommunities.org/doc/london-borough-council/redbridge","6BADULTSOCIA","Adult Social Care","6COLDINCMENT","Older People (65 or over) incl. Older Mentally Ill","REV","Revenue","R4385","OP Nursing","05-THIRD","Third Party Payments","05H","Private contractors","6909","Nursing Homes","90356940","201307",12/09/2012 00:00:00,243.83,"53350","Nursing Homes","REDACTED DATA","ASHDOWNE CARE LTD","",,""
"London Borough of Redbridge","http://opendatacommunities.org/doc/london-borough-council/redbridge","6BADULTSOCIA","Adult Social Care","6COLDINCMENT","Older People (65 or over) incl. Older Mentally Ill","REV","Revenue","R4378","OP Residential","05-THIRD","Third Party Payments","05F","Voluntary associations","6802","Residential Homes","90360703","201307",12/10/2012 00:00:00,-1359.35,"64710","Residential Care Homes","REDACTED DATA","ROSEWOOD LODGE","",,""
"London Borough of Redbridge","http://opendatacommunities.org/doc/london-borough-council/redbridge","6BADULTSOCIA","Adult Social Care","6COLDINCMENT","Older People (65 or over) incl. Older Mentally Ill","REV","Revenue","R4211","Older People Direct Payments","06-TRANSFER","Transfer Payments","06B","Social Services Clients","7053","Direct Payments","3253718","201307",22/10/2012 00:00:00,-1345.24,"56800","Payroll Services","REDACTED DATA","HUMAN MANAGEMENT ASSISTANCE-CLIENT ACCOUNT","4752026","http://opencorporates.com/companies/gb/4752026","815230071"
"London Borough of Redbridge","http://opendatacommunities.org/doc/london-borough-council/redbridge","6BADULTSOCIA","Adult Social Care","6COLDINCMENT","Older People (65 or over) incl. Older Mentally Ill","REV","Revenue","R4211","Older People Direct Payments","06-TRANSFER","Transfer Payments","06B","Social Services Clients","7053","Direct Payments","3253564","201307",22/10/2012 00:00:00,-1265.93,"56800","Payroll Services","REDACTED DATA","HUMAN MANAGEMENT ASSISTANCE-CLIENT ACCOUNT","4752026","http://opencorporates.com/companies/gb/4752026","815230071"
"London Borough of Redbridge","http://opendatacommunities.org/doc/london-borough-council/redbridge","6BADULTSOCIA","Adult Social Care","6CADPHYSDIS","Adults Under 65 with Phys Disab or Sensory Impair","REV","Revenue","R4214","PD Direct Payments","06-TRANSFER","Transfer Payments","06B","Social Services Clients","7053","Direct Payments","3253661","201307",22/10/2012 00:00:00,-3386.94,"56800","Payroll Services","REDACTED DATA","HUMAN MANAGEMENT ASSISTANCE-CLIENT ACCOUNT","4752026","http://opencorporates.com/companies/gb/4752026","815230071"
"London Borough of Redbridge","http://opendatacommunities.org/doc/london-borough-council/redbridge","6BADULTSOCIA","Adult Social Care","6CADPHYSDIS","Adults Under 65 with Phys Disab or Sensory Impair","REV","Revenue","R4214","PD Direct Payments","09-INCOME","Income","09C","Customer & Client Receipts","8545","Direct Payments Income","3253661","201307",22/10/2012 00:00:00,-108.05,"56800","Payroll Services","REDACTED DATA","HUMAN MANAGEMENT ASSISTANCE-CLIENT ACCOUNT","4752026","http://opencorporates.com/companies/gb/4752026","815230071"
"London Borough of Redbridge","http://opendatacommunities.org/doc/london-borough-council/redbridge","6BADULTSOCIA","Adult Social Care","6CADPHYSDIS","Adults Under 65 with Phys Disab or Sensory Impair","REV","Revenue","R4214","PD Direct Payments","09-INCOME","Income","09C","Customer & Client Receipts","8545","Direct Payments Income","3253661","201307",22/10/2012 00:00:00,178.45,"56800","Payroll Services","REDACTED DATA","HUMAN MANAGEMENT ASSISTANCE-CLIENT ACCOUNT","4752026","http://opencorporates.com/companies/gb/4752026","815230071"
"London Borough of Redbridge","http://opendatacommunities.org/doc/london-borough-council/redbridge","6BADULTSOCIA","Adult Social Care","6CADPHYSDIS","Adults Under 65 with Phys Disab or Sensory Impair","REV","Revenue","R4214","PD Direct Payments","06-TRANSFER","Transfer Payments","06B","Social Services Clients","7053","Direct Payments","3253661","201307",22/10/2012 00:00:00,2050.81,"56800","Payroll Services","REDACTED DATA","HUMAN MANAGEMENT ASSISTANCE-CLIENT ACCOUNT","4752026","http://opencorporates.com/companies/gb/4752026","815230071"
"London Borough of Redbridge","http://opendatacommunities.org/doc/london-borough-council/redbridge","6BADULTSOCIA","Adult Social Care","6COTHADSERV","Other Adult Services","REV","Revenue","R4389","PCT Older Person Home Care","05-THIRD","Third Party Payments","05A","Independent units within the council","6502","Agency Homecare (Payments To Independent Units)","90361640","201307",12/10/2012 00:00:00,-1107.8,"53280","Nursing Agencies","REDACTED DATA","IMMACULATE HEALTHCARE SERVICES LIMITED","",,""
"London Borough of Redbridge","http://opendatacommunities.org/doc/london-borough-council/redbridge","6BADULTSOCIA","Adult Social Care","6CADLEARNDIS","Adults Under 65 with Learning Disabilities","REV","Revenue","R4383","LD - External Day Care","05-THIRD","Third Party Payments","05H","Private contractors","6904","Day Centres","90357081","201307",28/09/2012 00:00:00,-1099,"29360","Educational Services","REDACTED DATA","ST MARK�S SOCIAL EDUCATION SERVICES","342972","http://opencorporates.com/companies/gb/342972","761453629"
"London Borough of Redbridge","http://opendatacommunities.org/doc/london-borough-council/redbridge","6BADULTSOCIA","Adult Social Care","6CADPHYSDIS","Adults Under 65 with Phys Disab or Sensory Impair","REV","Revenue","R4214","PD Direct Payments","06-TRANSFER","Transfer Payments","06B","Social Services Clients","7053","Direct Payments","3253595","201307",22/10/2012 00:00:00,-1095.78,"56800","Payroll Services","REDACTED DATA","HUMAN MANAGEMENT ASSISTANCE-CLIENT ACCOUNT","4752026","http://opencorporates.com/companies/gb/4752026","815230071"
"London Borough of Redbridge","http://opendatacommunities.org/doc/london-borough-council/redbridge","6BADULTSOCIA","Adult Social Care","6COLDINCMENT","Older People (65 or over) incl. Older Mentally Ill","REV","Revenue","R4378","OP Residential","05-THIRD","Third Party Payments","05F","Voluntary associations","6802","Residential Homes","90361011","201307",12/10/2012 00:00:00,-1376.48,"64710","Residential Care Homes","REDACTED DATA","ALAN & MARINA STACK T/AS ROWALLAN HOUSE","",,""
"London Borough of Redbridge","http://opendatacommunities.org/doc/london-borough-council/redbridge","6BADULTSOCIA","Adult Social Care","6COLDINCMENT","Older People (65 or over) incl. Older Mentally Ill","REV","Revenue","R4378","OP Residential","09-INCOME","Income","09C","Customer & Client Receipts","8555","Accommodation Charges","90361011","201307",12/10/2012 00:00:00,306.51,"64710","Residential Care Homes","REDACTED DATA","ALAN & MARINA STACK T/AS ROWALLAN HOUSE","",,""
"London Borough of Redbridge","http://opendatacommunities.org/doc/london-borough-council/redbridge","2BENVIRONMEN","Environmental Services","2CENVTLHEALT","Environmental Health","REV","Revenue","R6765","Pest Control","09-INCOME","Income","09C","Customer & Client Receipts","8560","Fees & Charges","60186933","201307",11/10/2012 00:00:00,-882.51,"57130","Pest and Vermin Control Products","REDACTED DATA","SDK ENVIRONMENTAL LTD","3988788","http://opencorporates.com/companies/gb/3988788","388966174"
"London Borough of Redbridge","http://opendatacommunities.org/doc/london-borough-council/redbridge","3BINDSCHFUND","Individual School Funds","3CDELSECOND","Delegated Individual Secondary School Budgets","REV","Revenue","S2021","TRINITY : Energy","02-PREMISES","Premises","02B","Energy costs","4000","Electricity","70046457","201307",20/09/2012 00:00:00,-967,"39564","Gas Companies","REDACTED DATA","KENT COUNTY COUNCIL (GAS & ELECTRIC)","",,"204269191"
"London Borough of Redbridge","http://opendatacommunities.org/doc/london-borough-council/redbridge","6BADULTSOCIA","Adult Social Care","6COLDINCMENT","Older People (65 or over) incl. Older Mentally Ill","REV","Revenue","R4211","Older People Direct Payments","06-TRANSFER","Transfer Payments","06B","Social Services Clients","7053","Direct Payments","3253647","201307",22/10/2012 00:00:00,-977.95,"56800","Payroll Services","REDACTED DATA","HUMAN MANAGEMENT ASSISTANCE-CLIENT ACCOUNT","4752026","http://opencorporates.com/companies/gb/4752026","815230071"
"London Borough of Redbridge","http://opendatacommunities.org/doc/london-borough-council/redbridge","3BINDSCHFUND","Individual School Funds","3CDELPRIMARY","Delegated Individual Primary School Budgets","REV","Revenue","S1078","CHRISTCHURCH: Expansion Project","04-SUPPLIES","Supplies And Services","04F","Communications and computing","5868","IT Support Contract","60186735","201307",27/09/2012 00:00:00,-800,"20703","Computer Systems and Software","REDACTED DATA","PQ TRAINING UK LTD T/A JOSKOS SOLUTIONS","4212442","http://opencorporates.com/companies/gb/4212442","774327413"
"London Borough of Redbridge","http://opendatacommunities.org/doc/london-borough-council/redbridge","6BADULTSOCIA","Adult Social Care","6COLDINCMENT","Older People (65 or over) incl. Older Mentally Ill","REV","Revenue","R4211","Older People Direct Payments","06-TRANSFER","Transfer Payments","06B","Social Services Clients","7053","Direct Payments","3253583","201307",22/10/2012 00:00:00,-1193.14,"56800","Payroll Services","REDACTED DATA","HUMAN MANAGEMENT ASSISTANCE-CLIENT ACCOUNT","4752026","http://opencorporates.com/companies/gb/4752026","815230071"
"London Borough of Redbridge","http://opendatacommunities.org/doc/london-borough-council/redbridge","6BADULTSOCIA","Adult Social Care","6COLDINCMENT","Older People (65 or over) incl. Older Mentally Ill","REV","Revenue","R4211","Older People Direct Payments","09-INCOME","Income","09C","Customer & Client Receipts","8545","Direct Payments Income","3253583","201307",22/10/2012 00:00:00,246.03,"56800","Payroll Services","REDACTED DATA","HUMAN MANAGEMENT ASSISTANCE-CLIENT ACCOUNT","4752026","http://opencorporates.com/companies/gb/4752026","815230071"
"London Borough of Redbridge","http://opendatacommunities.org/doc/london-borough-council/redbridge","6BADULTSOCIA","Adult Social Care","6COLDINCMENT","Older People (65 or over) incl. Older Mentally Ill","REV","Revenue","R4020","Carers Older People Direct Payments","06-TRANSFER","Transfer Payments","06B","Social Services Clients","7053","Direct Payments","3253945","201307",22/10/2012 00:00:00,-918.26,"56800","Payroll Services","REDACTED DATA","HUMAN MANAGEMENT ASSISTANCE-CLIENT ACCOUNT","4752026","http://opencorporates.com/companies/gb/4752026","815230071"
"London Borough of Redbridge","http://opendatacommunities.org/doc/london-borough-council/redbridge","6BADULTSOCIA","Adult Social Care","6COLDINCMENT","Older People (65 or over) incl. Older Mentally Ill","REV","Revenue","R4211","Older People Direct Payments","06-TRANSFER","Transfer Payments","06B","Social Services Clients","7053","Direct Payments","3253680","201307",22/10/2012 00:00:00,-1015,"56800","Payroll Services","REDACTED DATA","HUMAN MANAGEMENT ASSISTANCE-CLIENT ACCOUNT","4752026","http://opencorporates.com/companies/gb/4752026","815230071"
"London Borough of Redbridge","http://opendatacommunities.org/doc/london-borough-council/redbridge","6BADULTSOCIA","Adult Social Care","6COLDINCMENT","Older People (65 or over) incl. Older Mentally Ill","REV","Revenue","R4211","Older People Direct Payments","09-INCOME","Income","09C","Customer & Client Receipts","8545","Direct Payments Income","3253680","201307",22/10/2012 00:00:00,124.79,"56800","Payroll Services","REDACTED DATA","HUMAN MANAGEMENT ASSISTANCE-CLIENT ACCOUNT","4752026","http://opencorporates.com/companies/gb/4752026","815230071"
"London Borough of Redbridge","http://opendatacommunities.org/doc/london-borough-council/redbridge","6BADULTSOCIA","Adult Social Care","6COLDINCMENT","Older People (65 or over) incl. Older Mentally Ill","REV","Revenue","R4385","OP Nursing","05-THIRD","Third Party Payments","05H","Private contractors","6909","Nursing Homes","90361108","201307",12/10/2012 00:00:00,-1497.39,"53350","Nursing Homes","REDACTED DATA","WESTGATE HEALTHCARE GROUP LTD (CHESNUT NURSING HOME)","5969702","http://opencorporates.com/companies/gb/5969702",""
"London Borough of Redbridge","http://opendatacommunities.org/doc/london-borough-council/redbridge","6BADULTSOCIA","Adult Social Care","6COLDINCMENT","Older People (65 or over) incl. Older Mentally Ill","REV","Revenue","R4385","OP Nursing","05-THIRD","Third Party Payments","05H","Private contractors","6909","Nursing Homes","90361108","201307",12/10/2012 00:00:00,285.22,"53350","Nursing Homes","REDACTED DATA","WESTGATE HEALTHCARE GROUP LTD (CHESNUT NURSING HOME)","5969702","http://opencorporates.com/companies/gb/5969702",""
"London Borough of Redbridge","http://opendatacommunities.org/doc/london-borough-council/redbridge","6BADULTSOCIA","Adult Social Care","6COLDINCMENT","Older People (65 or over) incl. Older Mentally Ill","REV","Revenue","R4385","OP Nursing","09-INCOME","Income","09C","Customer & Client Receipts","8557","Nursing Home Charges","90361108","201307",12/10/2012 00:00:00,357.6,"53350","Nursing Homes","REDACTED DATA","WESTGATE HEALTHCARE GROUP LTD (CHESNUT NURSING HOME)","5969702","http://opencorporates.com/companies/gb/5969702",""
"London Borough of Redbridge","http://opendatacommunities.org/doc/london-borough-council/redbridge","6BADULTSOCIA","Adult Social Care","6CADLEARNDIS","Adults Under 65 with Learning Disabilities","REV","Revenue","R4394","LD - Homecare","05-THIRD","Third Party Payments","05A","Independent units within the council","6502","Agency Homecare (Payments To Independent Units)","90358885","201307",08/10/2012 00:00:00,-821.52,"43419","Home Care Services","REDACTED DATA","FASTFLOW DE VERE CARE","",,""
"London Borough of Redbridge","http://opendatacommunities.org/doc/london-borough-council/redbridge","6BADULTSOCIA","Adult Social Care","6CADLEARNDIS","Adults Under 65 with Learning Disabilities","REV","Revenue","R4394","LD - Homecare","05-THIRD","Third Party Payments","05A","Independent units within the council","6502","Agency Homecare (Payments To Independent Units)","90362853","201307",21/10/2012 00:00:00,-821.52,"43419","Home Care Services","REDACTED DATA","FASTFLOW DE VERE CARE","",,""
"London Borough of Redbridge","http://opendatacommunities.org/doc/london-borough-council/redbridge","6BADULTSOCIA","Adult Social Care","6CADLEARNDIS","Adults Under 65 with Learning Disabilities","REV","Revenue","R4394","LD - Homecare","05-THIRD","Third Party Payments","05A","Independent units within the council","6502","Agency Homecare (Payments To Independent Units)","90362760","201307",19/10/2012 00:00:00,-821.52,"43419","Home Care Services","REDACTED DATA","FASTFLOW DE VERE CARE","",,""
"London Borough of Redbridge","http://opendatacommunities.org/doc/london-borough-council/redbridge","6BADULTSOCIA","Adult Social Care","6CADLEARNDIS","Adults Under 65 with Learning Disabilities","REV","Revenue","R4394","LD - Homecare","05-THIRD","Third Party Payments","05A","Independent units within the council","6502","Agency Homecare (Payments To Independent Units)","90362946","201307",22/10/2012 00:00:00,-821.52,"43419","Home Care Services","REDACTED DATA","FASTFLOW DE VERE CARE","",,""
"London Borough of Redbridge","http://opendatacommunities.org/doc/london-borough-council/redbridge","6BADULTSOCIA","Adult Social Care","6CADLEARNDIS","Adults Under 65 with Learning Disabilities","REV","Revenue","R4022","Carers LD Direct Payments","06-TRANSFER","Transfer Payments","06B","Social Services Clients","7053","Direct Payments","3254003","201307",22/10/2012 00:00:00,-797.96,"56800","Payroll Services","REDACTED DATA","HUMAN MANAGEMENT ASSISTANCE-CLIENT ACCOUNT","4752026","http://opencorporates.com/companies/gb/4752026","815230071"
"London Borough of Redbridge","http://opendatacommunities.org/doc/london-borough-council/redbridge","6BADULTSOCIA","Adult Social Care","6COLDINCMENT","Older People (65 or over) incl. Older Mentally Ill","REV","Revenue","R4211","Older People Direct Payments","09-INCOME","Income","09C","Customer & Client Receipts","8545","Direct Payments Income","3253690","201307",22/10/2012 00:00:00,-2172.1,"56800","Payroll Services","REDACTED DATA","HUMAN MANAGEMENT ASSISTANCE-CLIENT ACCOUNT","4752026","http://opencorporates.com/companies/gb/4752026","815230071"
"London Borough of Redbridge","http://opendatacommunities.org/doc/london-borough-council/redbridge","6BADULTSOCIA","Adult Social Care","6COLDINCMENT","Older People (65 or over) incl. Older Mentally Ill","REV","Revenue","R4211","Older People Direct Payments","09-INCOME","Income","09C","Customer & Client Receipts","8545","Direct Payments Income","3253690","201307",22/10/2012 00:00:00,140.64,"56800","Payroll Services","REDACTED DATA","HUMAN MANAGEMENT ASSISTANCE-CLIENT ACCOUNT","4752026","http://opencorporates.com/companies/gb/4752026","815230071"
"London Borough of Redbridge","http://opendatacommunities.org/doc/london-borough-council/redbridge","6BADULTSOCIA","Adult Social Care","6COLDINCMENT","Older People (65 or over) incl. Older Mentally Ill","REV","Revenue","R4211","Older People Direct Payments","06-TRANSFER","Transfer Payments","06B","Social Services Clients","7053","Direct Payments","3253690","201307",22/10/2012 00:00:00,1241.2,"56800","Payroll Services","REDACTED DATA","HUMAN MANAGEMENT ASSISTANCE-CLIENT ACCOUNT","4752026","http://opencorporates.com/companies/gb/4752026","815230071"
"London Borough of Redbridge","http://opendatacommunities.org/doc/london-borough-council/redbridge","6BADULTSOCIA","Adult Social Care","6COLDINCMENT","Older People (65 or over) incl. Older Mentally Ill","REV","Revenue","R4020","Carers Older People Direct Payments","06-TRANSFER","Transfer Payments","06B","Social Services Clients","7053","Direct Payments","3253990","201307",22/10/2012 00:00:00,-782.37,"56800","Payroll Services","REDACTED DATA","HUMAN MANAGEMENT ASSISTANCE-CLIENT ACCOUNT","4752026","http://opencorporates.com/companies/gb/4752026","815230071"
"London Borough of Redbridge","http://opendatacommunities.org/doc/london-borough-council/redbridge","6BADULTSOCIA","Adult Social Care","6CADLEARNDIS","Adults Under 65 with Learning Disabilities","REV","Revenue","R4241","ONEL � Continuing Care","05-THIRD","Third Party Payments","05H","Private contractors","6904","Day Centres","90360963","201307",12/10/2012 00:00:00,-631.89,"17020","Charities and Voluntary Organisations","REDACTED DATA","NORWOOD RAVENWOOD SERVICES LTD","",,""
"London Borough of Redbridge","http://opendatacommunities.org/doc/london-borough-council/redbridge","6BADULTSOCIA","Adult Social Care","6CADLEARNDIS","Adults Under 65 with Learning Disabilities","REV","Revenue","R4383","LD - External Day Care","05-THIRD","Third Party Payments","05H","Private contractors","6904","Day Centres","90361159","201307",19/10/2012 00:00:00,-756,"17020","Charities and Voluntary Organisations","REDACTED DATA","UNITING FRIENDS LTD","6495763","http://opencorporates.com/companies/gb/6495763",""
"London Borough of Redbridge","http://opendatacommunities.org/doc/london-borough-council/redbridge","6BADULTSOCIA","Adult Social Care","6CADPHYSDIS","Adults Under 65 with Phys Disab or Sensory Impair","REV","Revenue","R4393","PD Home Care","05-THIRD","Third Party Payments","05A","Independent units within the council","6502","Agency Homecare (Payments To Independent Units)","90362322","201307",05/10/2012 00:00:00,-670.72,"43419","Home Care Services","REDACTED DATA","CAREWATCH CARE SERVICES LTD","2949558","http://opencorporates.com/companies/gb/2949558","927457005"
"London Borough of Redbridge","http://opendatacommunities.org/doc/london-borough-council/redbridge","6BADULTSOCIA","Adult Social Care","6COLDINCMENT","Older People (65 or over) incl. Older Mentally Ill","REV","Revenue","R4385","OP Nursing","05-THIRD","Third Party Payments","05H","Private contractors","6909","Nursing Homes","90360514","201307",12/10/2012 00:00:00,-855.65,"64710","Residential Care Homes","REDACTED DATA","ABBEY CARE COMPLEX LTD","4832515","http://opencorporates.com/companies/gb/4832515",""
"London Borough of Redbridge","http://opendatacommunities.org/doc/london-borough-council/redbridge","6BADULTSOCIA","Adult Social Care","6COLDINCMENT","Older People (65 or over) incl. Older Mentally Ill","REV","Revenue","R4385","OP Nursing","09-INCOME","Income","09C","Customer & Client Receipts","8557","Nursing Home Charges","90360514","201307",12/10/2012 00:00:00,204.34,"64710","Residential Care Homes","REDACTED DATA","ABBEY CARE COMPLEX LTD","4832515","http://opencorporates.com/companies/gb/4832515",""
"London Borough of Redbridge","http://opendatacommunities.org/doc/london-borough-council/redbridge","6BADULTSOCIA","Adult Social Care","6CADLEARNDIS","Adults Under 65 with Learning Disabilities","REV","Revenue","R4215","LD Direct Payments","06-TRANSFER","Transfer Payments","06B","Social Services Clients","7053","Direct Payments","90361162","201307",22/10/2012 00:00:00,-577.38,"56800","Payroll Services","REDACTED DATA","HUMAN MANAGEMENT ASSISTANCE-CLIENT ACCOUNT","4752026","http://opencorporates.com/companies/gb/4752026","815230071"
"London Borough of Redbridge","http://opendatacommunities.org/doc/london-borough-council/redbridge","6BADULTSOCIA","Adult Social Care","6COLDINCMENT","Older People (65 or over) incl. Older Mentally Ill","REV","Revenue","R4391","OP Home Care","05-THIRD","Third Party Payments","05A","Independent units within the council","6502","Agency Homecare (Payments To Independent Units)","90361625","201307",10/10/2012 00:00:00,-545.52,"53280","Nursing Agencies","REDACTED DATA","IMMACULATE HEALTHCARE SERVICES LIMITED","",,""
"London Borough of Redbridge","http://opendatacommunities.org/doc/london-borough-council/redbridge","6BADULTSOCIA","Adult Social Care","6CCHILLOOKED","Children Looked After","REV","Revenue","R2119","CLAFH - Supportive Accommodation","05-THIRD","Third Party Payments","05H","Private contractors","6910","Care Packages","3252602","201307",31/07/2012 00:00:00,-517.72,"43419","Home Care Services","REDACTED DATA","LCS PARTNERSHIPS LTD (LONDON CARE SOLUTIONS)","6820538","http://opencorporates.com/companies/gb/6820538","975528279"
"London Borough of Redbridge","http://opendatacommunities.org/doc/london-borough-council/redbridge","6BADULTSOCIA","Adult Social Care","6COLDINCMENT","Older People (65 or over) incl. Older Mentally Ill","REV","Revenue","R4211","Older People Direct Payments","09-INCOME","Income","09C","Customer & Client Receipts","8545","Direct Payments Income","3253578","201307",22/10/2012 00:00:00,-928,"56800","Payroll Services","REDACTED DATA","HUMAN MANAGEMENT ASSISTANCE-CLIENT ACCOUNT","4752026","http://opencorporates.com/companies/gb/4752026","815230071"
"London Borough of Redbridge","http://opendatacommunities.org/doc/london-borough-council/redbridge","6BADULTSOCIA","Adult Social Care","6COLDINCMENT","Older People (65 or over) incl. Older Mentally Ill","REV","Revenue","R4211","Older People Direct Payments","09-INCOME","Income","09C","Customer & Client Receipts","8545","Direct Payments Income","3253578","201307",22/10/2012 00:00:00,49.44,"56800","Payroll Services","REDACTED DATA","HUMAN MANAGEMENT ASSISTANCE-CLIENT ACCOUNT","4752026","http://opencorporates.com/companies/gb/4752026","815230071"
"London Borough of Redbridge","http://opendatacommunities.org/doc/london-borough-council/redbridge","6BADULTSOCIA","Adult Social Care","6COLDINCMENT","Older People (65 or over) incl. Older Mentally Ill","REV","Revenue","R4211","Older People Direct Payments","06-TRANSFER","Transfer Payments","06B","Social Services Clients","7053","Direct Payments","3253578","201307",22/10/2012 00:00:00,371.2,"56800","Payroll Services","REDACTED DATA","HUMAN MANAGEMENT ASSISTANCE-CLIENT ACCOUNT","4752026","http://opencorporates.com/companies/gb/4752026","815230071"
"London Borough of Redbridge","http://opendatacommunities.org/doc/london-borough-council/redbridge","6BADULTSOCIA","Adult Social Care","6COLDINCMENT","Older People (65 or over) incl. Older Mentally Ill","REV","Revenue","R4020","Carers Older People Direct Payments","06-TRANSFER","Transfer Payments","06B","Social Services Clients","7053","Direct Payments","3254011","201307",22/10/2012 00:00:00,-507.09,"56800","Payroll Services","REDACTED DATA","HUMAN MANAGEMENT ASSISTANCE-CLIENT ACCOUNT","4752026","http://opencorporates.com/companies/gb/4752026","815230071"
"London Borough of Redbridge","http://opendatacommunities.org/doc/london-borough-council/redbridge","6BADULTSOCIA","Adult Social Care","6COTHADSERV","Other Adult Services","REV","Revenue","R4389","PCT Older Person Home Care","05-THIRD","Third Party Payments","05A","Independent units within the council","6502","Agency Homecare (Payments To Independent Units)","90357515","201307",26/09/2012 00:00:00,500.12,"53280","Nursing Agencies","REDACTED DATA","IMMACULATE HEALTHCARE SERVICES LIMITED","",,""
"London Borough of Redbridge","http://opendatacommunities.org/doc/london-borough-council/redbridge","6BADULTSOCIA","Adult Social Care","6COTHADSERV","Other Adult Services","REV","Revenue","R4389","PCT Older Person Home Care","05-THIRD","Third Party Payments","05A","Independent units within the council","6502","Agency Homecare (Payments To Independent Units)","90361693","201307",18/10/2012 00:00:00,500.12,"53280","Nursing Agencies","REDACTED DATA","IMMACULATE HEALTHCARE SERVICES LIMITED","",,""
"London Borough of Redbridge","http://opendatacommunities.org/doc/london-borough-council/redbridge","6BADULTSOCIA","Adult Social Care","6COTHADSERV","Other Adult Services","REV","Revenue","R4389","PCT Older Person Home Care","05-THIRD","Third Party Payments","05A","Independent units within the council","6502","Agency Homecare (Payments To Independent Units)","90357575","201307",03/10/2012 00:00:00,500.12,"53280","Nursing Agencies","REDACTED DATA","IMMACULATE HEALTHCARE SERVICES LIMITED","",,""
"London Borough of Redbridge","http://opendatacommunities.org/doc/london-borough-council/redbridge","6BADULTSOCIA","Adult Social Care","6COTHADSERV","Other Adult Services","REV","Revenue","R4389","PCT Older Person Home Care","05-THIRD","Third Party Payments","05A","Independent units within the council","6502","Agency Homecare (Payments To Independent Units)","90361574","201307",10/10/2012 00:00:00,500.12,"53280","Nursing Agencies","REDACTED DATA","IMMACULATE HEALTHCARE SERVICES LIMITED","",,""
"London Borough of Redbridge","http://opendatacommunities.org/doc/london-borough-council/redbridge","6BADULTSOCIA","Adult Social Care","6COTHADSERV","Other Adult Services","REV","Revenue","R4389","PCT Older Person Home Care","05-THIRD","Third Party Payments","05A","Independent units within the council","6502","Agency Homecare (Payments To Independent Units)","90361784","201307",22/10/2012 00:00:00,500.12,"53280","Nursing Agencies","REDACTED DATA","IMMACULATE HEALTHCARE SERVICES LIMITED","",,""
"London Borough of Redbridge","http://opendatacommunities.org/doc/london-borough-council/redbridge","6BADULTSOCIA","Adult Social Care","6CADPHYSDIS","Adults Under 65 with Phys Disab or Sensory Impair","REV","Revenue","R4214","PD Direct Payments","09-INCOME","Income","09C","Customer & Client Receipts","8545","Direct Payments Income","3253748","201307",22/10/2012 00:00:00,-79.6,"90005","Home Care Services DP","REDACTED DATA","REDACTED DATA","",,""
"London Borough of Redbridge","http://opendatacommunities.org/doc/london-borough-council/redbridge","6BADULTSOCIA","Adult Social Care","6CADPHYSDIS","Adults Under 65 with Phys Disab or Sensory Impair","REV","Revenue","R4214","PD Direct Payments","06-TRANSFER","Transfer Payments","06B","Social Services Clients","7053","Direct Payments","3253748","201307",22/10/2012 00:00:00,580,"90005","Home Care Services DP","REDACTED DATA","REDACTED DATA","",,""
"London Borough of Redbridge","http://opendatacommunities.org/doc/london-borough-council/redbridge","6BADULTSOCIA","Adult Social Care","6CADPHYSDIS","Adults Under 65 with Phys Disab or Sensory Impair","REV","Revenue","R4393","PD Home Care","05-THIRD","Third Party Payments","05A","Independent units within the council","6502","Agency Homecare (Payments To Independent Units)","90361183","201307",15/10/2012 00:00:00,500.47,"31230","Employment & Recruitment Agencies","REDACTED DATA","CARE ASSOCIATES (RECRUITMENT) LTD.","",,""
"London Borough of Redbridge","http://opendatacommunities.org/doc/london-borough-council/redbridge","1BOTHEROPI&E","Other Operating Income & Expenditure","1CTRADSURDEF","Trading Account Surpluses & Deficits","REV","Revenue","R9604","22-26 Clements Rd","02-PREMISES","Premises","02A","Repairs, alteration and maintenance of buildings","3026","Minor Maintenance","789972","201307",03/05/2012 00:00:00,0,"27410","Doors & Shutters - Sales & Installation","REDACTED DATA","EUROSHUTTERS ENGINEERS LTD","3617742","http://opencorporates.com/companies/gb/3617742","649088302"
"London Borough of Redbridge","http://opendatacommunities.org/doc/london-borough-council/redbridge","1BOTHEROPI&E","Other Operating Income & Expenditure","1CTRADSURDEF","Trading Account Surpluses & Deficits","REV","Revenue","R9604","22-26 Clements Rd","02-PREMISES","Premises","02A","Repairs, alteration and maintenance of buildings","3026","Minor Maintenance","789972","201307",03/05/2012 00:00:00,417.2,"27410","Doors & Shutters - Sales & Installation","REDACTED DATA","EUROSHUTTERS ENGINEERS LTD","3617742","http://opencorporates.com/companies/gb/3617742","649088302"
"London Borough of Redbridge","http://opendatacommunities.org/doc/london-borough-council/redbridge","6BSOCIALSERV","Social Services","6CCHILLOOKED","Children Looked After","REV","Revenue","R2158","Albert Road - Integrated Team Social Care","04-SUPPLIES","Supplies And Services","04H","Grants and subscriptions","5954","Professional Fees","60187155","201307",02/10/2012 00:00:00,417.2,"53350","Nursing Homes","REDACTED DATA","JUSTICE ASSESSMENT & SUPPORT SERVICES LTD","6382678","http://opencorporates.com/companies/gb/6382678","992524687"
"London Borough of Redbridge","http://opendatacommunities.org/doc/london-borough-council/redbridge","6BADULTSOCIA","Adult Social Care","6CADLEARNDIS","Adults Under 65 with Learning Disabilities","REV","Revenue","R4293","Woodbine Club House","01-EMPLOYEES","Employees","01A","Direct employee expenses","4","Agency Staff - Pay","60186386","201307",19/08/2012 00:00:00,417.55,"31230","Employment & Recruitment Agencies","REDACTED DATA","TAYLOR GORDON & CO LTD T/AS PLAN PERSONNEL & PLAN CARE","",,"190680845"
"London Borough of Redbridge","http://opendatacommunities.org/doc/london-borough-council/redbridge","6BSOCIALSERV","Social Services","6CCHILLOOKED","Children Looked After","REV","Revenue","R2140","CQ and F - Safeguarding and Care Planning Soc Care","05-THIRD","Third Party Payments","05A","Independent units within the council","6513","Agency & Contracted Services","60186666","201307",02/10/2012 00:00:00,417.77,"79980","Training Services","REDACTED DATA","RECONSTRUCT LTD","3000878","http://opencorporates.com/companies/gb/3000878","668052912"
"London Borough of Redbridge","http://opendatacommunities.org/doc/london-borough-council/redbridge","4BMANGT&SUPP","Management & Support Services","4CHIGHRDROUT","Highways/Roads (Routine)","REV","Revenue","R7070","Reactive Maintenance","05-THIRD","Third Party Payments","05H","Private contractors","6915","Contractor Payments","3251252","201307",03/10/2012 00:00:00,418.16,"18632","Civil Engineers","REDACTED DATA","KENSON CONTRACTORS BENINGTON LTD","1314691","http://opencorporates.com/companies/gb/1314691","301629589"
"London Borough of Redbridge","http://opendatacommunities.org/doc/london-borough-council/redbridge","6BSOCIALSERV","Social Services","6COLDINCMENT","Older People (65 or over) incl. Older Mentally Ill","REV","Revenue","R4059","Elderly Mentally ill Home Care","05-THIRD","Third Party Payments","05A","Independent units within the council","6502","Agency Homecare (Payments To Independent Units)","90362887","201307",21/10/2012 00:00:00,502.04,"43419","Home Care Services","REDACTED DATA","FASTFLOW DE VERE CARE","",,""
"London Borough of Redbridge","http://opendatacommunities.org/doc/london-borough-council/redbridge","6BSOCIALSERV","Social Services","6COLDINCMENT","Older People (65 or over) incl. Older Mentally Ill","REV","Revenue","R4059","Elderly Mentally ill Home Care","05-THIRD","Third Party Payments","05A","Independent units within the council","6502","Agency Homecare (Payments To Independent Units)","90362978","201307",22/10/2012 00:00:00,502.04,"43419","Home Care Services","REDACTED DATA","FASTFLOW DE VERE CARE","",,""
"London Borough of Redbridge","http://opendatacommunities.org/doc/london-borough-council/redbridge","6BSOCIALSERV","Social Services","6COLDINCMENT","Older People (65 or over) incl. Older Mentally Ill","REV","Revenue","R4059","Elderly Mentally ill Home Care","05-THIRD","Third Party Payments","05A","Independent units within the council","6502","Agency Homecare (Payments To Independent Units)","90358828","201307",05/10/2012 00:00:00,502.04,"43419","Home Care Services","REDACTED DATA","FASTFLOW DE VERE CARE","",,""
"London Borough of Redbridge","http://opendatacommunities.org/doc/london-borough-council/redbridge","6BSOCIALSERV","Social Services","6COLDINCMENT","Older People (65 or over) incl. Older Mentally Ill","REV","Revenue","R4059","Elderly Mentally ill Home Care","05-THIRD","Third Party Payments","05A","Independent units within the council","6502","Agency Homecare (Payments To Independent Units)","90358920","201307",08/10/2012 00:00:00,502.04,"43419","Home Care Services","REDACTED DATA","FASTFLOW DE VERE CARE","",,""
"London Borough of Redbridge","http://opendatacommunities.org/doc/london-borough-council/redbridge","6BSOCIALSERV","Social Services","6COLDINCMENT","Older People (65 or over) incl. Older Mentally Ill","REV","Revenue","R4059","Elderly Mentally ill Home Care","05-THIRD","Third Party Payments","05A","Independent units within the council","6502","Agency Homecare (Payments To Independent Units)","90362796","201307",19/10/2012 00:00:00,502.04,"43419","Home Care Services","REDACTED DATA","FASTFLOW DE VERE CARE","",,""
"London Borough of Redbridge","http://opendatacommunities.org/doc/london-borough-council/redbridge","3BINDSCHFUND","Individual School Funds","3CDELSECOND","Delegated Individual Secondary School Budgets","REV","Revenue","S2019","TRINITY : Cleaning and Caretaking","02-PREMISES","Premises","02H","Cleaning and domestic supplies","4622","Cleaning Equipment & Materials","60187685","201307",17/10/2012 00:00:00,418.7,"19000","Cleaning Contractors Equipment and Supplies","REDACTED DATA","POWER HYGIENE & SAFETY PRODUCTS LTD","5087991","http://opencorporates.com/companies/gb/5087991","839352993"
"London Borough of Redbridge","http://opendatacommunities.org/doc/london-borough-council/redbridge","1BOTHEROPI&E","Other Operating Income & Expenditure","1CTRADSURDEF","Trading Account Surpluses & Deficits","REV","Revenue","R9578","Misc Properties","04-SUPPLIES","Supplies And Services","04K","Miscellaneous expenses","6258","Security Patrol Services","60186263","201307",30/09/2012 00:00:00,420,"69240","Security Services","REDACTED DATA","A & M SECURITY CO","",,"311691676"
"London Borough of Redbridge","http://opendatacommunities.org/doc/london-borough-council/redbridge","9BNONBVO","Outside the BVACOP Objective Structure","9CNONBVO","Outside the BVACOP Objective Structure","REV","Revenue","R7702","Vehicle Workshop","04-SUPPLIES","Supplies And Services","04A","Equipment, furniture and materials","5510","Materials","634199","201307",14/08/2012 00:00:00,420,"84920","Windscreen Services","REDACTED DATA","SMART GLASS ESSEX","",,"672373033"
"London Borough of Redbridge","http://opendatacommunities.org/doc/london-borough-council/redbridge","6BADULTSOCIA","Adult Social Care","6CADLEARNDIS","Adults Under 65 with Learning Disabilities","REV","Revenue","R4394","LD - Homecare","05-THIRD","Third Party Payments","05A","Independent units within the council","6502","Agency Homecare (Payments To Independent Units)","90357360","201307",08/10/2012 00:00:00,504.36,"31230","Employment & Recruitment Agencies","REDACTED DATA","SHARED CARE SERVICES LTD","4704680","http://opencorporates.com/companies/gb/4704680",""
"London Borough of Redbridge","http://opendatacommunities.org/doc/london-borough-council/redbridge","6BADULTSOCIA","Adult Social Care","6CADLEARNDIS","Adults Under 65 with Learning Disabilities","REV","Revenue","R4394","LD - Homecare","05-THIRD","Third Party Payments","05A","Independent units within the council","6502","Agency Homecare (Payments To Independent Units)","90357361","201307",08/10/2012 00:00:00,504.36,"31230","Employment & Recruitment Agencies","REDACTED DATA","SHARED CARE SERVICES LTD","4704680","http://opencorporates.com/companies/gb/4704680",""
"London Borough of Redbridge","http://opendatacommunities.org/doc/london-borough-council/redbridge","6BADULTSOCIA","Adult Social Care","6CADLEARNDIS","Adults Under 65 with Learning Disabilities","REV","Revenue","R4293","Woodbine Club House","01-EMPLOYEES","Employees","01A","Direct employee expenses","4","Agency Staff - Pay","60186980","201307",07/10/2012 00:00:00,422.1,"31230","Employment & Recruitment Agencies","REDACTED DATA","TAYLOR GORDON & CO LTD T/AS PLAN PERSONNEL & PLAN CARE","",,"190680845"
"London Borough of Redbridge","http://opendatacommunities.org/doc/london-borough-council/redbridge","9BNONBVO","Outside the BVACOP Objective Structure","9CNONBVO","Outside the BVACOP Objective Structure","REV","Revenue","R7702","Vehicle Workshop","04-SUPPLIES","Supplies And Services","04A","Equipment, furniture and materials","5510","Materials","634289","201307",05/09/2012 00:00:00,422.19,"44181","Hydraulic Equipment and Accessories - Sales and Service","REDACTED DATA","COMPLETELY HYDRAULIC LTD","5176852","http://opencorporates.com/companies/gb/5176852","843330841"
"London Borough of Redbridge","http://opendatacommunities.org/doc/london-borough-council/redbridge","9BNONBVO","Outside the BVACOP Objective Structure","9CNONBVO","Outside the BVACOP Objective Structure","REV","Revenue","R7702","Vehicle Workshop","04-SUPPLIES","Supplies And Services","04A","Equipment, furniture and materials","5510","Materials","634474","201307",17/09/2012 00:00:00,1.94,"2600","Agricultural Machinery - Sales and Service","REDACTED DATA","P TUCKWELL LIMITED","",,""
"London Borough of Redbridge","http://opendatacommunities.org/doc/london-borough-council/redbridge","9BNONBVO","Outside the BVACOP Objective Structure","9CNONBVO","Outside the BVACOP Objective Structure","REV","Revenue","R7702","Vehicle Workshop","04-SUPPLIES","Supplies And Services","04A","Equipment, furniture and materials","5510","Materials","634474","201307",17/09/2012 00:00:00,7.5,"2600","Agricultural Machinery - Sales and Service","REDACTED DATA","P TUCKWELL LIMITED","",,""
"London Borough of Redbridge","http://opendatacommunities.org/doc/london-borough-council/redbridge","9BNONBVO","Outside the BVACOP Objective Structure","9CNONBVO","Outside the BVACOP Objective Structure","REV","Revenue","R7702","Vehicle Workshop","04-SUPPLIES","Supplies And Services","04A","Equipment, furniture and materials","5510","Materials","634474","201307",17/09/2012 00:00:00,44.51,"2600","Agricultural Machinery - Sales and Service","REDACTED DATA","P TUCKWELL LIMITED","",,""
"London Borough of Redbridge","http://opendatacommunities.org/doc/london-borough-council/redbridge","9BNONBVO","Outside the BVACOP Objective Structure","9CNONBVO","Outside the BVACOP Objective Structure","REV","Revenue","R7702","Vehicle Workshop","04-SUPPLIES","Supplies And Services","04A","Equipment, furniture and materials","5510","Materials","634474","201307",17/09/2012 00:00:00,49.12,"2600","Agricultural Machinery - Sales and Service","REDACTED DATA","P TUCKWELL LIMITED","",,""
"London Borough of Redbridge","http://opendatacommunities.org/doc/london-borough-council/redbridge","9BNONBVO","Outside the BVACOP Objective Structure","9CNONBVO","Outside the BVACOP Objective Structure","REV","Revenue","R7702","Vehicle Workshop","04-SUPPLIES","Supplies And Services","04A","Equipment, furniture and materials","5510","Materials","634474","201307",17/09/2012 00:00:00,319.29,"2600","Agricultural Machinery - Sales and Service","REDACTED DATA","P TUCKWELL LIMITED","",,""
"London Borough of Redbridge","http://opendatacommunities.org/doc/london-borough-council/redbridge","6BADULTSOCIA","Adult Social Care","6CADLEARNDIS","Adults Under 65 with Learning Disabilities","REV","Revenue","R4218","LD Individual Budgets","05-THIRD","Third Party Payments","05H","Private contractors","6904","Day Centres","90357026","201307",25/09/2012 00:00:00,-116.63,"24200","Day Centres","REDACTED DATA","INCLUSIVE COMMUNITIES LTD","6642491","http://opencorporates.com/companies/gb/6642491",""
"London Borough of Redbridge","http://opendatacommunities.org/doc/london-borough-council/redbridge","6BADULTSOCIA","Adult Social Care","6CADLEARNDIS","Adults Under 65 with Learning Disabilities","REV","Revenue","R4218","LD Individual Budgets","05-THIRD","Third Party Payments","05H","Private contractors","6904","Day Centres","90357026","201307",25/09/2012 00:00:00,624.13,"24200","Day Centres","REDACTED DATA","INCLUSIVE COMMUNITIES LTD","6642491","http://opencorporates.com/companies/gb/6642491",""
"London Borough of Redbridge","http://opendatacommunities.org/doc/london-borough-council/redbridge","6BADULTSOCIA","Adult Social Care","6COLDINCMENT","Older People (65 or over) incl. Older Mentally Ill","REV","Revenue","R4391","OP Home Care","05-THIRD","Third Party Payments","05A","Independent units within the council","6502","Agency Homecare (Payments To Independent Units)","90362862","201307",21/10/2012 00:00:00,507.84,"43419","Home Care Services","REDACTED DATA","FASTFLOW DE VERE CARE","",,""
"London Borough of Redbridge","http://opendatacommunities.org/doc/london-borough-council/redbridge","9BNONBVO","Outside the BVACOP Objective Structure","9CNONBVO","Outside the BVACOP Objective Structure","BAL","Balance Sheet","B0182","Union Deductions","99-NONBV","Capital, Balance Sheet and Control","50Q","Other Balances & Reserves","9910","Personal Account - Debtor","70047142","201307",30/10/2012 00:00:00,508.47,"79530","Trade Unions","REDACTED DATA","UNITE THE UNION","",,""
"London Borough of Redbridge","http://opendatacommunities.org/doc/london-borough-council/redbridge","6BADULTSOCIA","Adult Social Care","6CADPHYSDIS","Adults Under 65 with Phys Disab or Sensory Impair","REV","Revenue","R4214","PD Direct Payments","06-TRANSFER","Transfer Payments","06B","Social Services Clients","7053","Direct Payments","3253619","201307",22/10/2012 00:00:00,510.4,"56800","Payroll Services","REDACTED DATA","HUMAN MANAGEMENT ASSISTANCE-CLIENT ACCOUNT","4752026","http://opencorporates.com/companies/gb/4752026","815230071"
"London Borough of Redbridge","http://opendatacommunities.org/doc/london-borough-council/redbridge","6BADULTSOCIA","Adult Social Care","6CADPHYSDIS","Adults Under 65 with Phys Disab or Sensory Impair","REV","Revenue","R4214","PD Direct Payments","06-TRANSFER","Transfer Payments","06B","Social Services Clients","7053","Direct Payments","3253797","201307",22/10/2012 00:00:00,510.4,"56800","Payroll Services","REDACTED DATA","HUMAN MANAGEMENT ASSISTANCE-CLIENT ACCOUNT","4752026","http://opencorporates.com/companies/gb/4752026","815230071"
"London Borough of Redbridge","http://opendatacommunities.org/doc/london-borough-council/redbridge","6BADULTSOCIA","Adult Social Care","6CADPHYSDIS","Adults Under 65 with Phys Disab or Sensory Impair","REV","Revenue","R4214","PD Direct Payments","06-TRANSFER","Transfer Payments","06B","Social Services Clients","7053","Direct Payments","3253880","201307",22/10/2012 00:00:00,510.4,"56800","Payroll Services","REDACTED DATA","HUMAN MANAGEMENT ASSISTANCE-CLIENT ACCOUNT","4752026","http://opencorporates.com/companies/gb/4752026","815230071"
"London Borough of Redbridge","http://opendatacommunities.org/doc/london-borough-council/redbridge","6BADULTSOCIA","Adult Social Care","6CADLEARNDIS","Adults Under 65 with Learning Disabilities","REV","Revenue","R4022","Carers LD Direct Payments","06-TRANSFER","Transfer Payments","06B","Social Services Clients","7053","Direct Payments","3254070","201307",22/10/2012 00:00:00,510.4,"90005","Home Care Services DP","REDACTED DATA","REDACTED DATA","",,""
"London Borough of Redbridge","http://opendatacommunities.org/doc/london-borough-council/redbridge","6BADULTSOCIA","Adult Social Care","6COLDINCMENT","Older People (65 or over) incl. Older Mentally Ill","REV","Revenue","R4391","OP Home Care","05-THIRD","Third Party Payments","05A","Independent units within the council","6502","Agency Homecare (Payments To Independent Units)","90358802","201307",05/10/2012 00:00:00,512.41,"43419","Home Care Services","REDACTED DATA","FASTFLOW DE VERE CARE","",,""
"London Borough of Redbridge","http://opendatacommunities.org/doc/london-borough-council/redbridge","6BADULTSOCIA","Adult Social Care","6COLDINCMENT","Older People (65 or over) incl. Older Mentally Ill","REV","Revenue","R4391","OP Home Care","05-THIRD","Third Party Payments","05A","Independent units within the council","6502","Agency Homecare (Payments To Independent Units)","90357636","201307",11/09/2012 00:00:00,512.64,"53350","Nursing Homes","REDACTED DATA","ELEANOR NURSING & SOCIALCARE LTD","4393038","http://opencorporates.com/companies/gb/4393038",""
"London Borough of Redbridge","http://opendatacommunities.org/doc/london-borough-council/redbridge","6BADULTSOCIA","Adult Social Care","6COTHADSERV","Other Adult Services","REV","Revenue","R4389","PCT Older Person Home Care","05-THIRD","Third Party Payments","05A","Independent units within the council","6502","Agency Homecare (Payments To Independent Units)","90362436","201307",11/10/2012 00:00:00,512.67,"43419","Home Care Services","REDACTED DATA","CAREWATCH CARE SERVICES LTD","2949558","http://opencorporates.com/companies/gb/2949558","927457005"
"London Borough of Redbridge","http://opendatacommunities.org/doc/london-borough-council/redbridge","4BMANGT&SUPP","Management & Support Services","4CHIGHRDROUT","Highways/Roads (Routine)","REV","Revenue","R7070","Reactive Maintenance","05-THIRD","Third Party Payments","05H","Private contractors","6915","Contractor Payments","3251578","201307",03/10/2012 00:00:00,427.35,"18632","Civil Engineers","REDACTED DATA","KENSON CONTRACTORS BENINGTON LTD","1314691","http://opencorporates.com/companies/gb/1314691","301629589"
"London Borough of Redbridge","http://opendatacommunities.org/doc/london-borough-council/redbridge","6BSOCIALSERV","Social Services","6CCHILLOOKED","Children Looked After","REV","Revenue","R2113","SEN and CD - Section 5 and 6 Care Packages","05-THIRD","Third Party Payments","05A","Independent units within the council","6502","Agency Homecare (Payments To Independent Units)","3255035","201307",17/09/2012 00:00:00,513,"43419","Home Care Services","REDACTED DATA","FASTFLOW DE VERE CARE","",,""
"London Borough of Redbridge","http://opendatacommunities.org/doc/london-borough-council/redbridge","6BADULTSOCIA","Adult Social Care","6COLDINCMENT","Older People (65 or over) incl. Older Mentally Ill","REV","Revenue","R4391","OP Home Care","05-THIRD","Third Party Payments","05A","Independent units within the council","6502","Agency Homecare (Payments To Independent Units)","90358895","201307",08/10/2012 00:00:00,513.29,"43419","Home Care Services","REDACTED DATA","FASTFLOW DE VERE CARE","",,""
"London Borough of Redbridge","http://opendatacommunities.org/doc/london-borough-council/redbridge","6BADULTSOCIA","Adult Social Care","6COLDINCMENT","Older People (65 or over) incl. Older Mentally Ill","REV","Revenue","R4211","Older People Direct Payments","09-INCOME","Income","09C","Customer & Client Receipts","8545","Direct Payments Income","3253988","201307",22/10/2012 00:00:00,-297.52,"56800","Payroll Services","REDACTED DATA","HUMAN MANAGEMENT ASSISTANCE-CLIENT ACCOUNT","4752026","http://opencorporates.com/companies/gb/4752026","815230071"
"London Borough of Redbridge","http://opendatacommunities.org/doc/london-borough-council/redbridge","6BADULTSOCIA","Adult Social Care","6COLDINCMENT","Older People (65 or over) incl. Older Mentally Ill","REV","Revenue","R4211","Older People Direct Payments","06-TRANSFER","Transfer Payments","06B","Social Services Clients","7053","Direct Payments","3253988","201307",22/10/2012 00:00:00,812,"56800","Payroll Services","REDACTED DATA","HUMAN MANAGEMENT ASSISTANCE-CLIENT ACCOUNT","4752026","http://opencorporates.com/companies/gb/4752026","815230071"
"London Borough of Redbridge","http://opendatacommunities.org/doc/london-borough-council/redbridge","6BADULTSOCIA","Adult Social Care","6COLDINCMENT","Older People (65 or over) incl. Older Mentally Ill","REV","Revenue","R4211","Older People Direct Payments","09-INCOME","Income","09C","Customer & Client Receipts","8545","Direct Payments Income","3253882","201307",22/10/2012 00:00:00,-53.44,"56800","Payroll Services","REDACTED DATA","HUMAN MANAGEMENT ASSISTANCE-CLIENT ACCOUNT","4752026","http://opencorporates.com/companies/gb/4752026","815230071"
"London Borough of Redbridge","http://opendatacommunities.org/doc/london-borough-council/redbridge","6BADULTSOCIA","Adult Social Care","6COLDINCMENT","Older People (65 or over) incl. Older Mentally Ill","REV","Revenue","R4211","Older People Direct Payments","06-TRANSFER","Transfer Payments","06B","Social Services Clients","7053","Direct Payments","3253882","201307",22/10/2012 00:00:00,568.44,"56800","Payroll Services","REDACTED DATA","HUMAN MANAGEMENT ASSISTANCE-CLIENT ACCOUNT","4752026","http://opencorporates.com/companies/gb/4752026","815230071"
"London Borough of Redbridge","http://opendatacommunities.org/doc/london-borough-council/redbridge","6BADULTSOCIA","Adult Social Care","6CADMENHLTH","Adults Under 65 with Mental Health Needs","REV","Revenue","R4163","Extra Care","04-SUPPLIES","Supplies And Services","04D","Printing, stationery and general office expenses","5705","Postage","60186739","201307",25/09/2012 00:00:00,21.47,"60230","Post Office Services","REDACTED DATA","NEOPOST FINANCE LTD","2658324","http://opencorporates.com/companies/gb/2658324","597265489"
"London Borough of Redbridge","http://opendatacommunities.org/doc/london-borough-council/redbridge","6BADULTSOCIA","Adult Social Care","6CADPHYSDIS","Adults Under 65 with Phys Disab or Sensory Impair","REV","Revenue","R4163","Extra Care","04-SUPPLIES","Supplies And Services","04D","Printing, stationery and general office expenses","5705","Postage","60186739","201307",25/09/2012 00:00:00,42.94,"60230","Post Office Services","REDACTED DATA","NEOPOST FINANCE LTD","2658324","http://opencorporates.com/companies/gb/2658324","597265489"
"London Borough of Redbridge","http://opendatacommunities.org/doc/london-borough-council/redbridge","6BADULTSOCIA","Adult Social Care","6COLDINCMENT","Older People (65 or over) incl. Older Mentally Ill","REV","Revenue","R4163","Extra Care","04-SUPPLIES","Supplies And Services","04D","Printing, stationery and general office expenses","5705","Postage","60186739","201307",25/09/2012 00:00:00,365.02,"60230","Post Office Services","REDACTED DATA","NEOPOST FINANCE LTD","2658324","http://opencorporates.com/companies/gb/2658324","597265489"
"London Borough of Redbridge","http://opendatacommunities.org/doc/london-borough-council/redbridge","3BLEACENTFND","LEA Centrally Held School Funds","3CSCHSTRATMG","Schools Strategic Management","REV","Revenue","R3500","Sch Gov Body Sectn","04-SUPPLIES","Supplies And Services","04E","Services","5754","Consultancy","60187446","201307",19/10/2012 00:00:00,430,"12100","Business and Management Consultants","REDACTED DATA","SILVER BLUE CONSULTANCY LTD","",,""
"London Borough of Redbridge","http://opendatacommunities.org/doc/london-borough-council/redbridge","6BADULTSOCIA","Adult Social Care","6COLDINCMENT","Older People (65 or over) incl. Older Mentally Ill","REV","Revenue","R4391","OP Home Care","05-THIRD","Third Party Payments","05A","Independent units within the council","6502","Agency Homecare (Payments To Independent Units)","90362956","201307",22/10/2012 00:00:00,516.08,"43419","Home Care Services","REDACTED DATA","FASTFLOW DE VERE CARE","",,""
"London Borough of Redbridge","http://opendatacommunities.org/doc/london-borough-council/redbridge","6BADULTSOCIA","Adult Social Care","6COLDINCMENT","Older People (65 or over) incl. Older Mentally Ill","REV","Revenue","R4391","OP Home Care","05-THIRD","Third Party Payments","05A","Independent units within the council","6502","Agency Homecare (Payments To Independent Units)","90357125","201307",02/10/2012 00:00:00,516.22,"44166","Housing Associations, Societies, Trusts and Co-operatives","REDACTED DATA","ANCHOR TRUST(OAKLEA LODGE)","3147851","http://opencorporates.com/companies/gb/3147851","490992502"
"London Borough of Redbridge","http://opendatacommunities.org/doc/london-borough-council/redbridge","4BMANGT&SUPP","Management & Support Services","4CHIGHRDROUT","Highways/Roads (Routine)","REV","Revenue","R7003","Signs non illuminated","05-THIRD","Third Party Payments","05H","Private contractors","6915","Contractor Payments","3251916","201307",03/10/2012 00:00:00,430.8,"21555","Construction Contractors - General","REDACTED DATA","MAY GURNEY LIMITED","873179","http://opencorporates.com/companies/gb/873179","105540018"
"London Borough of Redbridge","http://opendatacommunities.org/doc/london-borough-council/redbridge","4BMANGT&SUPP","Management & Support Services","4CHIGHRDROUT","Highways/Roads (Routine)","REV","Revenue","R7003","Signs non illuminated","05-THIRD","Third Party Payments","05H","Private contractors","6915","Contractor Payments","3251919","201307",03/10/2012 00:00:00,430.8,"21555","Construction Contractors - General","REDACTED DATA","MAY GURNEY LIMITED","873179","http://opencorporates.com/companies/gb/873179","105540018"
"London Borough of Redbridge","http://opendatacommunities.org/doc/london-borough-council/redbridge","3BINDSCHFUND","Individual School Funds","3CDELPRIMARY","Delegated Individual Primary School Budgets","REV","Revenue","S2337","GROVE : ADMINSTRATION","04-SUPPLIES","Supplies And Services","04A","Equipment, furniture and materials","5506","Furniture & Fittings - Purchase","60187174","201307",12/10/2012 00:00:00,431.1,"29340","Educational Equipment & Supplies","REDACTED DATA","TTS GROUP LIMITED(TECHNOLOGY TEACHING SYSTEMS)","4373761","http://opencorporates.com/companies/gb/4373761","789963047"
"London Borough of Redbridge","http://opendatacommunities.org/doc/london-borough-council/redbridge","2BPLAN&DEVEL","Planning & Development Services","2CCOMMDEVT","Community Development","REV","Revenue","R6505","Planning Policy","04-SUPPLIES","Supplies And Services","04K","Miscellaneous expenses","6263","Supportive Activities","70046126","201307",01/10/2012 00:00:00,432,"52860","Newspaper & Magazine Publishers","REDACTED DATA","LONDON & ESSEX NEWSPAPERS LTD","6332874","http://opencorporates.com/companies/gb/6332874","915717809"
"London Borough of Redbridge","http://opendatacommunities.org/doc/london-borough-council/redbridge","3BLEACENTFND","LEA Centrally Held School Funds","3CASSURACCES","Assuring Access to Schools","REV","Revenue","R3832","Primary Free Sch Meals","04-SUPPLIES","Supplies And Services","04A","Equipment, furniture and materials","5504","Equipment Repairs & Maintenance","790184","201307",09/10/2012 00:00:00,432.17,"16111","Catering Equipment","REDACTED DATA","J SCOTT & SONS  LTD","",,"354241082"
"London Borough of Redbridge","http://opendatacommunities.org/doc/london-borough-council/redbridge","6BADULTSOCIA","Adult Social Care","6COTHADSERV","Other Adult Services","REV","Revenue","R4389","PCT Older Person Home Care","05-THIRD","Third Party Payments","05A","Independent units within the council","6502","Agency Homecare (Payments To Independent Units)","90361855","201307",12/10/2012 00:00:00,518.75,"53350","Nursing Homes","REDACTED DATA","ELEANOR NURSING & SOCIALCARE LTD","4393038","http://opencorporates.com/companies/gb/4393038",""
"London Borough of Redbridge","http://opendatacommunities.org/doc/london-borough-council/redbridge","6BADULTSOCIA","Adult Social Care","6COTHADSERV","Other Adult Services","REV","Revenue","R4389","PCT Older Person Home Care","05-THIRD","Third Party Payments","05A","Independent units within the council","6502","Agency Homecare (Payments To Independent Units)","90361926","201307",22/10/2012 00:00:00,518.75,"53350","Nursing Homes","REDACTED DATA","ELEANOR NURSING & SOCIALCARE LTD","4393038","http://opencorporates.com/companies/gb/4393038",""
"London Borough of Redbridge","http://opendatacommunities.org/doc/london-borough-council/redbridge","3BNONSCHFUND","Non-School Funding","3CNONSCH","Non Schools","REV","Revenue","R3960","FiND","04-SUPPLIES","Supplies And Services","04K","Miscellaneous expenses","6227","Furniture Removal & Storage","60187743","201307",24/10/2012 00:00:00,433.33,"64550","Removals - Business and Industrial","REDACTED DATA","SONNY WHITE","",,""
"London Borough of Redbridge","http://opendatacommunities.org/doc/london-borough-council/redbridge","3BLEACENTFND","LEA Centrally Held School Funds","3CASSURACCES","Assuring Access to Schools","REV","Revenue","R3290","Mus Sch - Delegated","04-SUPPLIES","Supplies And Services","04A","Equipment, furniture and materials","5515","Equipment for Extended Schools","60187068","201307",13/10/2012 00:00:00,520,"52510","Musical Instruments & Sheet Music","REDACTED DATA","DINESH DAVE T/AS BOW STRINGS","",,""
"London Borough of Redbridge","http://opendatacommunities.org/doc/london-borough-council/redbridge","9BNONBVO","Outside the BVACOP Objective Structure","9CNONBVO","Outside the BVACOP Objective Structure","REV","Revenue","R5131","Repairs and Maintenance - MFS","02-PREMISES","Premises","02A","Repairs, alteration and maintenance of buildings","3038","Service Repairs","70045955","201307",23/08/2011 00:00:00,433.8,"61961","Property Maintenance & Repairs","REDACTED DATA","PLANNED MAINTENANCE ENG  LTD","737307","http://opencorporates.com/companies/gb/737307","100636617"
"London Borough of Redbridge","http://opendatacommunities.org/doc/london-borough-council/redbridge","6BADULTSOCIA","Adult Social Care","6COTHADSERV","Other Adult Services","REV","Revenue","R4389","PCT Older Person Home Care","05-THIRD","Third Party Payments","05A","Independent units within the council","6502","Agency Homecare (Payments To Independent Units)","90359379","201307",08/10/2012 00:00:00,521.38,"43419","Home Care Services","REDACTED DATA","ENARA LTD (ENARA COMMUNITY CARE)","65455420","http://opencorporates.com/companies/gb/65455420",""
"London Borough of Redbridge","http://opendatacommunities.org/doc/london-borough-council/redbridge","3BINDSCHFUND","Individual School Funds","3CDELSECOND","Delegated Individual Secondary School Budgets","REV","Revenue","S2013","TRINITY : Repairs and Maintenance Upper Site","02-PREMISES","Premises","02A","Repairs, alteration and maintenance of buildings","3056","Schools ONLY - Minor Maintenance","70046098","201307",18/09/2012 00:00:00,434.55,"48586","Locksmiths","REDACTED DATA","MARTIN LOCK & SAFE","",,"248118853"
"London Borough of Redbridge","http://opendatacommunities.org/doc/london-borough-council/redbridge","6BADULTSOCIA","Adult Social Care","6CADPHYSDIS","Adults Under 65 with Phys Disab or Sensory Impair","REV","Revenue","R4214","PD Direct Payments","09-INCOME","Income","09C","Customer & Client Receipts","8545","Direct Payments Income","3253820","201307",22/10/2012 00:00:00,-46.8,"56800","Payroll Services","REDACTED DATA","HUMAN MANAGEMENT ASSISTANCE-CLIENT ACCOUNT","4752026","http://opencorporates.com/companies/gb/4752026","815230071"
"London Borough of Redbridge","http://opendatacommunities.org/doc/london-borough-council/redbridge","6BADULTSOCIA","Adult Social Care","6CADPHYSDIS","Adults Under 65 with Phys Disab or Sensory Impair","REV","Revenue","R4214","PD Direct Payments","06-TRANSFER","Transfer Payments","06B","Social Services Clients","7053","Direct Payments","3253820","201307",22/10/2012 00:00:00,568.44,"56800","Payroll Services","REDACTED DATA","HUMAN MANAGEMENT ASSISTANCE-CLIENT ACCOUNT","4752026","http://opencorporates.com/companies/gb/4752026","815230071"
"London Borough of Redbridge","http://opendatacommunities.org/doc/london-borough-council/redbridge","6BADULTSOCIA","Adult Social Care","6CADPHYSDIS","Adults Under 65 with Phys Disab or Sensory Impair","REV","Revenue","R4214","PD Direct Payments","06-TRANSFER","Transfer Payments","06B","Social Services Clients","7053","Direct Payments","3254091","201307",22/10/2012 00:00:00,174,"56800","Payroll Services","REDACTED DATA","HUMAN MANAGEMENT ASSISTANCE-CLIENT ACCOUNT","4752026","http://opencorporates.com/companies/gb/4752026","815230071"
"London Borough of Redbridge","http://opendatacommunities.org/doc/london-borough-council/redbridge","6BADULTSOCIA","Adult Social Care","6CADPHYSDIS","Adults Under 65 with Phys Disab or Sensory Impair","REV","Revenue","R4214","PD Direct Payments","09-INCOME","Income","09C","Customer & Client Receipts","8545","Direct Payments Income","3254091","201307",22/10/2012 00:00:00,348,"56800","Payroll Services","REDACTED DATA","HUMAN MANAGEMENT ASSISTANCE-CLIENT ACCOUNT","4752026","http://opencorporates.com/companies/gb/4752026","815230071"
"London Borough of Redbridge","http://opendatacommunities.org/doc/london-borough-council/redbridge","6BADULTSOCIA","Adult Social Care","6CADPHYSDIS","Adults Under 65 with Phys Disab or Sensory Impair","REV","Revenue","R4214","PD Direct Payments","06-TRANSFER","Transfer Payments","06B","Social Services Clients","7053","Direct Payments","3253535","201307",22/10/2012 00:00:00,522,"56800","Payroll Services","REDACTED DATA","HUMAN MANAGEMENT ASSISTANCE-CLIENT ACCOUNT","4752026","http://opencorporates.com/companies/gb/4752026","815230071"
"London Borough of Redbridge","http://opendatacommunities.org/doc/london-borough-council/redbridge","6BADULTSOCIA","Adult Social Care","6CADPHYSDIS","Adults Under 65 with Phys Disab or Sensory Impair","REV","Revenue","R4214","PD Direct Payments","06-TRANSFER","Transfer Payments","06B","Social Services Clients","7053","Direct Payments","3253704","201307",22/10/2012 00:00:00,522.04,"56800","Payroll Services","REDACTED DATA","HUMAN MANAGEMENT ASSISTANCE-CLIENT ACCOUNT","4752026","http://opencorporates.com/companies/gb/4752026","815230071"
"London Borough of Redbridge","http://opendatacommunities.org/doc/london-borough-council/redbridge","3BLEACENTFND","LEA Centrally Held School Funds","3CSCHSTRATMG","Schools Strategic Management","REV","Revenue","R3173","Bus Supp - CP, EI and CRCs","01-EMPLOYEES","Employees","01A","Direct employee expenses","4","Agency Staff - Pay","60187072","201307",10/10/2012 00:00:00,435.05,"31230","Employment & Recruitment Agencies","REDACTED DATA","BERRY RECRUITMENT LTD","7036111","http://opencorporates.com/companies/gb/7036111","981989739"
"London Borough of Redbridge","http://opendatacommunities.org/doc/london-borough-council/redbridge","3BLEACENTFND","LEA Centrally Held School Funds","3CASSURACCES","Assuring Access to Schools","REV","Revenue","R3265","Drama Centre Del","04-SUPPLIES","Supplies And Services","04A","Equipment, furniture and materials","5501","Equipment Provision","60186316","201307",28/09/2012 00:00:00,435.25,"30798","Electronic Equipment Components and Instruments - Design and Sales","REDACTED DATA","CPC (PREMIER FARNELL UK LTD)","",,"169680322"
"London Borough of Redbridge","http://opendatacommunities.org/doc/london-borough-council/redbridge","9BNONBVO","Outside the BVACOP Objective Structure","9CNONBVO","Outside the BVACOP Objective Structure","REV","Revenue","R7702","Vehicle Workshop","04-SUPPLIES","Supplies And Services","04A","Equipment, furniture and materials","5510","Materials","634561","201307",15/10/2012 00:00:00,218.07,"20375","Commercial Vehicle Mnfrs","REDACTED DATA","JOHNSTON SWEEPERS LTD","",,""
"London Borough of Redbridge","http://opendatacommunities.org/doc/london-borough-council/redbridge","9BNONBVO","Outside the BVACOP Objective Structure","9CNONBVO","Outside the BVACOP Objective Structure","REV","Revenue","R7702","Vehicle Workshop","04-SUPPLIES","Supplies And Services","04A","Equipment, furniture and materials","5510","Materials","634561","201307",15/10/2012 00:00:00,218.07,"20375","Commercial Vehicle Mnfrs","REDACTED DATA","JOHNSTON SWEEPERS LTD","",,""
"London Borough of Redbridge","http://opendatacommunities.org/doc/london-borough-council/redbridge","6BADULTSOCIA","Adult Social Care","6CADPHYSDIS","Adults Under 65 with Phys Disab or Sensory Impair","REV","Revenue","R4214","PD Direct Payments","09-INCOME","Income","09C","Customer & Client Receipts","8545","Direct Payments Income","3253752","201307",22/10/2012 00:00:00,-33.24,"90005","Home Care Services DP","REDACTED DATA","REDACTED DATA","",,""
"London Borough of Redbridge","http://opendatacommunities.org/doc/london-borough-council/redbridge","6BADULTSOCIA","Adult Social Care","6CADPHYSDIS","Adults Under 65 with Phys Disab or Sensory Impair","REV","Revenue","R4214","PD Direct Payments","06-TRANSFER","Transfer Payments","06B","Social Services Clients","7053","Direct Payments","3253752","201307",22/10/2012 00:00:00,556.8,"90005","Home Care Services DP","REDACTED DATA","REDACTED DATA","",,""
"London Borough of Redbridge","http://opendatacommunities.org/doc/london-borough-council/redbridge","6BADULTSOCIA","Adult Social Care","6CADPHYSDIS","Adults Under 65 with Phys Disab or Sensory Impair","REV","Revenue","R4206","PCT Physical Disability and Sensory Home  Care","05-THIRD","Third Party Payments","05A","Independent units within the council","6502","Agency Homecare (Payments To Independent Units)","90361580","201307",10/10/2012 00:00:00,523.92,"53280","Nursing Agencies","REDACTED DATA","IMMACULATE HEALTHCARE SERVICES LIMITED","",,""
"London Borough of Redbridge","http://opendatacommunities.org/doc/london-borough-council/redbridge","6BADULTSOCIA","Adult Social Care","6CADPHYSDIS","Adults Under 65 with Phys Disab or Sensory Impair","REV","Revenue","R4206","PCT Physical Disability and Sensory Home  Care","05-THIRD","Third Party Payments","05A","Independent units within the council","6502","Agency Homecare (Payments To Independent Units)","90361752","201307",22/10/2012 00:00:00,523.92,"53280","Nursing Agencies","REDACTED DATA","IMMACULATE HEALTHCARE SERVICES LIMITED","",,""
"London Borough of Redbridge","http://opendatacommunities.org/doc/london-borough-council/redbridge","6BADULTSOCIA","Adult Social Care","6CADPHYSDIS","Adults Under 65 with Phys Disab or Sensory Impair","REV","Revenue","R4206","PCT Physical Disability and Sensory Home  Care","05-THIRD","Third Party Payments","05A","Independent units within the council","6502","Agency Homecare (Payments To Independent Units)","90357581","201307",03/10/2012 00:00:00,523.92,"53280","Nursing Agencies","REDACTED DATA","IMMACULATE HEALTHCARE SERVICES LIMITED","",,""
"London Borough of Redbridge","http://opendatacommunities.org/doc/london-borough-council/redbridge","6BADULTSOCIA","Adult Social Care","6CADPHYSDIS","Adults Under 65 with Phys Disab or Sensory Impair","REV","Revenue","R4206","PCT Physical Disability and Sensory Home  Care","05-THIRD","Third Party Payments","05A","Independent units within the council","6502","Agency Homecare (Payments To Independent Units)","90361719","201307",18/10/2012 00:00:00,523.92,"53280","Nursing Agencies","REDACTED DATA","IMMACULATE HEALTHCARE SERVICES LIMITED","",,""
"London Borough of Redbridge","http://opendatacommunities.org/doc/london-borough-council/redbridge","1BOTHEROPI&E","Other Operating Income & Expenditure","1CTRADSURDEF","Trading Account Surpluses & Deficits","REV","Revenue","R9884","Cycle to Work Scheme (Revenue)","04-SUPPLIES","Supplies And Services","04A","Equipment, furniture and materials","5501","Equipment Provision","60186226","201307",03/10/2012 00:00:00,443.28,"23700","Cycling","REDACTED DATA","CYCLESCHEME LTD","5363678","http://opencorporates.com/companies/gb/5363678","850403556"
"London Borough of Redbridge","http://opendatacommunities.org/doc/london-borough-council/redbridge","6BADULTSOCIA","Adult Social Care","6COLDINCMENT","Older People (65 or over) incl. Older Mentally Ill","REV","Revenue","R4391","OP Home Care","05-THIRD","Third Party Payments","05A","Independent units within the council","6502","Agency Homecare (Payments To Independent Units)","90361781","201307",22/10/2012 00:00:00,523.96,"53280","Nursing Agencies","REDACTED DATA","IMMACULATE HEALTHCARE SERVICES LIMITED","",,""
"London Borough of Redbridge","http://opendatacommunities.org/doc/london-borough-council/redbridge","6BADULTSOCIA","Adult Social Care","6COLDINCMENT","Older People (65 or over) incl. Older Mentally Ill","REV","Revenue","R4391","OP Home Care","05-THIRD","Third Party Payments","05A","Independent units within the council","6502","Agency Homecare (Payments To Independent Units)","90361692","201307",18/10/2012 00:00:00,523.96,"53280","Nursing Agencies","REDACTED DATA","IMMACULATE HEALTHCARE SERVICES LIMITED","",,""
"London Borough of Redbridge","http://opendatacommunities.org/doc/london-borough-council/redbridge","6BADULTSOCIA","Adult Social Care","6COTHADSERV","Other Adult Services","REV","Revenue","R4389","PCT Older Person Home Care","05-THIRD","Third Party Payments","05A","Independent units within the council","6502","Agency Homecare (Payments To Independent Units)","90359124","201307",03/10/2012 00:00:00,524.34,"43419","Home Care Services","REDACTED DATA","ENARA LTD (ENARA COMMUNITY CARE)","65455420","http://opencorporates.com/companies/gb/65455420",""
"London Borough of Redbridge","http://opendatacommunities.org/doc/london-borough-council/redbridge","3BINDSCHFUND","Individual School Funds","3CDELPRIMARY","Delegated Individual Primary School Budgets","REV","Revenue","S1048","CHRISTCHURCH : Adminstrative Supplies","04-SUPPLIES","Supplies And Services","04D","Printing, stationery and general office expenses","5703","Reprographics","60185778","201307",17/07/2012 00:00:00,436.97,"57614","Photocopiers","REDACTED DATA","DANWOOD GROUP LTD (LINCOLN)","1056774","http://opencorporates.com/companies/gb/1056774","310698269"
"London Borough of Redbridge","http://opendatacommunities.org/doc/london-borough-council/redbridge","6BADULTSOCIA","Adult Social Care","6COTHADSERV","Other Adult Services","REV","Revenue","R4389","PCT Older Person Home Care","05-THIRD","Third Party Payments","05A","Independent units within the council","6502","Agency Homecare (Payments To Independent Units)","90357751","201307",02/10/2012 00:00:00,525,"53350","Nursing Homes","REDACTED DATA","ELEANOR NURSING & SOCIALCARE LTD","4393038","http://opencorporates.com/companies/gb/4393038",""
"London Borough of Redbridge","http://opendatacommunities.org/doc/london-borough-council/redbridge","6BADULTSOCIA","Adult Social Care","6CADLEARNDIS","Adults Under 65 with Learning Disabilities","REV","Revenue","R4383","LD - External Day Care","05-THIRD","Third Party Payments","05H","Private contractors","6904","Day Centres","90357007","201307",05/10/2012 00:00:00,-318.87,"17020","Charities and Voluntary Organisations","REDACTED DATA","ELHAP","",,""
"London Borough of Redbridge","http://opendatacommunities.org/doc/london-borough-council/redbridge","6BADULTSOCIA","Adult Social Care","6CADLEARNDIS","Adults Under 65 with Learning Disabilities","REV","Revenue","R4383","LD - External Day Care","05-THIRD","Third Party Payments","05H","Private contractors","6904","Day Centres","90357006","201307",05/10/2012 00:00:00,-37.51,"17020","Charities and Voluntary Organisations","REDACTED DATA","ELHAP","",,""
"London Borough of Redbridge","http://opendatacommunities.org/doc/london-borough-council/redbridge","6BADULTSOCIA","Adult Social Care","6CADLEARNDIS","Adults Under 65 with Learning Disabilities","REV","Revenue","R4383","LD - External Day Care","05-THIRD","Third Party Payments","05H","Private contractors","6904","Day Centres","90357006","201307",05/10/2012 00:00:00,562.71,"17020","Charities and Voluntary Organisations","REDACTED DATA","ELHAP","",,""
"London Borough of Redbridge","http://opendatacommunities.org/doc/london-borough-council/redbridge","6BADULTSOCIA","Adult Social Care","6CADLEARNDIS","Adults Under 65 with Learning Disabilities","REV","Revenue","R4383","LD - External Day Care","05-THIRD","Third Party Payments","05H","Private contractors","6904","Day Centres","90357007","201307",05/10/2012 00:00:00,844.07,"17020","Charities and Voluntary Organisations","REDACTED DATA","ELHAP","",,""
"London Borough of Redbridge","http://opendatacommunities.org/doc/london-borough-council/redbridge","6BADULTSOCIA","Adult Social Care","6CSUPPSERMGT","Support Service & Management Costs","REV","Revenue","R4004","CC - Training General","01-EMPLOYEES","Employees","01B","Indirect employee expenses","2403","External Training","60185959","201307",02/10/2012 00:00:00,438,"35890","First Aid Training","REDACTED DATA","THAMES TRAINING AND DEVELOPMENT LIMITED","7038934","http://opencorporates.com/companies/gb/7038934","979475053"
"London Borough of Redbridge","http://opendatacommunities.org/doc/london-borough-council/redbridge","6BADULTSOCIA","Adult Social Care","6COTHADSERV","Other Adult Services","REV","Revenue","R4389","PCT Older Person Home Care","05-THIRD","Third Party Payments","05A","Independent units within the council","6502","Agency Homecare (Payments To Independent Units)","90359252","201307",03/10/2012 00:00:00,525.6,"43419","Home Care Services","REDACTED DATA","ENARA LTD (ENARA COMMUNITY CARE)","65455420","http://opencorporates.com/companies/gb/65455420",""
"London Borough of Redbridge","http://opendatacommunities.org/doc/london-borough-council/redbridge","3BLEACENTFND","LEA Centrally Held School Funds","3CNONSCH","Non Schools","REV","Revenue","R2006","SEN Assessment Team DSG","04-SUPPLIES","Supplies And Services","04D","Printing, stationery and general office expenses","5705","Postage","60187226","201307",26/09/2012 00:00:00,52.77,"50810","Meter Mnfrs & Suppliers","REDACTED DATA","PURCHASE POWER","182037","http://opencorporates.com/companies/gb/182037","213329300"
"London Borough of Redbridge","http://opendatacommunities.org/doc/london-borough-council/redbridge","3BOPTIONHLDG","Optional Holding Accounts","3CYOUTH","Youth Service","REV","Revenue","R3371","LBR Costs","04-SUPPLIES","Supplies And Services","04D","Printing, stationery and general office expenses","5705","Postage","60187226","201307",26/09/2012 00:00:00,75.39,"50810","Meter Mnfrs & Suppliers","REDACTED DATA","PURCHASE POWER","182037","http://opencorporates.com/companies/gb/182037","213329300"
"London Borough of Redbridge","http://opendatacommunities.org/doc/london-borough-council/redbridge","6BSOCIALSERV","Social Services","6CCHILLOOKED","Children Looked After","REV","Revenue","R2135","SEN and CD - Aiming High For Disabled Children","04-SUPPLIES","Supplies And Services","04D","Printing, stationery and general office expenses","5705","Postage","60187226","201307",26/09/2012 00:00:00,116.47,"50810","Meter Mnfrs & Suppliers","REDACTED DATA","PURCHASE POWER","182037","http://opencorporates.com/companies/gb/182037","213329300"
"London Borough of Redbridge","http://opendatacommunities.org/doc/london-borough-council/redbridge","6BSOCIALSERV","Social Services","6CCHILCOMSNG","Children's Services - Commissioning & Social Work","REV","Revenue","R2121","CLAFH - Business and Finance Social Care","04-SUPPLIES","Supplies And Services","04D","Printing, stationery and general office expenses","5705","Postage","60187226","201307",26/09/2012 00:00:00,278.16,"50810","Meter Mnfrs & Suppliers","REDACTED DATA","PURCHASE POWER","182037","http://opencorporates.com/companies/gb/182037","213329300"
"London Borough of Redbridge","http://opendatacommunities.org/doc/london-borough-council/redbridge","6BADULTSOCIA","Adult Social Care","6COLDINCMENT","Older People (65 or over) incl. Older Mentally Ill","REV","Revenue","R4391","OP Home Care","05-THIRD","Third Party Payments","05A","Independent units within the council","6502","Agency Homecare (Payments To Independent Units)","90357127","201307",02/10/2012 00:00:00,526.74,"44166","Housing Associations, Societies, Trusts and Co-operatives","REDACTED DATA","ANCHOR TRUST(OAKLEA LODGE)","3147851","http://opencorporates.com/companies/gb/3147851","490992502"
"London Borough of Redbridge","http://opendatacommunities.org/doc/london-borough-council/redbridge","3BLEACENTFND","LEA Centrally Held School Funds","3CSUPPORTSEN","Supporting Special Education Needs","REV","Revenue","R3022","Home Tuition","01-EMPLOYEES","Employees","01A","Direct employee expenses","4","Agency Staff - Pay","60186618","201307",25/07/2012 00:00:00,439.5,"31230","Employment & Recruitment Agencies","REDACTED DATA","OFFICE ANGELS","1985032","http://opencorporates.com/companies/gb/1985032","524020109"
"London Borough of Redbridge","http://opendatacommunities.org/doc/london-borough-council/redbridge","4BMANGT&SUPP","Management & Support Services","4CHIGHRDROUT","Highways/Roads (Routine)","REV","Revenue","R7070","Reactive Maintenance","05-THIRD","Third Party Payments","05H","Private contractors","6915","Contractor Payments","3251382","201307",03/10/2012 00:00:00,439.72,"18632","Civil Engineers","REDACTED DATA","KENSON CONTRACTORS BENINGTON LTD","1314691","http://opencorporates.com/companies/gb/1314691","301629589"
"London Borough of Redbridge","http://opendatacommunities.org/doc/london-borough-council/redbridge","3BINDSCHFUND","Individual School Funds","3CDELPRIMARY","Delegated Individual Primary School Budgets","REV","Revenue","S2309","GROVE : CURRICULUM ENRICHMENTS","04-SUPPLIES","Supplies And Services","04A","Equipment, furniture and materials","5502","Equipment Purchase","60187212","201307",05/10/2012 00:00:00,440,"29360","Educational Services","REDACTED DATA","QUANTUM THEATRE","",,"592061640"
"London Borough of Redbridge","http://opendatacommunities.org/doc/london-borough-council/redbridge","9BNONBVO","Outside the BVACOP Objective Structure","9CNONBVO","Outside the BVACOP Objective Structure","BAL","Balance Sheet","B0059","DUMMY VAT ACCOUNT","99-NONBV","Capital, Balance Sheet and Control","50L","Debtors","9359","VAT only invoices","70047066","201307",15/10/2012 00:00:00,-528.18,"72460","Solicitors","REDACTED DATA","CLYDE & CO LLP","OC326539","http://opencorporates.com/companies/gb/OC326539","243206496"
"London Borough of Redbridge","http://opendatacommunities.org/doc/london-borough-council/redbridge","6BSOCIALSERV","Social Services","6CCHILLOOKED","Children Looked After","REV","Revenue","R2164","CP and EI - Assessment and Contact","01-EMPLOYEES","Employees","01A","Direct employee expenses","4","Agency Staff - Pay","60185693","201307",05/09/2012 00:00:00,528.18,"48583","Local Government","REDACTED DATA","ESSEX COUNTY COUNCIL","",,"104252813"
"London Borough of Redbridge","http://opendatacommunities.org/doc/london-borough-council/redbridge","9BNONBVO","Outside the BVACOP Objective Structure","9CNONBVO","Outside the BVACOP Objective Structure","BAL","Balance Sheet","B0059","DUMMY VAT ACCOUNT","99-NONBV","Capital, Balance Sheet and Control","50L","Debtors","9359","VAT only invoices","70047066","201307",15/10/2012 00:00:00,528.18,"72460","Solicitors","REDACTED DATA","CLYDE & CO LLP","OC326539","http://opencorporates.com/companies/gb/OC326539","243206496"
"London Borough of Redbridge","http://opendatacommunities.org/doc/london-borough-council/redbridge","6BADULTSOCIA","Adult Social Care","6COLDINCMENT","Older People (65 or over) incl. Older Mentally Ill","REV","Revenue","R4211","Older People Direct Payments","09-INCOME","Income","09C","Customer & Client Receipts","8545","Direct Payments Income","3253985","201307",22/10/2012 00:00:00,-16.32,"90005","Home Care Services DP","REDACTED DATA","REDACTED DATA","",,""
"London Borough of Redbridge","http://opendatacommunities.org/doc/london-borough-council/redbridge","6BADULTSOCIA","Adult Social Care","6COLDINCMENT","Older People (65 or over) incl. Older Mentally Ill","REV","Revenue","R4211","Older People Direct Payments","06-TRANSFER","Transfer Payments","06B","Social Services Clients","7053","Direct Payments","3253985","201307",22/10/2012 00:00:00,545.2,"90005","Home Care Services DP","REDACTED DATA","REDACTED DATA","",,""
"London Borough of Redbridge","http://opendatacommunities.org/doc/london-borough-council/redbridge","6BADULTSOCIA","Adult Social Care","6COLDINCMENT","Older People (65 or over) incl. Older Mentally Ill","REV","Revenue","R4391","OP Home Care","05-THIRD","Third Party Payments","05A","Independent units within the council","6502","Agency Homecare (Payments To Independent Units)","90357159","201307",08/10/2012 00:00:00,528.97,"44166","Housing Associations, Societies, Trusts and Co-operatives","REDACTED DATA","ANCHOR TRUST(OAKLEA LODGE)","3147851","http://opencorporates.com/companies/gb/3147851","490992502"
"London Borough of Redbridge","http://opendatacommunities.org/doc/london-borough-council/redbridge","4BMANGT&SUPP","Management & Support Services","4CHIGHRDROUT","Highways/Roads (Routine)","REV","Revenue","R7070","Reactive Maintenance","05-THIRD","Third Party Payments","05H","Private contractors","6915","Contractor Payments","3251508","201307",03/10/2012 00:00:00,441.07,"18632","Civil Engineers","REDACTED DATA","KENSON CONTRACTORS BENINGTON LTD","1314691","http://opencorporates.com/companies/gb/1314691","301629589"
"London Borough of Redbridge","http://opendatacommunities.org/doc/london-borough-council/redbridge","3BNONSCHFUND","Non-School Funding","3CNONSCH","Non Schools","REV","Revenue","R3946","Hainault CC Nursery","02-PREMISES","Premises","02B","Energy costs","4000","Electricity","80000246","201307",18/09/2012 00:00:00,441.39,"30586","Electricity Companies","REDACTED DATA","SCOTTISH & SOUTHERN ENERGY (SOUTHERN ELECTRIC & SWALEC)","2716495","http://opencorporates.com/companies/gb/2716495","553769603"
"London Borough of Redbridge","http://opendatacommunities.org/doc/london-borough-council/redbridge","6BADULTSOCIA","Adult Social Care","6CADLEARNDIS","Adults Under 65 with Learning Disabilities","REV","Revenue","R4394","LD - Homecare","05-THIRD","Third Party Payments","05A","Independent units within the council","6502","Agency Homecare (Payments To Independent Units)","90361998","201307",17/10/2012 00:00:00,530.2,"43419","Home Care Services","REDACTED DATA","REDSPOT HOMECARE LTD","3966475","http://opencorporates.com/companies/gb/3966475",""
"London Borough of Redbridge","http://opendatacommunities.org/doc/london-borough-council/redbridge","6BADULTSOCIA","Adult Social Care","6CADLEARNDIS","Adults Under 65 with Learning Disabilities","REV","Revenue","R4297","Out There Project","01-EMPLOYEES","Employees","01A","Direct employee expenses","4","Agency Staff - Pay","60186551","201307",09/10/2012 00:00:00,442,"31230","Employment & Recruitment Agencies","REDACTED DATA","CRASTER RECRUITMENT LTD","7654534","http://opencorporates.com/companies/gb/7654534","119719983"
"London Borough of Redbridge","http://opendatacommunities.org/doc/london-borough-council/redbridge","6BADULTSOCIA","Adult Social Care","6CADLEARNDIS","Adults Under 65 with Learning Disabilities","REV","Revenue","R4298","Mildmay Centre","01-EMPLOYEES","Employees","01A","Direct employee expenses","409","Agency Staff Pay","60186232","201307",03/10/2012 00:00:00,442,"31230","Employment & Recruitment Agencies","REDACTED DATA","CRASTER RECRUITMENT LTD","7654534","http://opencorporates.com/companies/gb/7654534","119719983"
"London Borough of Redbridge","http://opendatacommunities.org/doc/london-borough-council/redbridge","9BNONBVO","Outside the BVACOP Objective Structure","9CNONBVO","Outside the BVACOP Objective Structure","REV","Revenue","R5131","Repairs and Maintenance - MFS","02-PREMISES","Premises","02A","Repairs, alteration and maintenance of buildings","3038","Service Repairs","70046180","201307",30/08/2012 00:00:00,442,"35570","Firefighting Equipment","REDACTED DATA","U.K FIREWATCH LTD","2576808","http://opencorporates.com/companies/gb/2576808","353921355"
"London Borough of Redbridge","http://opendatacommunities.org/doc/london-borough-council/redbridge","9BNONBVO","Outside the BVACOP Objective Structure","9CNONBVO","Outside the BVACOP Objective Structure","REV","Revenue","R7651","Grounds-Administration","04-SUPPLIES","Supplies And Services","04A","Equipment, furniture and materials","5510","Materials","60187584","201307",17/10/2012 00:00:00,442.2,"53090","Nurseries - Wholesale","REDACTED DATA","FRESH ACRES NURSERIES LTD","451031","http://opencorporates.com/companies/gb/451031","192805154"
"London Borough of Redbridge","http://opendatacommunities.org/doc/london-borough-council/redbridge","9BNONBVO","Outside the BVACOP Objective Structure","9CNONBVO","Outside the BVACOP Objective Structure","REV","Revenue","R7702","Vehicle Workshop","04-SUPPLIES","Supplies And Services","04A","Equipment, furniture and materials","5510","Materials","634574","201307",17/10/2012 00:00:00,2.33,"13240","Car Accessories and Parts","REDACTED DATA","SYTNER LTD T/AS SYTNER CHIGWELL","813696","http://opencorporates.com/companies/gb/813696","610625086"
"London Borough of Redbridge","http://opendatacommunities.org/doc/london-borough-council/redbridge","9BNONBVO","Outside the BVACOP Objective Structure","9CNONBVO","Outside the BVACOP Objective Structure","REV","Revenue","R7702","Vehicle Workshop","04-SUPPLIES","Supplies And Services","04A","Equipment, furniture and materials","5510","Materials","634574","201307",17/10/2012 00:00:00,17.58,"13240","Car Accessories and Parts","REDACTED DATA","SYTNER LTD T/AS SYTNER CHIGWELL","813696","http://opencorporates.com/companies/gb/813696","610625086"
"London Borough of Redbridge","http://opendatacommunities.org/doc/london-borough-council/redbridge","9BNONBVO","Outside the BVACOP Objective Structure","9CNONBVO","Outside the BVACOP Objective Structure","REV","Revenue","R7702","Vehicle Workshop","04-SUPPLIES","Supplies And Services","04A","Equipment, furniture and materials","5510","Materials","634574","201307",17/10/2012 00:00:00,44.79,"13240","Car Accessories and Parts","REDACTED DATA","SYTNER LTD T/AS SYTNER CHIGWELL","813696","http://opencorporates.com/companies/gb/813696","610625086"
"London Borough of Redbridge","http://opendatacommunities.org/doc/london-borough-council/redbridge","9BNONBVO","Outside the BVACOP Objective Structure","9CNONBVO","Outside the BVACOP Objective Structure","REV","Revenue","R7702","Vehicle Workshop","04-SUPPLIES","Supplies And Services","04A","Equipment, furniture and materials","5510","Materials","634574","201307",17/10/2012 00:00:00,61.27,"13240","Car Accessories and Parts","REDACTED DATA","SYTNER LTD T/AS SYTNER CHIGWELL","813696","http://opencorporates.com/companies/gb/813696","610625086"
"London Borough of Redbridge","http://opendatacommunities.org/doc/london-borough-council/redbridge","9BNONBVO","Outside the BVACOP Objective Structure","9CNONBVO","Outside the BVACOP Objective Structure","REV","Revenue","R7702","Vehicle Workshop","04-SUPPLIES","Supplies And Services","04A","Equipment, furniture and materials","5510","Materials","634574","201307",17/10/2012 00:00:00,158.3,"13240","Car Accessories and Parts","REDACTED DATA","SYTNER LTD T/AS SYTNER CHIGWELL","813696","http://opencorporates.com/companies/gb/813696","610625086"
"London Borough of Redbridge","http://opendatacommunities.org/doc/london-borough-council/redbridge","9BNONBVO","Outside the BVACOP Objective Structure","9CNONBVO","Outside the BVACOP Objective Structure","REV","Revenue","R7702","Vehicle Workshop","04-SUPPLIES","Supplies And Services","04A","Equipment, furniture and materials","5510","Materials","634574","201307",17/10/2012 00:00:00,158.3,"13240","Car Accessories and Parts","REDACTED DATA","SYTNER LTD T/AS SYTNER CHIGWELL","813696","http://opencorporates.com/companies/gb/813696","610625086"
"London Borough of Redbridge","http://opendatacommunities.org/doc/london-borough-council/redbridge","6BADULTSOCIA","Adult Social Care","6CADLEARNDIS","Adults Under 65 with Learning Disabilities","REV","Revenue","R4394","LD - Homecare","05-THIRD","Third Party Payments","05A","Independent units within the council","6502","Agency Homecare (Payments To Independent Units)","90357358","201307",08/10/2012 00:00:00,532.38,"31230","Employment & Recruitment Agencies","REDACTED DATA","SHARED CARE SERVICES LTD","4704680","http://opencorporates.com/companies/gb/4704680",""
"London Borough of Redbridge","http://opendatacommunities.org/doc/london-borough-council/redbridge","4BMANGT&SUPP","Management & Support Services","4CHIGHRDROUT","Highways/Roads (Routine)","REV","Revenue","R7003","Signs non illuminated","05-THIRD","Third Party Payments","05H","Private contractors","6915","Contractor Payments","3251864","201307",03/10/2012 00:00:00,443.85,"21555","Construction Contractors - General","REDACTED DATA","MAY GURNEY LIMITED","873179","http://opencorporates.com/companies/gb/873179","105540018"
"London Borough of Redbridge","http://opendatacommunities.org/doc/london-borough-council/redbridge","6BADULTSOCIA","Adult Social Care","6COTHADSERV","Other Adult Services","REV","Revenue","R4389","PCT Older Person Home Care","05-THIRD","Third Party Payments","05A","Independent units within the council","6502","Agency Homecare (Payments To Independent Units)","90359001","201307",03/10/2012 00:00:00,532.61,"43419","Home Care Services","REDACTED DATA","ENARA LTD (ENARA COMMUNITY CARE)","65455420","http://opencorporates.com/companies/gb/65455420",""
"London Borough of Redbridge","http://opendatacommunities.org/doc/london-borough-council/redbridge","3BLEACENTFND","LEA Centrally Held School Funds","3CFACILIMPRO","Facilitating School Improvement","REV","Revenue","R3345","EMAT - Trading Account","04-SUPPLIES","Supplies And Services","04A","Equipment, furniture and materials","5502","Equipment Purchase","60186481","201307",01/07/2012 00:00:00,444.12,"66520","Sanitary Services","REDACTED DATA","OCS GROUP UK LTD T/A CANNON","3056469","http://opencorporates.com/companies/gb/3056469","238034379"
"London Borough of Redbridge","http://opendatacommunities.org/doc/london-borough-council/redbridge","6BSOCIALSERV","Social Services","6CCHILLOOKED","Children Looked After","REV","Revenue","R2117","SEN and CD Care and Support Packages Social Care","06-TRANSFER","Transfer Payments","06B","Social Services Clients","7050","Agency Homecare","3252257","201307",30/09/2012 00:00:00,533.12,"17020","Charities and Voluntary Organisations","REDACTED DATA","REDBRIDGE CROSSROADS CAS","2647932","http://opencorporates.com/companies/gb/2647932",""
"London Borough of Redbridge","http://opendatacommunities.org/doc/london-borough-council/redbridge","6BADULTSOCIA","Adult Social Care","6CADPHYSDIS","Adults Under 65 with Phys Disab or Sensory Impair","REV","Revenue","R4214","PD Direct Payments","06-TRANSFER","Transfer Payments","06B","Social Services Clients","7053","Direct Payments","3253631","201307",22/10/2012 00:00:00,533.6,"90005","Home Care Services DP","REDACTED DATA","REDACTED DATA","",,""
"London Borough of Redbridge","http://opendatacommunities.org/doc/london-borough-council/redbridge","6BADULTSOCIA","Adult Social Care","6COLDINCMENT","Older People (65 or over) incl. Older Mentally Ill","REV","Revenue","R4211","Older People Direct Payments","06-TRANSFER","Transfer Payments","06B","Social Services Clients","7053","Direct Payments","3253532","201307",22/10/2012 00:00:00,533.6,"90005","Home Care Services DP","REDACTED DATA","REDACTED DATA","",,""
"London Borough of Redbridge","http://opendatacommunities.org/doc/london-borough-council/redbridge","9BNONBVO","Outside the BVACOP Objective Structure","9CNONBVO","Outside the BVACOP Objective Structure","CAP","Capital","C1880","Central Library Reconfiguration","99-NONBV","Capital, Balance Sheet and Control","50E","Capital - Contract Payments","9150","Main Contract","790027","201307",03/10/2012 00:00:00,444.89,"30580","Electricians & Electrical Contractors","REDACTED DATA","CBT ELECTRICAL LTD","3346394","http://opencorporates.com/companies/gb/3346394","710532970"
"London Borough of Redbridge","http://opendatacommunities.org/doc/london-borough-council/redbridge","6BADULTSOCIA","Adult Social Care","6CCHILLOOKED","Children Looked After","REV","Revenue","R2119","CLAFH - Supportive Accommodation","05-THIRD","Third Party Payments","05H","Private contractors","6910","Care Packages","3254271","201307",16/10/2012 00:00:00,445.26,"43419","Home Care Services","REDACTED DATA","LCS PARTNERSHIPS LTD (LONDON CARE SOLUTIONS)","6820538","http://opencorporates.com/companies/gb/6820538","975528279"
"London Borough of Redbridge","http://opendatacommunities.org/doc/london-borough-council/redbridge","9BNONBVO","Outside the BVACOP Objective Structure","9CNONBVO","Outside the BVACOP Objective Structure","REV","Revenue","R7702","Vehicle Workshop","04-SUPPLIES","Supplies And Services","04A","Equipment, furniture and materials","5510","Materials","634438","201307",09/10/2012 00:00:00,445.5,"20390","Commercial Vehicle Servicing, Repairs, Parts and Accessories","REDACTED DATA","FORD RETAIL UK LTD T/A@FIRST PARTS SOLUTIONSDAGEN","191595","http://opencorporates.com/companies/gb/191595","833053650"
"London Borough of Redbridge","http://opendatacommunities.org/doc/london-borough-council/redbridge","6BADULTSOCIA","Adult Social Care","6CADLEARNDIS","Adults Under 65 with Learning Disabilities","REV","Revenue","R4394","LD - Homecare","05-THIRD","Third Party Payments","05A","Independent units within the council","6502","Agency Homecare (Payments To Independent Units)","90362789","201307",19/10/2012 00:00:00,534.64,"43419","Home Care Services","REDACTED DATA","FASTFLOW DE VERE CARE","",,""
"London Borough of Redbridge","http://opendatacommunities.org/doc/london-borough-council/redbridge","6BADULTSOCIA","Adult Social Care","6COLDINCMENT","Older People (65 or over) incl. Older Mentally Ill","REV","Revenue","R4197","Oakfield Lodge Dc","04-SUPPLIES","Supplies And Services","04B","Catering","5601","Catering Provisions (Food & Drink)","60186742","201307",02/10/2012 00:00:00,9.44,"16250","Catering Food and Drink Suppliers","REDACTED DATA","BRAKE BROS FOODSERVICE LTD","",,""
"London Borough of Redbridge","http://opendatacommunities.org/doc/london-borough-council/redbridge","6BADULTSOCIA","Adult Social Care","6COLDINCMENT","Older People (65 or over) incl. Older Mentally Ill","REV","Revenue","R4197","Oakfield Lodge Dc","04-SUPPLIES","Supplies And Services","04B","Catering","5601","Catering Provisions (Food & Drink)","60186742","201307",02/10/2012 00:00:00,524.71,"16250","Catering Food and Drink Suppliers","REDACTED DATA","BRAKE BROS FOODSERVICE LTD","",,""
"London Borough of Redbridge","http://opendatacommunities.org/doc/london-borough-council/redbridge","6BADULTSOCIA","Adult Social Care","6COLDINCMENT","Older People (65 or over) incl. Older Mentally Ill","REV","Revenue","R4391","OP Home Care","05-THIRD","Third Party Payments","05A","Independent units within the council","6502","Agency Homecare (Payments To Independent Units)","90361659","201307",15/10/2012 00:00:00,536.88,"53280","Nursing Agencies","REDACTED DATA","IMMACULATE HEALTHCARE SERVICES LIMITED","",,""
"London Borough of Redbridge","http://opendatacommunities.org/doc/london-borough-council/redbridge","6BADULTSOCIA","Adult Social Care","6COLDINCMENT","Older People (65 or over) incl. Older Mentally Ill","REV","Revenue","R4391","OP Home Care","05-THIRD","Third Party Payments","05A","Independent units within the council","6502","Agency Homecare (Payments To Independent Units)","90361742","201307",19/10/2012 00:00:00,536.88,"53280","Nursing Agencies","REDACTED DATA","IMMACULATE HEALTHCARE SERVICES LIMITED","",,""
"London Borough of Redbridge","http://opendatacommunities.org/doc/london-borough-council/redbridge","6BADULTSOCIA","Adult Social Care","6COLDINCMENT","Older People (65 or over) incl. Older Mentally Ill","REV","Revenue","R4391","OP Home Care","05-THIRD","Third Party Payments","05A","Independent units within the council","6502","Agency Homecare (Payments To Independent Units)","90361670","201307",17/10/2012 00:00:00,536.88,"53280","Nursing Agencies","REDACTED DATA","IMMACULATE HEALTHCARE SERVICES LIMITED","",,""
"London Borough of Redbridge","http://opendatacommunities.org/doc/london-borough-council/redbridge","6BADULTSOCIA","Adult Social Care","6COLDINCMENT","Older People (65 or over) incl. Older Mentally Ill","REV","Revenue","R4391","OP Home Care","05-THIRD","Third Party Payments","05A","Independent units within the council","6502","Agency Homecare (Payments To Independent Units)","90357589","201307",03/10/2012 00:00:00,536.88,"53280","Nursing Agencies","REDACTED DATA","IMMACULATE HEALTHCARE SERVICES LIMITED","",,""
"London Borough of Redbridge","http://opendatacommunities.org/doc/london-borough-council/redbridge","5BGFHOUSING","General Fund Housing","5CHOUSADVICE","Housing Advice","REV","Revenue","R5530","HAC Temporary Accomodation","05-THIRD","Third Party Payments","05H","Private contractors","6912","Bed & Breakfast Charges","70046637","201307",30/09/2012 00:00:00,448,"0","Not Classified","REDACTED DATA","CEDAR HOTEL LTD","5097083","http://opencorporates.com/companies/gb/5097083","542174755"
"London Borough of Redbridge","http://opendatacommunities.org/doc/london-borough-council/redbridge","5BGFHOUSING","General Fund Housing","5CHOUSADVICE","Housing Advice","REV","Revenue","R5530","HAC Temporary Accomodation","05-THIRD","Third Party Payments","05H","Private contractors","6912","Bed & Breakfast Charges","70047129","201307",07/10/2012 00:00:00,448,"0","Not Classified","REDACTED DATA","CEDAR HOTEL LTD","5097083","http://opencorporates.com/companies/gb/5097083","542174755"
"London Borough of Redbridge","http://opendatacommunities.org/doc/london-borough-council/redbridge","5BGFHOUSING","General Fund Housing","5CHOUSADVICE","Housing Advice","REV","Revenue","R5530","HAC Temporary Accomodation","05-THIRD","Third Party Payments","05H","Private contractors","6912","Bed & Breakfast Charges","70047128","201307",14/10/2012 00:00:00,448,"0","Not Classified","REDACTED DATA","CEDAR HOTEL LTD","5097083","http://opencorporates.com/companies/gb/5097083","542174755"
"London Borough of Redbridge","http://opendatacommunities.org/doc/london-borough-council/redbridge","3BINDSCHFUND","Individual School Funds","3CDELPRIMARY","Delegated Individual Primary School Budgets","REV","Revenue","S2340","GROVE : BUILDING MAINTENANCE","02-PREMISES","Premises","02F","Fixtures and fittings","4420","Security","60187237","201307",28/09/2012 00:00:00,0,"69240","Security Services","REDACTED DATA","CHARTER SECURITY PLC","1530957","http://opencorporates.com/companies/gb/1530957","342117968"
"London Borough of Redbridge","http://opendatacommunities.org/doc/london-borough-council/redbridge","3BINDSCHFUND","Individual School Funds","3CDELPRIMARY","Delegated Individual Primary School Budgets","REV","Revenue","S2340","GROVE : BUILDING MAINTENANCE","02-PREMISES","Premises","02F","Fixtures and fittings","4420","Security","60187237","201307",28/09/2012 00:00:00,449.71,"69240","Security Services","REDACTED DATA","CHARTER SECURITY PLC","1530957","http://opencorporates.com/companies/gb/1530957","342117968"
"London Borough of Redbridge","http://opendatacommunities.org/doc/london-borough-council/redbridge","1BOTHEROPI&E","Other Operating Income & Expenditure","1CTRADSURDEF","Trading Account Surpluses & Deficits","REV","Revenue","R9601","Lynton House","02-PREMISES","Premises","02A","Repairs, alteration and maintenance of buildings","3026","Minor Maintenance","789918","201307",21/09/2012 00:00:00,0,"2950","Air Conditioning and Refrigeration Contractors","REDACTED DATA","NIXON & FARROW","4147977454 (PARTNERSHIP)","http://opencorporates.com/companies/gb/4147977454 (PARTNERSHIP)","683409123"
"London Borough of Redbridge","http://opendatacommunities.org/doc/london-borough-council/redbridge","1BOTHEROPI&E","Other Operating Income & Expenditure","1CTRADSURDEF","Trading Account Surpluses & Deficits","REV","Revenue","R9154","Audit","03-TRANSPORT","Transport","03C","Contract hire and operating leases","5204","Taxis - General","60187786","201307",15/10/2012 00:00:00,450,"76350","Taxis & Private Hire","REDACTED DATA","TRANSLOGISTIC LIMITED T/A ASSOCIATED TAXIS","3936360","http://opencorporates.com/companies/gb/3936360","750760338"
"London Borough of Redbridge","http://opendatacommunities.org/doc/london-borough-council/redbridge","1BOTHEROPI&E","Other Operating Income & Expenditure","1CTRADSURDEF","Trading Account Surpluses & Deficits","REV","Revenue","R9154","Audit","03-TRANSPORT","Transport","03C","Contract hire and operating leases","5204","Taxis - General","60187144","201307",08/10/2012 00:00:00,450,"76350","Taxis & Private Hire","REDACTED DATA","TRANSLOGISTIC LIMITED T/A ASSOCIATED TAXIS","3936360","http://opencorporates.com/companies/gb/3936360","750760338"
"London Borough of Redbridge","http://opendatacommunities.org/doc/london-borough-council/redbridge","1BOTHEROPI&E","Other Operating Income & Expenditure","1CTRADSURDEF","Trading Account Surpluses & Deficits","REV","Revenue","R9154","Audit","03-TRANSPORT","Transport","03C","Contract hire and operating leases","5204","Taxis - General","60187889","201307",22/10/2012 00:00:00,450,"76350","Taxis & Private Hire","REDACTED DATA","TRANSLOGISTIC LIMITED T/A ASSOCIATED TAXIS","3936360","http://opencorporates.com/companies/gb/3936360","750760338"
"London Borough of Redbridge","http://opendatacommunities.org/doc/london-borough-council/redbridge","1BOTHEROPI&E","Other Operating Income & Expenditure","1CTRADSURDEF","Trading Account Surpluses & Deficits","REV","Revenue","R9354","Legal Disbursements","04-SUPPLIES","Supplies And Services","04H","Grants and subscriptions","5954","Professional Fees","60187509","201307",08/10/2012 00:00:00,450,"6700","Barristers","REDACTED DATA","VICTORIA OSLER","137549711","http://opencorporates.com/companies/gb/137549711","799080772"
"London Borough of Redbridge","http://opendatacommunities.org/doc/london-borough-council/redbridge","1BOTHEROPI&E","Other Operating Income & Expenditure","1CTRADSURDEF","Trading Account Surpluses & Deficits","REV","Revenue","R9565","Property Management","04-SUPPLIES","Supplies And Services","04H","Grants and subscriptions","5954","Professional Fees","60185920","201307",01/10/2012 00:00:00,450,"74700","Surveyors & Valuers","REDACTED DATA","P G ASHTON & SONS","",,"649745389"
"London Borough of Redbridge","http://opendatacommunities.org/doc/london-borough-council/redbridge","1BOTHEROPI&E","Other Operating Income & Expenditure","1CTRADSURDEF","Trading Account Surpluses & Deficits","REV","Revenue","R9601","Lynton House","02-PREMISES","Premises","02A","Repairs, alteration and maintenance of buildings","3026","Minor Maintenance","789918","201307",21/09/2012 00:00:00,450,"2950","Air Conditioning and Refrigeration Contractors","REDACTED DATA","NIXON & FARROW","4147977454 (PARTNERSHIP)","http://opencorporates.com/companies/gb/4147977454 (PARTNERSHIP)","683409123"
"London Borough of Redbridge","http://opendatacommunities.org/doc/london-borough-council/redbridge","2BENVIRONMEN","Environmental Services","2CSERVMGTSUP","Service Management & Support Services","REV","Revenue","R6001","Cleansing S.Area Admin","01-EMPLOYEES","Employees","01B","Indirect employee expenses","2403","External Training","60185989","201307",24/09/2012 00:00:00,450,"79980","Training Services","REDACTED DATA","SPECIALISED TRAINING SERVICES (ESSEX) LTD","4926081","http://opencorporates.com/companies/gb/4926081","881972184"
"London Borough of Redbridge","http://opendatacommunities.org/doc/london-borough-council/redbridge","2BPLAN&DEVEL","Planning & Development Services","2CCOMMDEVT","Community Development","REV","Revenue","R0510","Chadwell Primary School EDR","04-SUPPLIES","Supplies And Services","04K","Miscellaneous expenses","6280","Miscellaneous Expenditure","789907","201307",25/09/2012 00:00:00,450,"11400","Building Services","REDACTED DATA","TREND CONTROL SYSTEMS LTD","1664519","http://opencorporates.com/companies/gb/1664519",""
"London Borough of Redbridge","http://opendatacommunities.org/doc/london-borough-council/redbridge","3BINDSCHFUND","Individual School Funds","3CDELSECOND","Delegated Individual Secondary School Budgets","REV","Revenue","S2013","TRINITY : Repairs and Maintenance Upper Site","02-PREMISES","Premises","02A","Repairs, alteration and maintenance of buildings","3056","Schools ONLY - Minor Maintenance","70046427","201307",19/09/2012 00:00:00,450,"34660","Fencing Contractors","REDACTED DATA","D A SMITH FENCING","",,""
"London Borough of Redbridge","http://opendatacommunities.org/doc/london-borough-council/redbridge","3BLEACENTFND","LEA Centrally Held School Funds","3CSCHSTRATMG","Schools Strategic Management","REV","Revenue","R3007","Client and Resources","01-EMPLOYEES","Employees","01B","Indirect employee expenses","2403","External Training","60186409","201307",03/10/2012 00:00:00,450,"0","Not Classified","REDACTED DATA","SOLUTIONS FIRE SAFETY LTD","3977646","http://opencorporates.com/companies/gb/3977646","752568802"
"London Borough of Redbridge","http://opendatacommunities.org/doc/london-borough-council/redbridge","9BNONBVO","Outside the BVACOP Objective Structure","9CNONBVO","Outside the BVACOP Objective Structure","CAP","Capital","C4193","Hatton Temp Expansion Phase 3","99-NONBV","Capital, Balance Sheet and Control","50B","Capital - Contracted Works","9090","Decanting","60186731","201307",10/10/2012 00:00:00,450,"64550","Removals - Business and Industrial","REDACTED DATA","SONNY WHITE","",,""
"London Borough of Redbridge","http://opendatacommunities.org/doc/london-borough-council/redbridge","9BNONBVO","Outside the BVACOP Objective Structure","9CNONBVO","Outside the BVACOP Objective Structure","REV","Revenue","R5011","Housing General Management","04-SUPPLIES","Supplies And Services","04K","Miscellaneous expenses","6210","Under Occupation Scheme","60186804","201307",11/07/2012 00:00:00,450,"64620","Removals & Storage - Household","REDACTED DATA","CRISPIN REMOVALS LTD","5746848","http://opencorporates.com/companies/gb/5746848","928369973"
"London Borough of Redbridge","http://opendatacommunities.org/doc/london-borough-council/redbridge","3BLEACENTFND","LEA Centrally Held School Funds","3CASSURACCES","Assuring Access to Schools","REV","Revenue","R3265","Drama Centre Del","01-EMPLOYEES","Employees","01A","Direct employee expenses","63","Child Theatre Works Add Hrs","60187736","201307",24/10/2012 00:00:00,540,"77630","Theatre Companies","REDACTED DATA","WIZARD STORIES","",,""
"London Borough of Redbridge","http://opendatacommunities.org/doc/london-borough-council/redbridge","3BLEACENTFND","LEA Centrally Held School Funds","3CASSURACCES","Assuring Access to Schools","REV","Revenue","R3265","Drama Centre Del","01-EMPLOYEES","Employees","01A","Direct employee expenses","63","Child Theatre Works Add Hrs","60187737","201307",24/10/2012 00:00:00,540,"77630","Theatre Companies","REDACTED DATA","WIZARD STORIES","",,""
"London Borough of Redbridge","http://opendatacommunities.org/doc/london-borough-council/redbridge","6BSOCIALSERV","Social Services","6CCHILLOOKED","Children Looked After","REV","Revenue","R2117","SEN and CD Care and Support Packages Social Care","06-TRANSFER","Transfer Payments","06B","Social Services Clients","7050","Agency Homecare","3254252","201307",04/10/2012 00:00:00,540,"31230","Employment & Recruitment Agencies","REDACTED DATA","SHARED CARE SERVICES LTD","4704680","http://opencorporates.com/companies/gb/4704680",""
"London Borough of Redbridge","http://opendatacommunities.org/doc/london-borough-council/redbridge","6BSOCIALSERV","Social Services","6CCHILLOOKED","Children Looked After","REV","Revenue","R2117","SEN and CD Care and Support Packages Social Care","06-TRANSFER","Transfer Payments","06B","Social Services Clients","7050","Agency Homecare","3254249","201307",04/10/2012 00:00:00,540,"31230","Employment & Recruitment Agencies","REDACTED DATA","SHARED CARE SERVICES LTD","4704680","http://opencorporates.com/companies/gb/4704680",""
"London Borough of Redbridge","http://opendatacommunities.org/doc/london-borough-council/redbridge","9BNONBVO","Outside the BVACOP Objective Structure","9CNONBVO","Outside the BVACOP Objective Structure","REV","Revenue","R7702","Vehicle Workshop","04-SUPPLIES","Supplies And Services","04A","Equipment, furniture and materials","5510","Materials","634482","201307",08/08/2012 00:00:00,450.39,"50275","Mechanical Engineers","REDACTED DATA","WEST SUSSEX COMMERCIALS LTD","7990286","http://opencorporates.com/companies/gb/7990286","132683125"
"London Borough of Redbridge","http://opendatacommunities.org/doc/london-borough-council/redbridge","9BNONBVO","Outside the BVACOP Objective Structure","9CNONBVO","Outside the BVACOP Objective Structure","BAL","Balance Sheet","B0006","Mech Engineerng Store","99-NONBV","Capital, Balance Sheet and Control","50K","Current Assets","9407","Variation A/C - Payments","634373","201307",31/08/2012 00:00:00,180,"70920","Signs & Nameplates","REDACTED DATA","WOODFORD SIGNS LTD","7510055","http://opencorporates.com/companies/gb/7510055","106598891"
"London Borough of Redbridge","http://opendatacommunities.org/doc/london-borough-council/redbridge","9BNONBVO","Outside the BVACOP Objective Structure","9CNONBVO","Outside the BVACOP Objective Structure","BAL","Balance Sheet","B0006","Mech Engineerng Store","99-NONBV","Capital, Balance Sheet and Control","50K","Current Assets","9407","Variation A/C - Payments","634373","201307",31/08/2012 00:00:00,270.4,"70920","Signs & Nameplates","REDACTED DATA","WOODFORD SIGNS LTD","7510055","http://opencorporates.com/companies/gb/7510055","106598891"
"London Borough of Redbridge","http://opendatacommunities.org/doc/london-borough-council/redbridge","6BADULTSOCIA","Adult Social Care","6CADLEARNDIS","Adults Under 65 with Learning Disabilities","REV","Revenue","R4296","Mulberry Lodge","01-EMPLOYEES","Employees","01A","Direct employee expenses","409","Agency Staff Pay","60187305","201307",16/10/2012 00:00:00,450.46,"31230","Employment & Recruitment Agencies","REDACTED DATA","CRASTER RECRUITMENT LTD","7654534","http://opencorporates.com/companies/gb/7654534","119719983"
"London Borough of Redbridge","http://opendatacommunities.org/doc/london-borough-council/redbridge","6BADULTSOCIA","Adult Social Care","6COLDINCMENT","Older People (65 or over) incl. Older Mentally Ill","REV","Revenue","R4211","Older People Direct Payments","09-INCOME","Income","09C","Customer & Client Receipts","8545","Direct Payments Income","3253795","201307",22/10/2012 00:00:00,-270.96,"56800","Payroll Services","REDACTED DATA","HUMAN MANAGEMENT ASSISTANCE-CLIENT ACCOUNT","4752026","http://opencorporates.com/companies/gb/4752026","815230071"
"London Borough of Redbridge","http://opendatacommunities.org/doc/london-borough-council/redbridge","6BADULTSOCIA","Adult Social Care","6COLDINCMENT","Older People (65 or over) incl. Older Mentally Ill","REV","Revenue","R4211","Older People Direct Payments","06-TRANSFER","Transfer Payments","06B","Social Services Clients","7053","Direct Payments","3253795","201307",22/10/2012 00:00:00,812,"56800","Payroll Services","REDACTED DATA","HUMAN MANAGEMENT ASSISTANCE-CLIENT ACCOUNT","4752026","http://opencorporates.com/companies/gb/4752026","815230071"
"London Borough of Redbridge","http://opendatacommunities.org/doc/london-borough-council/redbridge","4BMANGT&SUPP","Management & Support Services","4CHIGHRDROUT","Highways/Roads (Routine)","REV","Revenue","R7070","Reactive Maintenance","05-THIRD","Third Party Payments","05H","Private contractors","6915","Contractor Payments","3253033","201307",17/10/2012 00:00:00,451.2,"18632","Civil Engineers","REDACTED DATA","KENSON CONTRACTORS BENINGTON LTD","1314691","http://opencorporates.com/companies/gb/1314691","301629589"
"London Borough of Redbridge","http://opendatacommunities.org/doc/london-borough-council/redbridge","1BOTHEROPI&E","Other Operating Income & Expenditure","1CTRADSURDEF","Trading Account Surpluses & Deficits","REV","Revenue","R9600","Town Hall","01-EMPLOYEES","Employees","01A","Direct employee expenses","4","Agency Staff - Pay","60186910","201307",28/09/2012 00:00:00,451.68,"69240","Security Services","REDACTED DATA","CHARTER SECURITY PLC","1530957","http://opencorporates.com/companies/gb/1530957","342117968"
"London Borough of Redbridge","http://opendatacommunities.org/doc/london-borough-council/redbridge","6BSOCIALSERV","Social Services","6CCHILLOOKED","Children Looked After","REV","Revenue","R2113","SEN and CD - Section 5 and 6 Care Packages","05-THIRD","Third Party Payments","05A","Independent units within the council","6502","Agency Homecare (Payments To Independent Units)","70046476","201307",30/09/2012 00:00:00,542.52,"17020","Charities and Voluntary Organisations","REDACTED DATA","REDBRIDGE CROSSROADS CAS","2647932","http://opencorporates.com/companies/gb/2647932",""
"London Borough of Redbridge","http://opendatacommunities.org/doc/london-borough-council/redbridge","6BADULTSOCIA","Adult Social Care","6COLDINCMENT","Older People (65 or over) incl. Older Mentally Ill","REV","Revenue","R4211","Older People Direct Payments","09-INCOME","Income","09C","Customer & Client Receipts","8545","Direct Payments Income","3253684","201307",22/10/2012 00:00:00,-71.48,"56800","Payroll Services","REDACTED DATA","HUMAN MANAGEMENT ASSISTANCE-CLIENT ACCOUNT","4752026","http://opencorporates.com/companies/gb/4752026","815230071"
"London Borough of Redbridge","http://opendatacommunities.org/doc/london-borough-council/redbridge","6BADULTSOCIA","Adult Social Care","6COLDINCMENT","Older People (65 or over) incl. Older Mentally Ill","REV","Revenue","R4211","Older People Direct Payments","06-TRANSFER","Transfer Payments","06B","Social Services Clients","7053","Direct Payments","3253684","201307",22/10/2012 00:00:00,614.84,"56800","Payroll Services","REDACTED DATA","HUMAN MANAGEMENT ASSISTANCE-CLIENT ACCOUNT","4752026","http://opencorporates.com/companies/gb/4752026","815230071"
"London Borough of Redbridge","http://opendatacommunities.org/doc/london-borough-council/redbridge","6BADULTSOCIA","Adult Social Care","6CADLEARNDIS","Adults Under 65 with Learning Disabilities","REV","Revenue","R4215","LD Direct Payments","09-INCOME","Income","09C","Customer & Client Receipts","8545","Direct Payments Income","3253546","201307",22/10/2012 00:00:00,-106.04,"90005","Home Care Services DP","REDACTED DATA","REDACTED DATA","",,""
"London Borough of Redbridge","http://opendatacommunities.org/doc/london-borough-council/redbridge","6BADULTSOCIA","Adult Social Care","6CADLEARNDIS","Adults Under 65 with Learning Disabilities","REV","Revenue","R4215","LD Direct Payments","06-TRANSFER","Transfer Payments","06B","Social Services Clients","7053","Direct Payments","3253546","201307",22/10/2012 00:00:00,649.6,"90005","Home Care Services DP","REDACTED DATA","REDACTED DATA","",,""
"London Borough of Redbridge","http://opendatacommunities.org/doc/london-borough-council/redbridge","3BNONSCHFUND","Non-School Funding","3CNONSCH","Non Schools","REV","Revenue","R3941","Newbury CC","02-PREMISES","Premises","02H","Cleaning and domestic supplies","4620","Cleaning Contract Payments","60187834","201307",26/10/2012 00:00:00,453,"15269","Cleaning Services - Commercial","REDACTED DATA","KETRAY CONTRACT CLEANING LTD","3431457","http://opencorporates.com/companies/gb/3431457","681517328"
"London Borough of Redbridge","http://opendatacommunities.org/doc/london-borough-council/redbridge","6BADULTSOCIA","Adult Social Care","6CADLEARNDIS","Adults Under 65 with Learning Disabilities","REV","Revenue","R4218","LD Individual Budgets","06-TRANSFER","Transfer Payments","06B","Social Services Clients","7053","Direct Payments","3253555","201307",22/10/2012 00:00:00,544,"43419","Home Care Services","REDACTED DATA","NATALIE NASTRUCCI","",,""
"London Borough of Redbridge","http://opendatacommunities.org/doc/london-borough-council/redbridge","4BMANGT&SUPP","Management & Support Services","4CHIGHRDROUT","Highways/Roads (Routine)","REV","Revenue","R7070","Reactive Maintenance","05-THIRD","Third Party Payments","05H","Private contractors","6915","Contractor Payments","3251538","201307",03/10/2012 00:00:00,453.7,"18632","Civil Engineers","REDACTED DATA","KENSON CONTRACTORS BENINGTON LTD","1314691","http://opencorporates.com/companies/gb/1314691","301629589"
"London Borough of Redbridge","http://opendatacommunities.org/doc/london-borough-council/redbridge","4BMANGT&SUPP","Management & Support Services","4CHIGHRDROUT","Highways/Roads (Routine)","REV","Revenue","R7070","Reactive Maintenance","05-THIRD","Third Party Payments","05H","Private contractors","6915","Contractor Payments","3251420","201307",03/10/2012 00:00:00,454.21,"18632","Civil Engineers","REDACTED DATA","KENSON CONTRACTORS BENINGTON LTD","1314691","http://opencorporates.com/companies/gb/1314691","301629589"
"London Borough of Redbridge","http://opendatacommunities.org/doc/london-borough-council/redbridge","4BMANGT&SUPP","Management & Support Services","4CHIGHRDROUT","Highways/Roads (Routine)","REV","Revenue","R7070","Reactive Maintenance","05-THIRD","Third Party Payments","05H","Private contractors","6915","Contractor Payments","3251485","201307",03/10/2012 00:00:00,454.35,"18632","Civil Engineers","REDACTED DATA","KENSON CONTRACTORS BENINGTON LTD","1314691","http://opencorporates.com/companies/gb/1314691","301629589"
"London Borough of Redbridge","http://opendatacommunities.org/doc/london-borough-council/redbridge","6BADULTSOCIA","Adult Social Care","6CADPHYSDIS","Adults Under 65 with Phys Disab or Sensory Impair","REV","Revenue","R4214","PD Direct Payments","06-TRANSFER","Transfer Payments","06B","Social Services Clients","7053","Direct Payments","3253847","201307",22/10/2012 00:00:00,545.24,"56800","Payroll Services","REDACTED DATA","HUMAN MANAGEMENT ASSISTANCE-CLIENT ACCOUNT","4752026","http://opencorporates.com/companies/gb/4752026","815230071"
"London Borough of Redbridge","http://opendatacommunities.org/doc/london-borough-council/redbridge","6BADULTSOCIA","Adult Social Care","6COLDINCMENT","Older People (65 or over) incl. Older Mentally Ill","REV","Revenue","R4211","Older People Direct Payments","06-TRANSFER","Transfer Payments","06B","Social Services Clients","7053","Direct Payments","3253850","201307",22/10/2012 00:00:00,545.24,"56800","Payroll Services","REDACTED DATA","HUMAN MANAGEMENT ASSISTANCE-CLIENT ACCOUNT","4752026","http://opencorporates.com/companies/gb/4752026","815230071"
"London Borough of Redbridge","http://opendatacommunities.org/doc/london-borough-council/redbridge","4BMANGT&SUPP","Management & Support Services","4CHIGHRDROUT","Highways/Roads (Routine)","REV","Revenue","R7070","Reactive Maintenance","05-THIRD","Third Party Payments","05H","Private contractors","6915","Contractor Payments","3251273","201307",03/10/2012 00:00:00,454.39,"18632","Civil Engineers","REDACTED DATA","KENSON CONTRACTORS BENINGTON LTD","1314691","http://opencorporates.com/companies/gb/1314691","301629589"
"London Borough of Redbridge","http://opendatacommunities.org/doc/london-borough-council/redbridge","6BADULTSOCIA","Adult Social Care","6COLDINCMENT","Older People (65 or over) incl. Older Mentally Ill","REV","Revenue","R4391","OP Home Care","05-THIRD","Third Party Payments","05A","Independent units within the council","6502","Agency Homecare (Payments To Independent Units)","90361641","201307",12/10/2012 00:00:00,545.36,"53280","Nursing Agencies","REDACTED DATA","IMMACULATE HEALTHCARE SERVICES LIMITED","",,""
"London Borough of Redbridge","http://opendatacommunities.org/doc/london-borough-council/redbridge","1BOTHEROPI&E","Other Operating Income & Expenditure","1CTRADSURDEF","Trading Account Surpluses & Deficits","REV","Revenue","R9577","Broadmead Ind. Units Service Charge Account","02-PREMISES","Premises","02B","Energy costs","4000","Electricity","70046970","201307",24/09/2012 00:00:00,543.6,"30586","Electricity Companies","REDACTED DATA","EDF ENERGY 1 LTD (PO BOX 3956 PLYMOUTH)","",,"523041202"
"London Borough of Redbridge","http://opendatacommunities.org/doc/london-borough-council/redbridge","6BADULTSOCIA","Adult Social Care","6COLDINCMENT","Older People (65 or over) incl. Older Mentally Ill","REV","Revenue","R4391","OP Home Care","05-THIRD","Third Party Payments","05A","Independent units within the council","6502","Agency Homecare (Payments To Independent Units)","90361624","201307",10/10/2012 00:00:00,545.52,"53280","Nursing Agencies","REDACTED DATA","IMMACULATE HEALTHCARE SERVICES LIMITED","",,""
"London Borough of Redbridge","http://opendatacommunities.org/doc/london-borough-council/redbridge","6BSOCIALSERV","Social Services","6CFAMSUPPSER","Family Support Services","REV","Revenue","R2159","CP and EI - Thackeray Drive Residential","02-PREMISES","Premises","02A","Repairs, alteration and maintenance of buildings","3034","Portable Application Electrical Testing (H&S)","790297","201307",21/09/2012 00:00:00,0,"30350","Electrical Testing & Inspecting","REDACTED DATA","RGE SERVICES LTD","3305853","http://opencorporates.com/companies/gb/3305853","919118812"
"London Borough of Redbridge","http://opendatacommunities.org/doc/london-borough-council/redbridge","6BSOCIALSERV","Social Services","6CFAMSUPPSER","Family Support Services","REV","Revenue","R2159","CP and EI - Thackeray Drive Residential","02-PREMISES","Premises","02A","Repairs, alteration and maintenance of buildings","3034","Portable Application Electrical Testing (H&S)","790297","201307",21/09/2012 00:00:00,455.49,"30350","Electrical Testing & Inspecting","REDACTED DATA","RGE SERVICES LTD","3305853","http://opencorporates.com/companies/gb/3305853","919118812"
"London Borough of Redbridge","http://opendatacommunities.org/doc/london-borough-council/redbridge","6BADULTSOCIA","Adult Social Care","6CADLEARNDIS","Adults Under 65 with Learning Disabilities","REV","Revenue","R4296","Mulberry Lodge","01-EMPLOYEES","Employees","01A","Direct employee expenses","409","Agency Staff Pay","60187985","201307",23/10/2012 00:00:00,456.21,"31230","Employment & Recruitment Agencies","REDACTED DATA","CRASTER RECRUITMENT LTD","7654534","http://opencorporates.com/companies/gb/7654534","119719983"
